{"text_format":"1","workbook":"xlsx","n_sheets":6,"sheets":["Eingabe","Berechnungen","Näherungsrechnung per Formel","Ausrichtung","Wetterdaten","PLZ-Zuordnung"],"not_rendered":{"charts":8,"images":8,"macros":1,"external_links":1,"defined_names":9,"comments":0,"pivot_tables":0},"unopened":[],"bounds":{"document_bytes":16777216,"sheet_cells":100000,"rows_first":2000,"rows_last":500,"rows_between":2000,"halvings":0,"cell_chars":16384,"cell_head_chars":4096},"cells_cut":0,"cells_raw":0,"read":"whole","date_system":"1900"}

{"sheet":"Eingabe","index":0,"n_rows":328,"n_cols":63,"rows_kept":328,"cut":false,"hidden":false,"merged":[[4,8,6,15],[10,6,10,7],[249,20,249,21],[249,22,249,23],[13,5,15,7],[13,11,15,12],[20,11,20,12],[22,11,22,12],[24,9,24,15],[25,9,25,15]]}
[]
[null,null,"Dimensionierung und Wirtschaftlichkeit einer PV-Anlage",null,null,null,null,null,null,null,null,"2016-09-26","Version 1.1"]
[null,null,"Allgemeine Erläuterungen"]
[]
[null,null,123,"Eingabefeld - unbeding ausfüllen",null,null,null,null,"Dieses Berechnungstool dimensioniert PV Anlagen in Kombination mit Wärmepumpen. Auf Basis wirtschaftlicher Überlegungen wird der Eigenverbrauch optimiert. Die empfohlene Anlagengröße [kWp] kann manuell variiert werden, und somit auch die Wirtschaftlichkeit von größeren Anlagen dargestellt werden."]
[null,null,123,"vorgeschlagener Wert, kann manuell überschrieben werden"]
[null,null,123,"Ergebnis"]
[]
[null,null,"Standortbezogene Daten"]
[]
[null,null,"Postleitzahl:",1130,null,"Position der Anlage","Gebäudeintegriert",null,null,null,null,null,null,"Einstrahlung (horizontale Fläche):",{"$f":"Wetterdaten!L5","v":1084},"kWh/m²a"]
[null,null,"Ort des Gebäudes:",{"$f":"'PLZ-Zuordnung'!J5","v":"Wien"},null,null,null,null,null,null,null,null,null,"Einstrahlung nach Angabe der Ausrichtung:",{"$f":"Ausrichtung!H51","v":1275.294117647059},"kWh/m²a"]
[]
[null,null,"Ausrichtung:",null,null,"Die Angabe der Ausrichtung der Anlage erfolgt von Osten nach Westen von -90° bis +90° (zB.: -45° = SO)",null,null,"Aufstellung:",null,null,"Die Angabe zur Neigung der Anlage erfolgt von 0° bis 90° (z.B.: 90° = Fassadenanlage)",null,"Randbedingungen:"]
[null,null,null,null,null,null,null,null,null,null,null,null,null,"Es kommt zu keiner Verschattung der Anlage!"]
[null,null,null,null,null,null,null,null,null,null,null,null,null,{"$f":"IF(G11=\"Gebäudeintegriert\",\"Die Anlage ist gebäudeintegriert!\",IF(G11=\"Aufdach\",\"Die Anlage ist hinterlüftet!\",\"Es handelt sich um eine Freiflächenanlage!\"))","v":"Die Anlage ist gebäudeintegriert!"}]
[null,null,null,null,null,0,"°",null,null,null,null,30,"°"]
[]
[null,null,"Haushaltsbezogene Daten"]
[]
[null,null,null,null,null,"Anzahl der im Haushalt lebenden Personen",3,null,null,null,"Betriebsweise Wärmepumpe*","AUTO 24h",null,null,null,"kWh/a"]
[null,null,null,null,null,"beheizte Bruttogeschoßfläche",140,"m2",null,null,"Wärmepumpe Arbeitszahl",3,null,null,"Strom Heizung:",{"$f":"+'Näherungsrechnung per Formel'!F8","v":2100}]
[null,null,null,null,null,"Heizwärmebedarf",30,"kWh/m2.a",null,null,"Umgang mit Energie / Heizgewohnheit**","durchschnittlicher Haushalt",null,null,"Strom Warmwasser:",{"$f":"'Näherungsrechnung per Formel'!$F$6","v":912.5}]
[null,null,null,null,null,"Verbrauch Haushaltsstrom (exkl. Wärmepumpe)",4000,"kWh/a",null,null,null,null,null,null,"Strom Haushalt:",{"$f":"+G24","v":4000}]
[null,null,null,null,null,null,null,null,null,"*AUTO= Werkseinstellung\n*WP-Tarifoptimiert= Sie haben einen eigenen Tarif (Zähler) für die Wärmepumpe \"Nachtstrom\"\n*Eigenverbrauch optimiert= Regelungseinstellungen wurden auf Tagbetrieb optimiert; Wärmepumpe ist in der Nacht gesperrt und darf nur bei Stromlieferung aus der PV Anlage arbeiten"]
[null,null,null,null,null,null,null,null,null,"**Wie sparsam gehen Sie in Ihrem Haushalt mit Energie um? Insbesondere mit Heizenergie?"]
[null,null,"Wirtschaftliche Bedingungen"]
[]
[null,null,"Investitionskosten:",null,null,"Spezifische Kosten für die ersten 3,5 kWp",{"$f":"+Berechnungen!F78","v":2250},"EUR/kWp",null,"Laufende Kosten:",null,null,"Tarif Strombezug",20,"€cent/kWh"]
[null,null,null,null,null,"Spezifische Kosten ab 3,5 kWp",{"$f":"+Berechnungen!F79","v":2000},"EUR/kWp",null,null,null,null,"Einspeisevergütung",7,"€cent/kWh"]
[null,null,null,null,null,null,null,null,null,null,null,"Wechselrichteraustausch in 25 Jahren:","einmal",1000,"€/Austausch"]
[null,null,null,null,null,"Gesamtkosten der Anlage:",{"$f":"IF(G48>3.5,3.5*G29+(G48-3.5)*G30,G48*G29)","v":2700},null,null,null,null,null,"Laufende Kosten (Wartung, Versicherung):",4.0000000000000001E-3,"%"]
[null,null,null,null,null,"Förderung:",null,null,null,null,null,null,"Ertragsminderung (Degradation) pro Jahr:",5.0000000000000001E-3,"%"]
[null,null,null,null,null,"Investitionskosten abzüglich Förderung:",{"$f":"G32-G33","v":2700}]
[null,null,null,null,null,null,null,null,null,"Entwicklung:",null,null,"Inflationsrate/Jahr:",0.02,"%"]
[null,null,null,null,null,{"$f":"IF(G36<100%,\"Eigenkapitalquote / Zinsen Fremdkapital:\",\"Eigenkapitalquote:\")","v":"Eigenkapitalquote:"},1,3.5000000000000003E-2,{"$f":"H37+1","v":3},null,null,null,"Strompreissteigerung/Jahr:",0.02,"%"]
[null,null,null,null,null,{"$f":"IF(G36<100%,\"Kreditlaufzeit / Tilgungsfreie Jahre:\",\"\")","v":""},10,2,{"$f":"G37-H37","v":8},null,null,null,"Kalkulationszinssatz:",0.02,"%"]
[]
[null,null,"Technische Daten"]
[]
[null,null,"Moduldaten:",null,null,"Modulfläche:",1.64,"m²/Modul",null,"Wechselrichterdaten:",null,null,"europ. Wirkungsgrad:",96,"%"]
[null,null,null,null,null,"Nennleistung:",0.24,"kWp/Modul"]
[null,null,null,null,null,"Modulwirkungsgrad (STC-Bedingungen):",{"$f":"(G42/G41)*100","v":14.634146341463413},"%"]
[]
[null,null,"Optimierung"]
[]
[null,null,null,null,null,"Vorschlag Größe PV-Anlage","tatsächlich geplante Größe"]
[null,null,null,null,null,{"$f":"+Berechnungen!F39","v":1.2},{"$f":"+I48+(J48-100)*0.1","v":1.2},"kWp",{"$f":"+F48","v":1.2},100]
[null,null,null,null,"Voraussichtliche Eigennutzung",{"$f":"+Berechnungen!F45","v":0.86376306650736134},{"$f":"+Berechnungen!G45","v":0.86376306650736134},"%"]
[null,null,null,null,"durchschnittliche Stomkosten pro kWh",{"$f":"+Berechnungen!F55*100","v":19.35036854801535},{"$f":"+Berechnungen!G55*100","v":19.35036854801535},"cent/kWh","durchschnittliche Kosten für den gesamten Strombedarf (Eigendeckung und Zukauf)"]
[null,null,null,null,"Ersparnis Stromkosten in %",{"$f":"1-$F$50/$N$29","v":3.2481572599232456E-2},{"$f":"1-$G$50/$N$29","v":3.2481572599232456E-2}]
[]
[]
[]
[null,null,"Zusammenfassung (tatsächlich geplante Größe)"]
[]
[null,null,"Größe der Anlage:",null,null,"Gesamtfläche:",{"$f":"G48/G42*G41","v":8.1999999999999993},"m²"]
[null,null,null,null,null,"Gesamtwirkungsgrad:",{"$f":"(G43*N41)/100","v":14.048780487804876},"%"]
[null,null,null,null,null,"Systemnutzungsgrad:",{"$f":"IF(G11=\"Gebäudeintegriert\",G58*0.81,IF(G11=\"Aufdach\",G58*0.86,G58*0.87))","v":11.379512195121951},"%"]
[null,null,null,null,null,"Anzahl der Module:",{"$f":"ROUND(G48/G42,0)","v":5},"Module"]
[]
[null,null,"Energie:",null,null,"Spezifischer Energieertrag:",{"$f":"O12*(G57/G48)*(G59/100)","v":991.66870588235304},"kWh/kWp",null,null,null,null,null,null,null,null,null,null,null,null,null,null,null,null,null,null,null,null,null,null,null,null,null,null,null,null,null,null,null,null,null,null,null,null,null,null,null,null,null,null,null,null,null,null,null,null,null,null,null,null,"Eigennutzung",{"$f":"+Berechnungen!G45","v":0.86376306650736134}]
[null,null,null,null,null,"Energieertrag (1. Jahr):",{"$f":"G62*G48","v":1190.0024470588237},"kWh/a",null,null,null,null,null,null,null,null,null,null,null,null,null,null,null,null,null,null,null,null,null,null,null,null,null,null,null,null,null,null,null,null,null,null,null,null,null,null,null,null,null,null,null,null,null,null,null,null,null,null,null,null,"Einspeisung ins Netz",{"$f":"1-BJ62","v":0.13623693349263866},"[%]"]
[null,null,null,null,null,"Energieertrag nach 25 Jahren:",{"$f":"Berechnungen!S31","v":28039.8684636217},"kWh"]
[]
[null,null,"Kosten:",null,null,"Investitionskosten:",{"$f":"G34","v":2700},"€"]
[null,null,null,null,null,"Mehreinnahmen nach 25 Jahren:",{"$f":"NPV(Eingabe!N$37,Berechnungen!AA6:AA30)+Berechnungen!AA5","v":1368.3835175141053},"€"]
[null,null,null,null,null,"Amortisationsdauer:",{"$f":"Berechnungen!AD31","v":18},"Jahre",null,null,null,null,null,null,null,null,null,null,null,null,null,null,null,null,null,null,null,null,null,null,null,null,null,null,null,null,null,null,null,null,null,null,null,null,null,null,null,null,null,null,null,null,null,null,null,null,null,null,null,null,"Vergütung Einspeisung",{"$f":"+N30","v":7}]
[null,null,null,null,null,"Interner Zinsfuß:",{"$f":"IRR(Berechnungen!AB5:AB30)","v":3.598104813939984E-2},null,null,null,null,null,null,null,null,null,null,null,null,null,null,null,null,null,null,null,null,null,null,null,null,null,null,null,null,null,null,null,null,null,null,null,null,null,null,null,null,null,null,null,null,null,null,null,null,null,null,null,null,null,"Strompreis zugekaufter Strom",{"$f":"+N29","v":20}]
[null,null,null,null,null,"Stromgestehungskosten:",{"$f":"Berechnungen!Z32/Berechnungen!S31*100","v":14.429194781209656},"cent/kWh",null,null,null,null,null,null,null,null,null,null,null,null,null,null,null,null,null,null,null,null,null,null,null,null,null,null,null,null,null,null,null,null,null,null,null,null,null,null,null,null,null,null,null,null,null,null,null,null,null,null,null,null,"Theoretischer Tarif durch Eigenverbrauch",{"$f":"+Berechnungen!G46","v":14.429194781209656}]
[]
[null,null,"CO2:",null,null,"CO2-Einsparungen nach 25 Jahren:",{"$f":"ROUND(G64*Berechnungen!F84,0)","v":7851},"kg CO2"]
[]
[]
[]
[]
[]
[]
[]
[]
[]
[]
[]
[]
[]
[]
[]
[]
[]
[]
[]
[]
[]
[]
[]
[]
[]
[]
[]
[]
[]
[]
[]
[]
[]
[]
[]
[]
[]
[]
[]
[]
[]
[]
[]
[]
[]
[]
[]
[]
[]
[]
[]
[]
[]
[]
[]
[]
[]
[]
[]
[]
[]
[]
[]
[]
[]
[]
[]
[]
[]
[]
[]
[]
[]
[]
[null,null,null,1,null,"Neigung:",0,"Azimut:",-90]
[null,null,null,2,null,null,15,null,-75]
[null,null,null,3,null,null,30,null,-60]
[null,null,null,4,null,null,45,null,-45]
[null,null,null,5,null,null,60,null,-30]
[null,null,null,6,null,null,75,null,-15]
[null,null,null,7,null,null,90,null,0]
[null,null,null,8,null,null,null,null,15]
[null,null,null,9,null,null,null,null,30]
[null,null,null,10,null,null,null,null,45]
[null,null,null,11,null,null,null,null,60]
[null,null,null,12,null,null,null,null,75]
[null,null,null,13,null,null,null,null,90]
[null,null,null,14]
[null,null,null,15]
[]
[]
[]
[null,null,"einmal","Gebäudeintegriert",null,"Betriebsweise Wärmepumpe"]
[null,null,"zweimal","Aufdach",null,"WP-Tarifoptimiert (nachts)"]
[null,null,"dreimal","Freiland",null,"AUTO 24h"]
[null,null,"viermal",null,null,"Eigenverbrauch Optimiert"]
[]
[]
[null,null,null,null,null,"Heizgewohnheiten"]
[null,null,null,null,null,"sparsamer Haushalt"]
[null,null,null,null,null,"durchschnittlicher Haushalt"]
[null,null,null,null,null,"legerer Haushalt"]
[]
[null,null,null,null,null,"Maximum",{"$f":"MAX(G179:G328)","v":1368.3835175141053}]
[null,null,null,null,null,"Empfohlen",{"$f":"INDEX(F179:F328,MATCH(G176,G179:G328,0))","v":1.2}]
[null,null,null,null,null,{"$f":"G48","v":1.2},{"$f":"G67","v":1368.3835175141053}]
[null,null,null,null,null,0.1,-552.76020754910542]
[null,null,null,null,null,0.2,-332.48789001815538]
[null,null,null,null,null,0.3,-112.2155724872058]
[null,null,null,null,null,0.4,108.05674504374406]
[null,null,null,null,null,0.5,328.32906257469403]
[null,null,null,null,null,0.6,548.60138010564401]
[null,null,null,null,null,0.7,768.87369763659308]
[null,null,null,null,null,0.8,989.14601516754328]
[null,null,null,null,null,0.9,1209.418332698493]
[null,null,null,null,null,1,1361.481694806866]
[null,null,null,null,null,1.1000000000000001,1366.9846797653331]
[null,null,null,null,null,1.2,1368.3835175141053]
[null,null,null,null,null,1.3,1366.1818791955138]
[null,null,null,null,null,1.4,1360.788139435529]
[null,null,null,null,null,1.5,1352.5388574790577]
[null,null,null,null,null,1.6,1341.71530499456]
[null,null,null,null,null,1.7,1328.5554028973838]
[null,null,null,null,null,1.8,1313.2625358312998]
[null,null,null,null,null,1.9,1296.0121880369707]
[null,null,null,null,null,2,1276.9570246846379]
[null,null,null,null,null,2.1,1256.2308418715775]
[null,null,null,null,null,2.2000000000000002,1233.9516787129814]
[null,null,null,null,null,2.2999999999999998,1210.2242990412597]
[null,null,null,null,null,2.4,1185.1421920953962]
[null,null,null,null,null,2.5,1158.7892014667896]
[null,null,null,null,null,2.6,1131.2408633923451]
[null,null,null,null,null,2.7,1102.5655153740954]
[null,null,null,null,null,2.8,1072.8252215384073]
[null,null,null,null,null,2.9,1042.0765504542069]
[null,null,null,null,null,3,1010.371233182268]
[null,null,null,null,null,3.1,977.75672335309991]
[null,null,null,null,null,3.2,944.27667653217395]
[null,null,null,null,null,3.3,909.97136264935398]
[null,null,null,null,null,3.4,874.8780225733899]
[null,null,null,null,null,3.5,839.03117780777393]
[null,null,null,null,null,3.6,829.91388101966186]
[null,null,null,null,null,3.7,820.10501144720729]
[null,null,null,null,null,3.8,809.63242406412246]
[null,null,null,null,null,3.9,798.52215269417502]
[null,null,null,null,null,4,786.79857246887877]
[null,null,null,null,null,4.0999999999999996,774.4845441140551]
[null,null,null,null,null,4.2,761.60154248928484]
[null,null,null,null,null,4.3,748.16977143114673]
[null,null,null,null,null,4.4000000000000004,734.20826664292326]
[null,null,null,null,null,4.5,719.73498811691206]
[null,null,null,null,null,4.5999999999999996,704.76690336245701]
[null,null,null,null,null,4.7,689.32006253329018]
[null,null,null,null,null,4.8,673.40966639757607]
[null,null,null,null,null,4.9000000000000004,657.0501279668988]
[null,null,null,null,null,5,640.25512849236839]
[null,null,null,null,null,5.0999999999999996,623.03766844484016]
[null,null,null,null,null,5.2,605.41011401750438]
[null,null,null,null,null,5.3,587.38423962248089]
[null,null,null,null,null,5.4,568.9712667951826]
[null,null,null,null,null,5.5,550.18189987086953]
[null,null,null,null,null,5.6,531.02635875464875]
[null,null,null,null,null,5.7,511.51440906937569]
[null,null,null,null,null,5.8,491.65538993327755]
[null,null,null,null,null,5.9,471.45823959119843]
[null,null,null,null,null,6,450.93151909881999]
[null,null,null,null,null,6.1,430.0834342375656]
[null,null,null,null,null,6.2,408.92185581911326]
[null,null,null,null,null,6.3,387.45433852184215]
[null,null,null,null,null,6.4,365.6881383869295]
[null,null,null,null,null,6.5,343.63022908878884]
[null,null,null,null,null,6.6,321.28731708323721]
[null,null,null,null,null,6.7,298.6658557265655]
[null,null,null,null,null,6.8,275.77205844969103]
[null,null,null,null,null,6.9,252.61191106354818]
[null,null,null,null,null,7,229.19118326472926]
[null,null,null,null,null,7.1,205.51543940399824]
[null,null,null,null,null,7.2,181.59004857463333]
[null,null,null,null,null,7.3,157.4201940722578]
[null,null,null,null,null,7.4,133.01088227355285]
[null,null,null,null,null,7.5,108.36695097670781]
[null,null,null,null,null,7.6,83.493077243081643]
[null,null,null,null,null,7.7,58.393784776051689]
[null,null,null,null,null,7.8,33.073450869884255]
[null,null,null,null,null,7.9,7.5363129590514291]
[null,null,null,null,null,8,-18.213525204468169]
[null,null,null,null,null,8.1,-44.17208772023514]
[null,null,null,null,null,8.1999999999999993,-70.335521031473036]
[null,null,null,null,null,8.3000000000000007,-96.700088718458574]
[null,null,null,null,null,8.4,-123.26216657347322]
[null,null,null,null,null,8.5,-150.01823793878793]
[null,null,null,null,null,8.6,-176.96488929074621]
[null,null,null,null,null,8.6999999999999993,-204.098806054335]
[null,null,null,null,null,8.8000000000000007,-231.41676863356042]
[null,null,null,null,null,8.9,-258.91564864432803]
[null,null,null,null,null,9,-286.59240533722186]
[null,null,null,null,null,9.1,-314.44408219869365]
[null,null,null,null,null,9.1999999999999993,-342.46780371989735]
[null,null,null,null,null,9.3000000000000007,-370.66077232309181]
[null,null,null,null,null,9.4,-399.02026543649845]
[null,null,null,null,null,9.5,-427.54363270863905]
[null,null,null,null,null,9.6,-456.22829335451388]
[null,null,null,null,null,9.6999999999999993,-485.07173362567846]
[null,null,null,null,null,9.8000000000000007,-514.07150439751058]
[null,null,null,null,null,9.9,-543.22521886696268]
[null,null,null,null,null,10,-572.5305503546042]
[null,null,null,null,null,10.1,-601.98523020560606]
[null,null,null,null,null,10.199999999999999,-631.58704578361358]
[null,null,null,null,null,10.3,-661.33383855333159]
[null,null,null,null,null,10.4,-691.22350224639013]
[null,null,null,null,null,10.5,-721.25398110649621]
[null,null,null,null,null,10.6,-751.42326820964081]
[null,null,null,null,null,10.7,-781.72940385539914]
[null,null,null,null,null,10.8,-812.17047402577373]
[null,null,null,null,null,10.9,-842.74460890809496]
[null,null,null,null,null,11,-873.4499814787232]
[null,null,null,null,null,11.1,-904.28480614467117]
[null,null,null,null,null,11.2,-935.24733744004698]
[null,null,null,null,null,11.3,-966.33586877485141]
[null,null,null,null,null,11.4,-997.54873123346624]
[null,null,null,null,null,11.5,-1028.8842924204218]
[null,null,null,null,null,11.6,-1060.3409553513411]
[null,null,null,null,null,11.7,-1091.9171573866843]
[null,null,null,null,null,11.8,-1123.6113692065628]
[null,null,null,null,null,11.9,-1155.4220938244325]
[null,null,null,null,null,12,-1187.3478656381048]
[null,null,null,null,null,12.1,-1219.3872495161813]
[null,null,null,null,null,12.2,-1251.5388399185576]
[null,null,null,null,null,12.3,-1283.8012600490802]
[null,null,null,null,null,12.4,-1316.1731610393326]
[null,null,null,null,null,12.5,-1348.6532211618687]
[null,null,null,null,null,12.6,-1381.2401450717698]
[null,null,null,null,null,12.7,-1413.9326630752621]
[null,null,null,null,null,12.8,-1446.7295304240615]
[null,null,null,null,null,12.9,-1479.629526634686]
[null,null,null,null,null,13,-1512.6314548312621]
[null,null,null,null,null,13.1,-1545.7341411112175]
[null,null,null,null,null,13.2,-1578.9364339325984]
[null,null,null,null,null,13.3,-1612.2372035222397]
[null,null,null,null,null,13.4,-1645.6353413040706]
[null,null,null,null,null,13.5,-1679.1297593463169]
[null,null,null,null,null,13.6,-1712.7193898274163]
[null,null,null,null,null,13.7,-1746.4031845192512]
[null,null,null,null,null,13.8,-1780.1801142876247]
[null,null,null,null,null,13.9,-1814.0491686087516]
[null,null,null,null,null,14,-1848.0093551015379]
[null,null,null,null,null,14.1,-1882.0596990747763]
[null,null,null,null,null,14.2,-1916.1992430888204]
[null,null,null,null,null,14.3,-1950.4270465310947]
[null,null,null,null,null,14.4,-1984.7421852049592]
[null,null,null,null,null,14.5,-2019.143750931391]
[null,null,null,null,null,14.6,-2053.6308511629722]
[null,null,null,null,null,14.7,-2088.2026086098704]
[null,null,null,null,null,14.8,-2122.8581608770619]
[null,null,null,null,null,14.9,-2157.5966601127984]
[null,null,null,null,null,15,-2192.417272667426]

{"sheet":"Berechnungen","index":1,"n_rows":84,"n_cols":31,"rows_kept":84,"cut":false,"hidden":true,"merged":[[0,2,0,3]]}
[]
["empfohlene Größe",null,null,null,null,null,null,null,null,null,null,null,null,null,null,null,"gewählte Größe",null,null,null,null,"Erlös aus verkauftem, nicht selbst konsumiertem Strom"]
["Jahre","Vergütung","Energieertrag","Energieerlös","Ersparnis ","Erlös","Ausgaben","Tilgung","Zinsen","Tilg.+Zinsen","Cash Flow","Barwerte","Kapitalwert","Zeit",null,null,"Jahre","Vergütung","Energieertrag","Energieerlös","Ersparnis ","Erlös","Ausgaben","Tilgung","Zinsen","Tilg.+Zinsen","Cash Flow","Barwerte","Kapitalwert","Zeit"]
[null,"[€/kWh]","[kWh]","[€]","EUR","EUR","[€]","[€]","[€]","[€]","[€]","[€]","[€]",null,null,null,null,"[€/kWh]","[kWh]","[€]","EUR","EUR","[€]","[€]","[€]","[€]","[€]","[€]","[€]"]
[0,null,null,null,null,null,{"$f":"F63*Eingabe!G36","v":2700},null,null,{"$f":"H5+I5","v":0},{"$f":"D5-G5-J5","v":-2700},{"$f":"K5/(1+Eingabe!N$37)^A5","v":-2700},{"$f":"L5","v":-2700},{"$f":"IF(M5<0,O5,0)","v":1},1,null,0,null,null,null,null,null,{"$f":"Eingabe!G34*Eingabe!G36","v":2700},null,null,{"$f":"X5+Y5","v":0},{"$f":"T5-W5-Z5","v":-2700},{"$f":"AA5/(1+Eingabe!N$37)^Q5","v":-2700},{"$f":"AB5","v":-2700},{"$f":"IF(AC5<0,AE5,0)","v":1},1]
[1,{"$f":"Eingabe!N$30/100*(1+Eingabe!N$36)^A5","v":7.0000000000000007E-2},{"$f":"Eingabe!$G$63/$F$38*$F$39*1/(1+Eingabe!N$33)^A5","v":1190.0024470588237},{"$f":"+E6+F6","v":221.03611311237199},{"$f":"Eingabe!$N$29/100*(1+Eingabe!$N$36)^A6*C6*Berechnungen!$F$45","v":209.68755321584987},{"$f":"B6*C6*(1-$F$45)","v":11.348559896522115},{"$f":"$F$61*(Eingabe!N$32)*(1+(Eingabe!N$35))^Berechnungen!A5","v":10.8},{"$f":"+X6/$F$38*$F$39","v":0},{"$f":"+Y6/$F$38*$F$39","v":0},0,210.23611311237198,{"$f":"K6/(1+Eingabe!N$37)^A6","v":206.11383638467842},{"$f":"M5+L6","v":-2493.8861636153215},2,2,null,1,{"$f":"Eingabe!N$30/100*(1+Eingabe!N$36)^Q5","v":7.0000000000000007E-2},{"$f":"Eingabe!$G$63*1/(1+Eingabe!N$33)^Q5","v":1190.0024470588237},{"$f":"+U6+V6","v":221.03611311237199},{"$f":"Eingabe!$N$29/100*(1+Eingabe!$N$36)^Q6*S6*$G$45","v":209.68755321584987},{"$f":"R6*S6*(1-$G$45)","v":11.348559896522115},{"$f":"Eingabe!G$32*(Eingabe!N$32)*(1+(Eingabe!N$35))^Berechnungen!Q5","v":10.8},{"$f":"IF(AND(Eingabe!$I$36<=Berechnungen!Q6,(Eingabe!$I$36+Eingabe!$I$37)>Q6),(Eingabe!$G$34*(1-Eingabe!$G$36))/Eingabe!$I$37,0)","v":0},{"$f":"((Eingabe!$G$34*(1-Eingabe!$G$36))-SUM($X$5:X5))*Eingabe!$H$36","v":0},0,210.23611311237198,{"$f":"AA6/(1+Eingabe!N$37)^Q6","v":206.11383638467842},{"$f":"AC5+AB6","v":-2493.8861636153215},{"$f":"IF(AC6<0,AE6,0)","v":2},2]
[2,{"$f":"Eingabe!N$30/100*(1+Eingabe!N$36)^A6","v":7.1400000000000005E-2},{"$f":"Eingabe!$G$63/$F$38*$F$39*1/(1+Eingabe!N$33)^A6","v":1184.0820368744517},224.33515957673578,{"$f":"Eingabe!$N$29/100*(1+Eingabe!$N$36)^A7*C7*Berechnungen!$F$45","v":212.8172181892208},{"$f":"B7*C7*(1-$F$45)","v":11.517941387514986},{"$f":"$F$61*(Eingabe!N$32)*(1+(Eingabe!N$35))^Berechnungen!A6","v":11.016000000000002},{"$f":"+X7/$F$38*$F$39","v":0},{"$f":"+Y7/$F$38*$F$39","v":0},0,213.31915957673579,{"$f":"K7/(1+Eingabe!N$37)^A7","v":205.03571662508244},-2288.8504469902391,3,3,null,2,{"$f":"Eingabe!N$30/100*(1+Eingabe!N$36)^Q6","v":7.1400000000000005E-2},{"$f":"Eingabe!$G$63*1/(1+Eingabe!N$33)^Q6","v":1184.0820368744517},{"$f":"+U7+V7","v":224.33515957673578},{"$f":"Eingabe!$N$29/100*(1+Eingabe!$N$36)^Q7*S7*$G$45","v":212.8172181892208},{"$f":"R7*S7*(1-$G$45)","v":11.517941387514986},{"$f":"Eingabe!G$32*(Eingabe!N$32)*(1+(Eingabe!N$35))^Berechnungen!Q6","v":11.016000000000002},{"$f":"IF(AND(Eingabe!$I$36<=Berechnungen!Q7,(Eingabe!$I$36+Eingabe!$I$37)>Q7),(Eingabe!$G$34*(1-Eingabe!$G$36))/Eingabe!$I$37,0)","v":0},{"$f":"((Eingabe!$G$34*(1-Eingabe!$G$36))-SUM($X$5:X6))*Eingabe!$H$36","v":0},0,213.31915957673579,{"$f":"AA7/(1+Eingabe!N$37)^Q7","v":205.03571662508244},{"$f":"AC6+AB7","v":-2288.8504469902391},{"$f":"IF(AC7<0,AE7,0)","v":3},3]
[3,{"$f":"Eingabe!N$30/100*(1+Eingabe!N$36)^A7","v":7.2828000000000004E-2},{"$f":"Eingabe!$G$63/$F$38*$F$39*1/(1+Eingabe!N$33)^A7","v":1178.1910814671162},227.68344554056767,{"$f":"Eingabe!$N$29/100*(1+Eingabe!$N$36)^A8*C8*Berechnungen!$F$45","v":215.99359458010471},11.689850960462971,{"$f":"$F$61*(Eingabe!N$32)*(1+(Eingabe!N$35))^Berechnungen!A7","v":11.236320000000001},0,0,0,216.44712554056767,{"$f":"K8/(1+Eingabe!N$37)^A8","v":203.96296064538495},-2084.8874863448541,4,4,null,3,{"$f":"Eingabe!N$30/100*(1+Eingabe!N$36)^Q7","v":7.2828000000000004E-2},{"$f":"Eingabe!$G$63*1/(1+Eingabe!N$33)^Q7","v":1178.1910814671162},227.68344554056767,{"$f":"Eingabe!$N$29/100*(1+Eingabe!$N$36)^Q8*S8*$G$45","v":215.99359458010471},11.689850960462971,{"$f":"Eingabe!G$32*(Eingabe!N$32)*(1+(Eingabe!N$35))^Berechnungen!Q7","v":11.236320000000001},{"$f":"IF(AND(Eingabe!$I$36<=Berechnungen!Q8,(Eingabe!$I$36+Eingabe!$I$37)>Q8),(Eingabe!$G$34*(1-Eingabe!$G$36))/Eingabe!$I$37,0)","v":0},{"$f":"((Eingabe!$G$34*(1-Eingabe!$G$36))-SUM($X$5:X7))*Eingabe!$H$36","v":0},0,216.44712554056767,{"$f":"AA8/(1+Eingabe!N$37)^Q8","v":203.96296064538495},{"$f":"AC7+AB8","v":-2084.8874863448541},4,4]
[4,{"$f":"Eingabe!N$30/100*(1+Eingabe!N$36)^A8","v":7.4284559999999999E-2},{"$f":"Eingabe!$G$63/$F$38*$F$39*1/(1+Eingabe!N$33)^A8","v":1172.3294342956381},231.08170592177021,{"$f":"Eingabe!$N$29/100*(1+Eingabe!$N$36)^A9*C9*Berechnungen!$F$45","v":219.21737957383763},11.864326347932566,{"$f":"$F$61*(Eingabe!N$32)*(1+(Eingabe!N$35))^Berechnungen!A8","v":11.461046400000001},0,0,0,219.62065952177022,{"$f":"K9/(1+Eingabe!N$37)^A9","v":202.89554176011384},-1881.9919445847402,5,5,null,4,{"$f":"Eingabe!N$30/100*(1+Eingabe!N$36)^Q8","v":7.4284559999999999E-2},{"$f":"Eingabe!$G$63*1/(1+Eingabe!N$33)^Q8","v":1172.3294342956381},231.08170592177021,{"$f":"Eingabe!$N$29/100*(1+Eingabe!$N$36)^Q9*S9*$G$45","v":219.21737957383763},11.864326347932566,{"$f":"Eingabe!G$32*(Eingabe!N$32)*(1+(Eingabe!N$35))^Berechnungen!Q8","v":11.461046400000001},{"$f":"IF(AND(Eingabe!$I$36<=Berechnungen!Q9,(Eingabe!$I$36+Eingabe!$I$37)>Q9),(Eingabe!$G$34*(1-Eingabe!$G$36))/Eingabe!$I$37,0)","v":0},{"$f":"((Eingabe!$G$34*(1-Eingabe!$G$36))-SUM($X$5:X8))*Eingabe!$H$36","v":0},0,219.62065952177022,{"$f":"AA9/(1+Eingabe!N$37)^Q9","v":202.89554176011384},{"$f":"AC8+AB9","v":-1881.9919445847402},5,5]
[5,{"$f":"Eingabe!N$30/100*(1+Eingabe!N$36)^A9","v":7.5770251199999999E-2},{"$f":"Eingabe!$G$63/$F$38*$F$39*1/(1+Eingabe!N$33)^A9","v":1166.496949547899},234.53068660716986,{"$f":"Eingabe!$N$29/100*(1+Eingabe!$N$36)^A10*C10*Berechnungen!$F$45","v":222.48928076150693},12.04140584566291,{"$f":"$F$61*(Eingabe!N$32)*(1+(Eingabe!N$35))^Berechnungen!A9","v":11.690267328000001},0,0,0,222.84041927916985,{"$f":"K10/(1+Eingabe!N$37)^A10","v":201.8334334165605},-1680.1585111681798,6,6,null,5,{"$f":"Eingabe!N$30/100*(1+Eingabe!N$36)^Q9","v":7.5770251199999999E-2},{"$f":"Eingabe!$G$63*1/(1+Eingabe!N$33)^Q9","v":1166.496949547899},234.53068660716986,{"$f":"Eingabe!$N$29/100*(1+Eingabe!$N$36)^Q10*S10*$G$45","v":222.48928076150693},12.04140584566291,{"$f":"Eingabe!G$32*(Eingabe!N$32)*(1+(Eingabe!N$35))^Berechnungen!Q9","v":11.690267328000001},{"$f":"IF(AND(Eingabe!$I$36<=Berechnungen!Q10,(Eingabe!$I$36+Eingabe!$I$37)>Q10),(Eingabe!$G$34*(1-Eingabe!$G$36))/Eingabe!$I$37,0)","v":0},{"$f":"((Eingabe!$G$34*(1-Eingabe!$G$36))-SUM($X$5:X9))*Eingabe!$H$36","v":0},0,222.84041927916985,{"$f":"AA10/(1+Eingabe!N$37)^Q10","v":201.8334334165605},{"$f":"AC9+AB10","v":-1680.1585111681798},6,6]
[6,{"$f":"Eingabe!N$30/100*(1+Eingabe!N$36)^A10","v":7.7285656224000007E-2},{"$f":"Eingabe!$G$63/$F$38*$F$39*1/(1+Eingabe!N$33)^A10","v":1160.6934821372131},238.03114461623213,{"$f":"Eingabe!$N$29/100*(1+Eingabe!$N$36)^A11*C11*Berechnungen!$F$45","v":225.81001629526082},12.221128320971312,{"$f":"$F$61*(Eingabe!N$32)*(1+(Eingabe!N$35))^Berechnungen!A10+IF(Eingabe!M31=\"viermal\",Eingabe!N31,0)","v":11.924072674560001},0,0,0,226.10707194167213,{"$f":"K11/(1+Eingabe!N$37)^A11","v":200.77660919411935},-1479.3819019740604,7,7,null,6,{"$f":"Eingabe!N$30/100*(1+Eingabe!N$36)^Q10","v":7.7285656224000007E-2},{"$f":"Eingabe!$G$63*1/(1+Eingabe!N$33)^Q10","v":1160.6934821372131},238.03114461623213,{"$f":"Eingabe!$N$29/100*(1+Eingabe!$N$36)^Q11*S11*$G$45","v":225.81001629526082},12.221128320971312,{"$f":"Eingabe!G$32*(Eingabe!N$32)*(1+(Eingabe!N$35))^Berechnungen!Q10+IF(Eingabe!M31=\"viermal\",Eingabe!N31,0)","v":11.924072674560001},{"$f":"IF(AND(Eingabe!$I$36<=Berechnungen!Q11,(Eingabe!$I$36+Eingabe!$I$37)>Q11),(Eingabe!$G$34*(1-Eingabe!$G$36))/Eingabe!$I$37,0)","v":0},{"$f":"((Eingabe!$G$34*(1-Eingabe!$G$36))-SUM($X$5:X10))*Eingabe!$H$36","v":0},0,226.10707194167213,{"$f":"AA11/(1+Eingabe!N$37)^Q11","v":200.77660919411935},-1479.3819019740604,7,7]
[7,{"$f":"Eingabe!N$30/100*(1+Eingabe!N$36)^A11","v":7.8831369348480007E-2},{"$f":"Eingabe!$G$63/$F$38*$F$39*1/(1+Eingabe!N$33)^A11","v":1154.9188876987196},241.58384826722062,{"$f":"Eingabe!$N$29/100*(1+Eingabe!$N$36)^A12*C12*Berechnungen!$F$45","v":229.18031504593631},12.40353322128432,{"$f":"$F$61*(Eingabe!N$32)*(1+(Eingabe!N$35))^Berechnungen!A11+IF(Eingabe!M31=\"dreimal\",Eingabe!N31,0)","v":12.162554128051202},0,0,0,229.42129413916942,{"$f":"K12/(1+Eingabe!N$37)^A12","v":199.7250428036306},-1279.6568591704297,8,8,null,7,{"$f":"Eingabe!N$30/100*(1+Eingabe!N$36)^Q11","v":7.8831369348480007E-2},{"$f":"Eingabe!$G$63*1/(1+Eingabe!N$33)^Q11","v":1154.9188876987196},241.58384826722062,{"$f":"Eingabe!$N$29/100*(1+Eingabe!$N$36)^Q12*S12*$G$45","v":229.18031504593631},12.40353322128432,{"$f":"Eingabe!G$32*(Eingabe!N$32)*(1+(Eingabe!N$35))^Berechnungen!Q11+IF(Eingabe!M31=\"dreimal\",Eingabe!N31,0)","v":12.162554128051202},{"$f":"IF(AND(Eingabe!$I$36<=Berechnungen!Q12,(Eingabe!$I$36+Eingabe!$I$37)>Q12),(Eingabe!$G$34*(1-Eingabe!$G$36))/Eingabe!$I$37,0)","v":0},{"$f":"((Eingabe!$G$34*(1-Eingabe!$G$36))-SUM($X$5:X11))*Eingabe!$H$36","v":0},0,229.42129413916942,{"$f":"AA12/(1+Eingabe!N$37)^Q12","v":199.7250428036306},-1279.6568591704297,8,8]
[8,{"$f":"Eingabe!N$30/100*(1+Eingabe!N$36)^A12","v":8.0407996735449599E-2},{"$f":"Eingabe!$G$63/$F$38*$F$39*1/(1+Eingabe!N$33)^A12","v":1149.1730225857909},245.18957734583597,{"$f":"Eingabe!$N$29/100*(1+Eingabe!$N$36)^A13*C13*Berechnungen!$F$45","v":232.60091676303995},12.588660582796027,{"$f":"$F$61*(Eingabe!N$32)*(1+(Eingabe!N$35))^Berechnungen!A12","v":12.405805210612224},0,0,0,232.78377213522376,{"$f":"K13/(1+Eingabe!N$37)^A13","v":198.67870808672649},-1080.9781510837033,9,9,null,8,{"$f":"Eingabe!N$30/100*(1+Eingabe!N$36)^Q12","v":8.0407996735449599E-2},{"$f":"Eingabe!$G$63*1/(1+Eingabe!N$33)^Q12","v":1149.1730225857909},245.18957734583597,{"$f":"Eingabe!$N$29/100*(1+Eingabe!$N$36)^Q13*S13*$G$45","v":232.60091676303995},12.588660582796027,{"$f":"Eingabe!G$32*(Eingabe!N$32)*(1+(Eingabe!N$35))^Berechnungen!Q12","v":12.405805210612224},{"$f":"IF(AND(Eingabe!$I$36<=Berechnungen!Q13,(Eingabe!$I$36+Eingabe!$I$37)>Q13),(Eingabe!$G$34*(1-Eingabe!$G$36))/Eingabe!$I$37,0)","v":0},{"$f":"((Eingabe!$G$34*(1-Eingabe!$G$36))-SUM($X$5:X12))*Eingabe!$H$36","v":0},0,232.78377213522376,{"$f":"AA13/(1+Eingabe!N$37)^Q13","v":198.67870808672649},-1080.9781510837033,9,9]
[9,{"$f":"Eingabe!N$30/100*(1+Eingabe!N$36)^A13","v":8.2016156670158588E-2},{"$f":"Eingabe!$G$63/$F$38*$F$39*1/(1+Eingabe!N$33)^A13","v":1143.4557438664585},248.84912327637079,{"$f":"Eingabe!$N$29/100*(1+Eingabe!$N$36)^A14*C14*Berechnungen!$F$45","v":236.07257223711511},12.776551039255668,{"$f":"$F$61*(Eingabe!N$32)*(1+(Eingabe!N$35))^Berechnungen!A13","v":12.653921314824469},0,0,0,236.19520196154633,{"$f":"K14/(1+Eingabe!N$37)^A14","v":197.63757901517997},-883.34057206852333,10,10,null,9,{"$f":"Eingabe!N$30/100*(1+Eingabe!N$36)^Q13","v":8.2016156670158588E-2},{"$f":"Eingabe!$G$63*1/(1+Eingabe!N$33)^Q13","v":1143.4557438664585},248.84912327637079,{"$f":"Eingabe!$N$29/100*(1+Eingabe!$N$36)^Q14*S14*$G$45","v":236.07257223711511},12.776551039255668,{"$f":"Eingabe!G$32*(Eingabe!N$32)*(1+(Eingabe!N$35))^Berechnungen!Q13","v":12.653921314824469},{"$f":"IF(AND(Eingabe!$I$36<=Berechnungen!Q14,(Eingabe!$I$36+Eingabe!$I$37)>Q14),(Eingabe!$G$34*(1-Eingabe!$G$36))/Eingabe!$I$37,0)","v":0},{"$f":"((Eingabe!$G$34*(1-Eingabe!$G$36))-SUM($X$5:X13))*Eingabe!$H$36","v":0},0,236.19520196154633,{"$f":"AA14/(1+Eingabe!N$37)^Q14","v":197.63757901517997},-883.34057206852333,10,10]
[10,{"$f":"Eingabe!N$30/100*(1+Eingabe!N$36)^A14","v":8.3656479803561765E-2},{"$f":"Eingabe!$G$63/$F$38*$F$39*1/(1+Eingabe!N$33)^A14","v":1137.7669093198595},252.56328929542121,{"$f":"Eingabe!$N$29/100*(1+Eingabe!$N$36)^A15*C15*Berechnungen!$F$45","v":239.59604346453486},12.967245830886354,{"$f":"$F$61*(Eingabe!N$32)*(1+(Eingabe!N$35))^Berechnungen!A14+IF(Eingabe!M31=\"zweimal\",Eingabe!N31,0)","v":12.906999741120957},0,0,0,239.65628955430026,{"$f":"K15/(1+Eingabe!N$37)^A15","v":196.60162969025816},-686.73894237826516,11,11,null,10,{"$f":"Eingabe!N$30/100*(1+Eingabe!N$36)^Q14","v":8.3656479803561765E-2},{"$f":"Eingabe!$G$63*1/(1+Eingabe!N$33)^Q14","v":1137.7669093198595},252.56328929542121,{"$f":"Eingabe!$N$29/100*(1+Eingabe!$N$36)^Q15*S15*$G$45","v":239.59604346453486},12.967245830886354,{"$f":"Eingabe!G$32*(Eingabe!N$32)*(1+(Eingabe!N$35))^Berechnungen!Q14+IF(Eingabe!M31=\"zweimal\",Eingabe!N31,0)","v":12.906999741120957},{"$f":"IF(AND(Eingabe!$I$36<=Berechnungen!Q15,(Eingabe!$I$36+Eingabe!$I$37)>Q15),(Eingabe!$G$34*(1-Eingabe!$G$36))/Eingabe!$I$37,0)","v":0},{"$f":"((Eingabe!$G$34*(1-Eingabe!$G$36))-SUM($X$5:X14))*Eingabe!$H$36","v":0},0,239.65628955430026,{"$f":"AA15/(1+Eingabe!N$37)^Q15","v":196.60162969025816},-686.73894237826516,11,11]
[11,{"$f":"Eingabe!N$30/100*(1+Eingabe!N$36)^A15","v":8.5329609399633008E-2},{"$f":"Eingabe!$G$63/$F$38*$F$39*1/(1+Eingabe!N$33)^A15","v":1132.106377432696},256.33289062818858,{"$f":"Eingabe!$N$29/100*(1+Eingabe!$N$36)^A16*C16*Berechnungen!$F$45","v":243.17210381475169},13.160786813436898,{"$f":"$F$61*(Eingabe!N$32)*(1+(Eingabe!N$35))^Berechnungen!A15","v":13.165139735943377},0,0,0,243.16775089224521,{"$f":"K16/(1+Eingabe!N$37)^A16","v":195.57083434207712},-491.16810803618807,12,12,null,11,{"$f":"Eingabe!N$30/100*(1+Eingabe!N$36)^Q15","v":8.5329609399633008E-2},{"$f":"Eingabe!$G$63*1/(1+Eingabe!N$33)^Q15","v":1132.106377432696},256.33289062818858,{"$f":"Eingabe!$N$29/100*(1+Eingabe!$N$36)^Q16*S16*$G$45","v":243.17210381475169},13.160786813436898,{"$f":"Eingabe!G$32*(Eingabe!N$32)*(1+(Eingabe!N$35))^Berechnungen!Q15","v":13.165139735943377},{"$f":"IF(AND(Eingabe!$I$36<=Berechnungen!Q16,(Eingabe!$I$36+Eingabe!$I$37)>Q16),(Eingabe!$G$34*(1-Eingabe!$G$36))/Eingabe!$I$37,0)","v":0},{"$f":"((Eingabe!$G$34*(1-Eingabe!$G$36))-SUM($X$5:X15))*Eingabe!$H$36","v":0},0,243.16775089224521,{"$f":"AA16/(1+Eingabe!N$37)^Q16","v":195.57083434207712},-491.16810803618807,12,12]
[12,{"$f":"Eingabe!N$30/100*(1+Eingabe!N$36)^A16","v":8.703620158762565E-2},{"$f":"Eingabe!$G$63/$F$38*$F$39*1/(1+Eingabe!N$33)^A16","v":1126.4740073957175},260.15875466741539,{"$f":"Eingabe!$N$29/100*(1+Eingabe!$N$36)^A17*C17*Berechnungen!$F$45","v":246.80153820004662},13.35721646736879,{"$f":"$F$61*(Eingabe!N$32)*(1+(Eingabe!N$35))^Berechnungen!A16+IF(Eingabe!M31=\"viermal\",Eingabe!N31,0)","v":13.428442530662243},0,0,0,246.73031213675316,{"$f":"K17/(1+Eingabe!N$37)^A17","v":194.54516732896178},-296.62294070722629,13,13,null,12,{"$f":"Eingabe!N$30/100*(1+Eingabe!N$36)^Q16","v":8.703620158762565E-2},{"$f":"Eingabe!$G$63*1/(1+Eingabe!N$33)^Q16","v":1126.4740073957175},260.15875466741539,{"$f":"Eingabe!$N$29/100*(1+Eingabe!$N$36)^Q17*S17*$G$45","v":246.80153820004662},13.35721646736879,{"$f":"Eingabe!G$32*(Eingabe!N$32)*(1+(Eingabe!N$35))^Berechnungen!Q16+IF(Eingabe!M31=\"viermal\",Eingabe!N31,0)","v":13.428442530662243},{"$f":"IF(AND(Eingabe!$I$36<=Berechnungen!Q17,(Eingabe!$I$36+Eingabe!$I$37)>Q17),(Eingabe!$G$34*(1-Eingabe!$G$36))/Eingabe!$I$37,0)","v":0},{"$f":"((Eingabe!$G$34*(1-Eingabe!$G$36))-SUM($X$5:X16))*Eingabe!$H$36","v":0},{"$f":"X17+Y17","v":0},246.73031213675316,{"$f":"AA17/(1+Eingabe!N$37)^Q17","v":194.54516732896178},-296.62294070722629,13,13]
[13,{"$f":"Eingabe!N$30/100*(1+Eingabe!N$36)^A17","v":8.877692561937818E-2},{"$f":"Eingabe!$G$63/$F$38*$F$39*1/(1+Eingabe!N$33)^A17","v":1120.8696591002169},264.04172115498886,{"$f":"Eingabe!$N$29/100*(1+Eingabe!$N$36)^A18*C18*Berechnungen!$F$45","v":250.48514324780857},13.556577907180273,{"$f":"$F$61*(Eingabe!N$32)*(1+(Eingabe!N$35))^Berechnungen!A17+IF(Eingabe!M31=\"einmal\",Eingabe!N31,0)","v":1013.6970113812755},0,0,0,-749.65529022628664,{"$f":"K18/(1+Eingabe!N$37)^A18","v":-579.50792194324811},-876.13086265047446,14,14,null,13,{"$f":"Eingabe!N$30/100*(1+Eingabe!N$36)^Q17","v":8.877692561937818E-2},{"$f":"Eingabe!$G$63*1/(1+Eingabe!N$33)^Q17","v":1120.8696591002169},264.04172115498886,{"$f":"Eingabe!$N$29/100*(1+Eingabe!$N$36)^Q18*S18*$G$45","v":250.48514324780857},13.556577907180273,{"$f":"Eingabe!G$32*(Eingabe!N$32)*(1+(Eingabe!N$35))^Berechnungen!Q17+IF(Eingabe!M31=\"einmal\",Eingabe!N31,0)","v":1013.6970113812755},{"$f":"IF(AND(Eingabe!$I$36<=Berechnungen!Q18,(Eingabe!$I$36+Eingabe!$I$37)>Q18),(Eingabe!$G$34*(1-Eingabe!$G$36))/Eingabe!$I$37,0)","v":0},{"$f":"((Eingabe!$G$34*(1-Eingabe!$G$36))-SUM($X$5:X17))*Eingabe!$H$36","v":0},0,-749.65529022628664,{"$f":"AA18/(1+Eingabe!N$37)^Q18","v":-579.50792194324811},-876.13086265047446,14,14]
[14,{"$f":"Eingabe!N$30/100*(1+Eingabe!N$36)^A18","v":9.0552464131765736E-2},{"$f":"Eingabe!$G$63/$F$38*$F$39*1/(1+Eingabe!N$33)^A18","v":1115.2931931345443},267.98264236625732,{"$f":"Eingabe!$N$29/100*(1+Eingabe!$N$36)^A19*C19*Berechnungen!$F$45","v":254.22372747538782},13.758914890869528,{"$f":"$F$61*(Eingabe!N$32)*(1+(Eingabe!N$35))^Berechnungen!A18+IF(Eingabe!M31=\"dreimal\",Eingabe!N31,0)","v":13.970951608900998},0,0,0,254.01169075735632,{"$f":"K19/(1+Eingabe!N$37)^A19","v":192.50911637844439},-683.62174627203012,15,15,null,14,{"$f":"Eingabe!N$30/100*(1+Eingabe!N$36)^Q18","v":9.0552464131765736E-2},{"$f":"Eingabe!$G$63*1/(1+Eingabe!N$33)^Q18","v":1115.2931931345443},267.98264236625732,{"$f":"Eingabe!$N$29/100*(1+Eingabe!$N$36)^Q19*S19*$G$45","v":254.22372747538782},13.758914890869528,{"$f":"Eingabe!G$32*(Eingabe!N$32)*(1+(Eingabe!N$35))^Berechnungen!Q18+IF(Eingabe!M31=\"dreimal\",Eingabe!N31,0)","v":13.970951608900998},{"$f":"IF(AND(Eingabe!$I$36<=Berechnungen!Q19,(Eingabe!$I$36+Eingabe!$I$37)>Q19),(Eingabe!$G$34*(1-Eingabe!$G$36))/Eingabe!$I$37,0)","v":0},{"$f":"((Eingabe!$G$34*(1-Eingabe!$G$36))-SUM($X$5:X18))*Eingabe!$H$36","v":0},0,254.01169075735632,{"$f":"AA19/(1+Eingabe!N$37)^Q19","v":192.50911637844439},-683.62174627203012,15,15]
[15,{"$f":"Eingabe!N$30/100*(1+Eingabe!N$36)^A19","v":9.2363513414401063E-2},{"$f":"Eingabe!$G$63/$F$38*$F$39*1/(1+Eingabe!N$33)^A19","v":1109.7444707806412},271.98238329709704,{"$f":"Eingabe!$N$29/100*(1+Eingabe!$N$36)^A20*C20*Berechnungen!$F$45","v":258.01811146755779},13.964271829539229,{"$f":"$F$61*(Eingabe!N$32)*(1+(Eingabe!N$35))^Berechnungen!A19","v":14.250370641079019},0,0,0,257.73201265601801,{"$f":"K20/(1+Eingabe!N$37)^A20","v":191.49868179300887},-492.12306447902125,16,16,null,15,{"$f":"Eingabe!N$30/100*(1+Eingabe!N$36)^Q19","v":9.2363513414401063E-2},{"$f":"Eingabe!$G$63*1/(1+Eingabe!N$33)^Q19","v":1109.7444707806412},271.98238329709704,{"$f":"Eingabe!$N$29/100*(1+Eingabe!$N$36)^Q20*S20*$G$45","v":258.01811146755779},13.964271829539229,{"$f":"Eingabe!G$32*(Eingabe!N$32)*(1+(Eingabe!N$35))^Berechnungen!Q19","v":14.250370641079019},{"$f":"IF(AND(Eingabe!$I$36<=Berechnungen!Q20,(Eingabe!$I$36+Eingabe!$I$37)>Q20),(Eingabe!$G$34*(1-Eingabe!$G$36))/Eingabe!$I$37,0)","v":0},{"$f":"((Eingabe!$G$34*(1-Eingabe!$G$36))-SUM($X$5:X19))*Eingabe!$H$36","v":0},0,257.73201265601801,{"$f":"AA20/(1+Eingabe!N$37)^Q20","v":191.49868179300887},-492.12306447902125,16,16]
[16,{"$f":"Eingabe!N$30/100*(1+Eingabe!N$36)^A20","v":9.421078368268905E-2},{"$f":"Eingabe!$G$63/$F$38*$F$39*1/(1+Eingabe!N$33)^A20","v":1104.2233540105885},276.04182185377016,{"$f":"Eingabe!$N$29/100*(1+Eingabe!$N$36)^A21*C21*Berechnungen!$F$45","v":261.86912805662587},14.172693797144289,{"$f":"$F$61*(Eingabe!N$32)*(1+(Eingabe!N$35))^Berechnungen!A20","v":14.535378053900596},0,0,0,261.50644379986954,{"$f":"K21/(1+Eingabe!N$37)^A21","v":190.49327424531171},-301.62979023370951,17,17,null,16,{"$f":"Eingabe!N$30/100*(1+Eingabe!N$36)^Q20","v":9.421078368268905E-2},{"$f":"Eingabe!$G$63*1/(1+Eingabe!N$33)^Q20","v":1104.2233540105885},276.04182185377016,{"$f":"Eingabe!$N$29/100*(1+Eingabe!$N$36)^Q21*S21*$G$45","v":261.86912805662587},14.172693797144289,{"$f":"Eingabe!G$32*(Eingabe!N$32)*(1+(Eingabe!N$35))^Berechnungen!Q20","v":14.535378053900596},{"$f":"IF(AND(Eingabe!$I$36<=Berechnungen!Q21,(Eingabe!$I$36+Eingabe!$I$37)>Q21),(Eingabe!$G$34*(1-Eingabe!$G$36))/Eingabe!$I$37,0)","v":0},{"$f":"((Eingabe!$G$34*(1-Eingabe!$G$36))-SUM($X$5:X20))*Eingabe!$H$36","v":0},0,261.50644379986954,{"$f":"AA21/(1+Eingabe!N$37)^Q21","v":190.49327424531171},-301.62979023370951,17,17]
[17,{"$f":"Eingabe!N$30/100*(1+Eingabe!N$36)^A21","v":9.6094999356342858E-2},{"$f":"Eingabe!$G$63/$F$38*$F$39*1/(1+Eingabe!N$33)^A21","v":1098.7297054831729},280.1618490456176,{"$f":"Eingabe!$N$29/100*(1+Eingabe!$N$36)^A22*C22*Berechnungen!$F$45","v":265.77762250523233},14.384226540385256,{"$f":"$F$61*(Eingabe!N$32)*(1+(Eingabe!N$35))^Berechnungen!A21","v":14.826085614978611},0,0,0,265.33576343063896,{"$f":"K22/(1+Eingabe!N$37)^A22","v":189.49286872521509},-112.13692150849442,18,18,null,17,{"$f":"Eingabe!N$30/100*(1+Eingabe!N$36)^Q21","v":9.6094999356342858E-2},{"$f":"Eingabe!$G$63*1/(1+Eingabe!N$33)^Q21","v":1098.7297054831729},280.1618490456176,{"$f":"Eingabe!$N$29/100*(1+Eingabe!$N$36)^Q22*S22*$G$45","v":265.77762250523233},14.384226540385256,{"$f":"Eingabe!G$32*(Eingabe!N$32)*(1+(Eingabe!N$35))^Berechnungen!Q21","v":14.826085614978611},{"$f":"IF(AND(Eingabe!$I$36<=Berechnungen!Q22,(Eingabe!$I$36+Eingabe!$I$37)>Q22),(Eingabe!$G$34*(1-Eingabe!$G$36))/Eingabe!$I$37,0)","v":0},{"$f":"((Eingabe!$G$34*(1-Eingabe!$G$36))-SUM($X$5:X21))*Eingabe!$H$36","v":0},0,265.33576343063896,{"$f":"AA22/(1+Eingabe!N$37)^Q22","v":189.49286872521509},-112.13692150849442,18,18]
[18,{"$f":"Eingabe!N$30/100*(1+Eingabe!N$36)^A22","v":9.8016899343469716E-2},{"$f":"Eingabe!$G$63/$F$38*$F$39*1/(1+Eingabe!N$33)^A22","v":1093.2633885404705},284.34336918062678,{"$f":"Eingabe!$N$29/100*(1+Eingabe!$N$36)^A23*C23*Berechnungen!$F$45","v":269.74445269187754},14.598916488749214,{"$f":"$F$61*(Eingabe!N$32)*(1+(Eingabe!N$35))^Berechnungen!A22+IF(Eingabe!M31=\"viermal\",Eingabe!N31,0)","v":15.122607327278185},0,0,0,269.22076185334862,{"$f":"K23/(1+Eingabe!N$37)^A23","v":188.4974403470095},76.360518838515077,0,19,null,18,{"$f":"Eingabe!N$30/100*(1+Eingabe!N$36)^Q22","v":9.8016899343469716E-2},{"$f":"Eingabe!$G$63*1/(1+Eingabe!N$33)^Q22","v":1093.2633885404705},284.34336918062678,{"$f":"Eingabe!$N$29/100*(1+Eingabe!$N$36)^Q23*S23*$G$45","v":269.74445269187754},14.598916488749214,{"$f":"Eingabe!G$32*(Eingabe!N$32)*(1+(Eingabe!N$35))^Berechnungen!Q22+IF(Eingabe!M31=\"viermal\",Eingabe!N31,0)","v":15.122607327278185},{"$f":"IF(AND(Eingabe!$I$36<=Berechnungen!Q23,(Eingabe!$I$36+Eingabe!$I$37)>Q23),(Eingabe!$G$34*(1-Eingabe!$G$36))/Eingabe!$I$37,0)","v":0},{"$f":"((Eingabe!$G$34*(1-Eingabe!$G$36))-SUM($X$5:X22))*Eingabe!$H$36","v":0},0,269.22076185334862,{"$f":"AA23/(1+Eingabe!N$37)^Q23","v":188.4974403470095},76.360518838515077,{"$f":"IF(AC23<0,AE23,0)","v":0},19]
[19,{"$f":"Eingabe!N$30/100*(1+Eingabe!N$36)^A23","v":9.99772373303391E-2},{"$f":"Eingabe!$G$63/$F$38*$F$39*1/(1+Eingabe!N$33)^A23","v":1087.8242672044487},288.58730006391977,{"$f":"Eingabe!$N$29/100*(1+Eingabe!$N$36)^A24*C24*Berechnungen!$F$45","v":273.77048929921909},14.816810764700701,{"$f":"$F$61*(Eingabe!N$32)*(1+(Eingabe!N$35))^Berechnungen!A23","v":15.425059473823746},0,0,0,273.16224059009602,{"$f":"K24/(1+Eingabe!N$37)^A24","v":187.50696434879495},263.86748318731003,0,20,null,19,{"$f":"Eingabe!N$30/100*(1+Eingabe!N$36)^Q23","v":9.99772373303391E-2},{"$f":"Eingabe!$G$63*1/(1+Eingabe!N$33)^Q23","v":1087.8242672044487},288.58730006391977,{"$f":"Eingabe!$N$29/100*(1+Eingabe!$N$36)^Q24*S24*$G$45","v":273.77048929921909},14.816810764700701,{"$f":"Eingabe!G$32*(Eingabe!N$32)*(1+(Eingabe!N$35))^Berechnungen!Q23","v":15.425059473823746},{"$f":"IF(AND(Eingabe!$I$36<=Berechnungen!Q24,(Eingabe!$I$36+Eingabe!$I$37)>Q24),(Eingabe!$G$34*(1-Eingabe!$G$36))/Eingabe!$I$37,0)","v":0},{"$f":"((Eingabe!$G$34*(1-Eingabe!$G$36))-SUM($X$5:X23))*Eingabe!$H$36","v":0},0,273.16224059009602,{"$f":"AA24/(1+Eingabe!N$37)^Q24","v":187.50696434879495},263.86748318731003,0,20]
[20,{"$f":"Eingabe!N$30/100*(1+Eingabe!N$36)^A24","v":0.10197678207694588},{"$f":"Eingabe!$G$63/$F$38*$F$39*1/(1+Eingabe!N$33)^A24","v":1082.4122061735809},292.89457319920228,{"$f":"Eingabe!$N$29/100*(1+Eingabe!$N$36)^A25*C25*Berechnungen!$F$45","v":277.85661600517767},15.037957194024592,{"$f":"$F$61*(Eingabe!N$32)*(1+(Eingabe!N$35))^Berechnungen!A24+IF(Eingabe!M31=\"zweimal\",Eingabe!N31,0)","v":15.733560663300221},0,0,0,277.16101253590205,{"$f":"K25/(1+Eingabe!N$37)^A25","v":186.52141609186509},450.38889927917512,0,21,null,20,{"$f":"Eingabe!N$30/100*(1+Eingabe!N$36)^Q24","v":0.10197678207694588},{"$f":"Eingabe!$G$63*1/(1+Eingabe!N$33)^Q24","v":1082.4122061735809},292.89457319920228,{"$f":"Eingabe!$N$29/100*(1+Eingabe!$N$36)^Q25*S25*$G$45","v":277.85661600517767},15.037957194024592,{"$f":"Eingabe!G$32*(Eingabe!N$32)*(1+(Eingabe!N$35))^Berechnungen!Q24+IF(Eingabe!M31=\"zweimal\",Eingabe!N31,0)","v":15.733560663300221},{"$f":"IF(AND(Eingabe!$I$36<=Berechnungen!Q25,(Eingabe!$I$36+Eingabe!$I$37)>Q25),(Eingabe!$G$34*(1-Eingabe!$G$36))/Eingabe!$I$37,0)","v":0},{"$f":"((Eingabe!$G$34*(1-Eingabe!$G$36))-SUM($X$5:X24))*Eingabe!$H$36","v":0},0,277.16101253590205,{"$f":"AA25/(1+Eingabe!N$37)^Q25","v":186.52141609186509},450.38889927917512,0,21]
[21,{"$f":"Eingabe!N$30/100*(1+Eingabe!N$36)^A25","v":0.10401631771848481},{"$f":"Eingabe!$G$63/$F$38*$F$39*1/(1+Eingabe!N$33)^A25","v":1077.0270708194835},297.26613399322014,{"$f":"Eingabe!$N$29/100*(1+Eingabe!$N$36)^A26*C26*Berechnungen!$F$45","v":282.00372967689668},15.262404316323467,{"$f":"$F$61*(Eingabe!N$32)*(1+(Eingabe!N$35))^Berechnungen!A25+IF(Eingabe!M31=\"dreimal\",Eingabe!N31,0)","v":16.048231876566227},0,0,0,281.21790211665393,{"$f":"K26/(1+Eingabe!N$37)^A26","v":185.54077106009402},635.92967033926914,0,22,null,21,{"$f":"Eingabe!N$30/100*(1+Eingabe!N$36)^Q25","v":0.10401631771848481},{"$f":"Eingabe!$G$63*1/(1+Eingabe!N$33)^Q25","v":1077.0270708194835},297.26613399322014,{"$f":"Eingabe!$N$29/100*(1+Eingabe!$N$36)^Q26*S26*$G$45","v":282.00372967689668},15.262404316323467,{"$f":"Eingabe!G$32*(Eingabe!N$32)*(1+(Eingabe!N$35))^Berechnungen!Q25+IF(Eingabe!M31=\"dreimal\",Eingabe!N31,0)","v":16.048231876566227},{"$f":"IF(AND(Eingabe!$I$36<=Berechnungen!Q26,(Eingabe!$I$36+Eingabe!$I$37)>Q26),(Eingabe!$G$34*(1-Eingabe!$G$36))/Eingabe!$I$37,0)","v":0},{"$f":"((Eingabe!$G$34*(1-Eingabe!$G$36))-SUM($X$5:X25))*Eingabe!$H$36","v":0},0,281.21790211665393,{"$f":"AA26/(1+Eingabe!N$37)^Q26","v":185.54077106009402},635.92967033926914,0,22]
[22,{"$f":"Eingabe!N$30/100*(1+Eingabe!N$36)^A26","v":0.10609664407285449},{"$f":"Eingabe!$G$63/$F$38*$F$39*1/(1+Eingabe!N$33)^A26","v":1071.668727183566},301.70294196326842,{"$f":"Eingabe!$N$29/100*(1+Eingabe!$N$36)^A27*C27*Berechnungen!$F$45","v":286.21274056759682},15.490201395671583,{"$f":"$F$61*(Eingabe!N$32)*(1+(Eingabe!N$35))^Berechnungen!A26","v":16.369196514097549},0,0,0,285.33374544917086,{"$f":"K27/(1+Eingabe!N$37)^A27","v":184.5650048593269},820.49467519859604,0,23,null,22,{"$f":"Eingabe!N$30/100*(1+Eingabe!N$36)^Q26","v":0.10609664407285449},{"$f":"Eingabe!$G$63*1/(1+Eingabe!N$33)^Q26","v":1071.668727183566},301.70294196326842,{"$f":"Eingabe!$N$29/100*(1+Eingabe!$N$36)^Q27*S27*$G$45","v":286.21274056759682},15.490201395671583,{"$f":"Eingabe!G$32*(Eingabe!N$32)*(1+(Eingabe!N$35))^Berechnungen!Q26","v":16.369196514097549},{"$f":"IF(AND(Eingabe!$I$36<=Berechnungen!Q27,(Eingabe!$I$36+Eingabe!$I$37)>Q27),(Eingabe!$G$34*(1-Eingabe!$G$36))/Eingabe!$I$37,0)","v":0},{"$f":"((Eingabe!$G$34*(1-Eingabe!$G$36))-SUM($X$5:X26))*Eingabe!$H$36","v":0},0,285.33374544917086,{"$f":"AA27/(1+Eingabe!N$37)^Q27","v":184.5650048593269},820.49467519859604,0,23]
[23,{"$f":"Eingabe!N$30/100*(1+Eingabe!N$36)^A27","v":0.10821857695431158},{"$f":"Eingabe!$G$63/$F$38*$F$39*1/(1+Eingabe!N$33)^A27","v":1066.3370419736978},306.20597094779475,{"$f":"Eingabe!$N$29/100*(1+Eingabe!$N$36)^A28*C28*Berechnungen!$F$45","v":290.48457251636688},15.721398431427879,{"$f":"$F$61*(Eingabe!N$32)*(1+(Eingabe!N$35))^Berechnungen!A27","v":16.696580444379503},0,0,0,289.50939050341526,{"$f":"K28/(1+Eingabe!N$37)^A28","v":183.59409321677248},1004.0887684153686,0,24,null,23,{"$f":"Eingabe!N$30/100*(1+Eingabe!N$36)^Q27","v":0.10821857695431158},{"$f":"Eingabe!$G$63*1/(1+Eingabe!N$33)^Q27","v":1066.3370419736978},306.20597094779475,{"$f":"Eingabe!$N$29/100*(1+Eingabe!$N$36)^Q28*S28*$G$45","v":290.48457251636688},15.721398431427879,{"$f":"Eingabe!G$32*(Eingabe!N$32)*(1+(Eingabe!N$35))^Berechnungen!Q27","v":16.696580444379503},{"$f":"IF(AND(Eingabe!$I$36<=Berechnungen!Q28,(Eingabe!$I$36+Eingabe!$I$37)>Q28),(Eingabe!$G$34*(1-Eingabe!$G$36))/Eingabe!$I$37,0)","v":0},{"$f":"((Eingabe!$G$34*(1-Eingabe!$G$36))-SUM($X$5:X27))*Eingabe!$H$36","v":0},0,289.50939050341526,{"$f":"AA28/(1+Eingabe!N$37)^Q28","v":183.59409321677248},1004.0887684153686,0,24]
[24,{"$f":"Eingabe!N$30/100*(1+Eingabe!N$36)^A28","v":0.1103829484933978},{"$f":"Eingabe!$G$63/$F$38*$F$39*1/(1+Eingabe!N$33)^A28","v":1061.0318825608933},310.77620932014992,{"$f":"Eingabe!$N$29/100*(1+Eingabe!$N$36)^A29*C29*Berechnungen!$F$45","v":294.82016315093955},15.956046169210383,{"$f":"$F$61*(Eingabe!N$32)*(1+(Eingabe!N$35))^Berechnungen!A28+IF(Eingabe!M31=\"viermal\",Eingabe!N31,0)","v":17.030512053267088},0,0,0,293.74569726688281,{"$f":"K29/(1+Eingabe!N$37)^A29","v":182.62801198039986},1186.7167803957684,0,25,null,24,{"$f":"Eingabe!N$30/100*(1+Eingabe!N$36)^Q28","v":0.1103829484933978},{"$f":"Eingabe!$G$63*1/(1+Eingabe!N$33)^Q28","v":1061.0318825608933},310.77620932014992,{"$f":"Eingabe!$N$29/100*(1+Eingabe!$N$36)^Q29*S29*$G$45","v":294.82016315093955},15.956046169210383,{"$f":"Eingabe!G$32*(Eingabe!N$32)*(1+(Eingabe!N$35))^Berechnungen!Q28+IF(Eingabe!M31=\"viermal\",Eingabe!N31,0)","v":17.030512053267088},{"$f":"IF(AND(Eingabe!$I$36<=Berechnungen!Q29,(Eingabe!$I$36+Eingabe!$I$37)>Q29),(Eingabe!$G$34*(1-Eingabe!$G$36))/Eingabe!$I$37,0)","v":0},{"$f":"((Eingabe!$G$34*(1-Eingabe!$G$36))-SUM($X$5:X28))*Eingabe!$H$36","v":0},0,293.74569726688281,{"$f":"AA29/(1+Eingabe!N$37)^Q29","v":182.62801198039986},1186.7167803957684,0,25]
[25,{"$f":"Eingabe!N$30/100*(1+Eingabe!N$36)^A29","v":0.11259060746326577},{"$f":"Eingabe!$G$63/$F$38*$F$39*1/(1+Eingabe!N$33)^A29","v":1055.7531169760132},{"$f":"+E30+F30","v":315.41466020552537},{"$f":"Eingabe!$N$29/100*(1+Eingabe!$N$36)^A30*C30*Berechnungen!$F$45","v":299.22046409349093},16.194196112034419,{"$f":"$F$61*(Eingabe!N$32)*(1+(Eingabe!N$35))^Berechnungen!A29","v":17.37112229433243},0,0,0,298.04353791119291,{"$f":"K30/(1+Eingabe!N$37)^A30","v":181.66673711833764},1368.383517514106,0,26,null,25,{"$f":"Eingabe!N$30/100*(1+Eingabe!N$36)^Q29","v":0.11259060746326577},{"$f":"Eingabe!$G$63*1/(1+Eingabe!N$33)^Q29","v":1055.7531169760132},315.41466020552537,{"$f":"Eingabe!$N$29/100*(1+Eingabe!$N$36)^Q30*S30*$G$45","v":299.22046409349093},16.194196112034419,{"$f":"Eingabe!G$32*(Eingabe!N$32)*(1+(Eingabe!N$35))^Berechnungen!Q29","v":17.37112229433243},{"$f":"IF(AND(Eingabe!$I$36<=Berechnungen!Q30,(Eingabe!$I$36+Eingabe!$I$37)>Q30),(Eingabe!$G$34*(1-Eingabe!$G$36))/Eingabe!$I$37,0)","v":0},{"$f":"((Eingabe!$G$34*(1-Eingabe!$G$36))-SUM($X$5:X29))*Eingabe!$H$36","v":0},0,298.04353791119291,{"$f":"AA30/(1+Eingabe!N$37)^Q30","v":181.66673711833764},{"$f":"AC29+AB30","v":1368.383517514106},0,26]
["Summen",null,{"$f":"SUM(C6:C30)","v":28039.8684636217},{"$f":"SUM(D6:D30)","v":6638.7773154467386},{"$f":"SUM(E6:E30)","v":6297.9254928953824},{"$f":"SUM(F5:F30)","v":340.85182255135572},{"$f":"SUM(G5:G30)","v":4045.9272370109547},{"$f":"SUM(H6:H30)","v":0},{"$f":"SUM(I6:I30)","v":0},{"$f":"SUM(J5:J30)","v":0},{"$f":"SUM(K5:K30)","v":2592.8500784357843},{"$f":"SUM(L5:L30)","v":1368.383517514106},null,{"$f":"IF(MAX(N5:N30)>25,\">25\",MAX(N5:N30))","v":18},null,null,"Summen",null,{"$f":"SUM(S6:S30)","v":28039.8684636217},{"$f":"SUM(T6:T30)","v":6638.7773154467386},{"$f":"SUM(U6:U30)","v":6297.9254928953824},{"$f":"SUM(V5:V30)","v":340.85182255135572},{"$f":"SUM(W5:W30)","v":4045.9272370109547},{"$f":"SUM(X6:X30)","v":0},{"$f":"SUM(Y6:Y30)","v":0},{"$f":"SUM(Z5:Z30)","v":0},{"$f":"SUM(AA5:AA30)","v":2592.8500784357843},{"$f":"SUM(AB5:AB30)","v":1368.383517514106},null,{"$f":"IF(MAX(AD5:AD30)>25,\">25\",MAX(AD5:AD30))","v":18}]
[null,null,null,null,null,null,null,null,null,{"$f":"Berechnungen!G31+J31","v":4045.9272370109547},null,null,null,null,null,null,null,null,null,null,null,null,null,null,null,{"$f":"Berechnungen!W31+Z31","v":4045.9272370109547}]
[]
[null,null,null,null,null,null,null,null,null,{"$f":"+J32/C31","v":0.14429194781209656},null,null,null,null,null,null,null,null,null,null,null,null,null,null,null,{"$f":"+Z32/S31","v":0.14429194781209656}]
[]
[]
[null,null,null,null,null,null,null,null,"Anmerkung/Frage"]
[null,"Berechnungen",null,null,"gewählt:",{"$f":"+Eingabe!G48","v":1.2}]
[null,null,null,null,"Vorgeschlagene Größe der PV-Anlage",{"$f":"+Eingabe!G177","v":1.2},"kWp"]
[]
[]
[null,null,null,null,null,null,{"$f":"+Eingabe!G48","v":1.2}]
[null,null,null,null,null,"vorgeschlagene Größe","gewählte Größe"]
[null,null,null,null,null,{"$f":"+F39","v":1.2},{"$f":"+Eingabe!G48","v":1.2},"kWp"]
[null,null,null,null,"Eigennutzung",{"$f":"+'Näherungsrechnung per Formel'!J29","v":0.86376306650736134},{"$f":"'Näherungsrechnung per Formel'!$J$30","v":0.86376306650736134},"%"]
[null,null,null,null,"durchschnittliche Stomkosten pro kWh",{"$f":"+J32/C31*100","v":14.429194781209656},{"$f":"+Z32/S31*100","v":14.429194781209656},"cent/kWh"]
[null,null,null,null,"Strompreis EVU",{"$f":"+Eingabe!N29","v":20},20,"cent/kWh"]
[null,null,null,null,"erzeugter Strom",{"$f":"+C31","v":28039.8684636217},{"$f":"+S31","v":28039.8684636217}]
[null,null,null,null,"mit Eigennutzung genutzter Strom",{"$f":"+F48*F45","v":24219.802768600934},{"$f":"+G48*G45","v":24219.802768600934}]
[null,null,null,null,"Strombedarf gesamt",{"$f":"+(Eingabe!$G$24+'Näherungsrechnung per Formel'!$F$6+'Näherungsrechnung per Formel'!$F$8)*25","v":175312.5},{"$f":"+F50","v":175312.5}]
[null,null,null,null,"zugekaufter Strom",{"$f":"F50-F49","v":151092.69723139907},{"$f":"G50-G49","v":151092.69723139907}]
[null,null,null,null,"Kosten Strom zugekauft",{"$f":"+F51*F47/100","v":30218.539446279818},{"$f":"+G51*G47/100","v":30218.539446279818}]
[null,null,null,null,"Ausgaben minus Erlös",{"$f":"+G31+J31-F31","v":3705.075414459599},{"$f":"+W31+Z31-V31","v":3705.075414459599}]
[null,null,null,null,"Ausgaben gesamt",{"$f":"+F53+F52","v":33923.614860739413},{"$f":"+G53+G52","v":33923.614860739413}]
[null,null,null,null,"durchschnittliche Stomkosten pro kWh für gesamten Bedarf",{"$f":"+F54/F50","v":0.19350368548015351},{"$f":"+G54/G50","v":0.19350368548015351},"EUR/kWh"]
[]
[null,null,"Investitionskosten bei empfohlener Größe der Anlage"]
[null,null,null,null,{"$f":"Eingabe!F29","v":"Spezifische Kosten für die ersten 3,5 kWp"},{"$f":"Eingabe!G29","v":2250}]
[null,null,null,null,{"$f":"Eingabe!F30","v":"Spezifische Kosten ab 3,5 kWp"},{"$f":"Eingabe!G30","v":2000}]
[]
[null,null,null,null,{"$f":"Eingabe!F32","v":"Gesamtkosten der Anlage:"},{"$f":"IF(F39>3.5,3.5*F58+(F39-3.5)*F59,F39*F58)","v":2700}]
[null,null,null,null,{"$f":"Eingabe!F33","v":"Förderung:"},{"$f":"Eingabe!G33","v":0}]
[null,null,null,null,{"$f":"Eingabe!F34","v":"Investitionskosten abzüglich Förderung:"},{"$f":"+F61-F62","v":2700}]
[]
[]
[null,"Konstanten:"]
[null,"Auswahllisten und damit verknüpfte Faktoren:"]
[]
[null,"Betriebsweise Wärmepumpe",null,null,null,"Heizgewohnheiten"]
[null,null,null,null,null,null,null,"Faktor für HWB lt. Energieausweis"]
[null,null,{"$f":"+Eingabe!F166","v":"WP-Tarifoptimiert (nachts)"},0,null,null,"sparsamer Haushalt",1,null,null,null,null,null,null,null,null,"Vorgeschlagene Größe pro kWh Stromverbrauch",{"$f":"1/1000","v":1E-3},"kWp/(kWh/a)","bis 3000 kWh Haushaltsstromverbrauch"]
[null,null,{"$f":"+Eingabe!F167","v":"AUTO 24h"},0.5,null,null,"durchschnittlicher Haushalt",1.5,null,null,null,null,null,null,null,null,"Vorgeschlagene Größe pro kWh Stromverbrauch",{"$f":"0.5/1000","v":5.0000000000000001E-4},"kWp/(kWh/a)","über 3000 kWh Haushaltsstromverbrauch"]
[null,null,{"$f":"+Eingabe!F168","v":"Eigenverbrauch Optimiert"},1,null,null,"legerer Haushalt",2,null,null,null,null,null,null,null,null,"aufrunden auf",0.25,"kWp"]
[]
[]
[null,"Vorgegebene Werte, die im Blatt \"Eingabe\" geändert werden können:"]
[null,null,null,null,null,"Wert","Einheit","Kommentar"]
[null,null,null,null,"Spezifische Kosten für die ersten 3,5 kWp:",2250,"[€/kWp]"]
[null,null,null,null,"Spezifische Kosten ab 3,5 kWp:",2000,"[€/kWp]"]
[]
[null,"Vorgegebene Werte (fix)"]
[null,null,null,null,null,"Wert","Einheit","Kommentar"]
[null,null,null,null,"Warmwasser",2.5,"kWh/d.Pers"]
[null,null,null,null,"Treibhauspotenzial Netzstrom Ländermix",0.28000000000000003,"kg CO2e/kWh","http://www5.umweltbundesamt.at/emas/co2mon/co2mon.htm"]

{"sheet":"Näherungsrechnung per Formel","index":2,"n_rows":30,"n_cols":20,"rows_kept":30,"cut":false,"hidden":true,"merged":[]}
[null,"Berechnung des Eigenverbrauchs von Gebäuden mit Photovoltaik und Wärmepumpe"]
[]
[null,null,"Eingaben",null,"AZ","kWh","Multiplikator","Offset","Modellgrenzen, mögl. Input",null,null,"Kommentar"]
[null,"Lastoptimierte Warmwasserbereitung und Heizung \"0 oder 1\"",null,{"$f":"INDEX(Berechnungen!D70:D74,MATCH(Eingabe!L21,Berechnungen!C70:C74,0))","v":0.5},null,null,null,null,"0 oder 1",null,null,null,"Eingabefelder",null,null,"Eingabefeld, holt sich Wert aus Blatt \"Eingabe\""]
[null,"Warmwasser","kWh/d/Pers","Personen",null,null,null,null,null,null,null,null,"geändert von Evi",null,null,"Holt sich Wert aus Blatt \"Berechnungen\""]
[null,null,{"$f":"Berechnungen!$F$83","v":2.5},{"$f":"+Eingabe!G21","v":3},{"$f":"Eingabe!$L$22","v":3},{"$f":"C6*D6*365/E6","v":912.5},{"$f":"F6/2","v":456.25},{"$f":"G6*$D$4","v":228.125},"1-10 Personen",null,null,"Halber WW Energiebedarf und zusätzl. Die andere Hälfte bei Lastoptimierung als Offset"]
[null,"Heizenergie","kWh/m^2","m^2"]
[null,null,{"$f":"+Eingabe!G23","v":30},{"$f":"+Eingabe!G22","v":140},{"$f":"+E6","v":3},{"$f":"C8*C10*D8/E8","v":2100},{"$f":"F8/8","v":262.5},{"$f":"G8*$D$4","v":131.25},"10-50 kWh/m^2a; 50-200m^2",null,null,"1/8 Des Heizenergiebedarf und zusätzlich noch 1/16 bzw. 1/8 als Offset bei Lastoptimierung"]
[null,null,"Faktor Heizgewohnheit","kWh",null,null,null,null,null,null,null,"Wert ist HWB lt. Energieausweis. Zuschlag von 50 oder 100 % je nach Heizgewohnheit"]
[null,null,{"$f":"INDEX(Berechnungen!H70:H74,MATCH(Eingabe!L23,Berechnungen!G70:G74,0))","v":1.5}]
[null,null,null,null,null,null,null,null,null,null,null,null,null,null,null,null,null,"erste 3,5 kWp","weiteres kWp"]
[null,"Haushaltsstrom",null,{"$f":"Eingabe!$G$24","v":4000},null,null,null,null,"500-8000",null,null,null,null,null,null,"Kosten / Kwp",null,{"$f":"+Eingabe!G29","v":2250},{"$f":"+Eingabe!G30","v":2000}]
[null,null,null,"kWh/kWp",null,null,null,null,null,null,null,null,null,null,null,"Eigenverbrauch Tarif",null,{"$f":"+Eingabe!G70","v":14.429194781209656},"welcher \"Tarif\" ist damit gemeint?"]
[null,"kWh/kWp",null,{"$f":"+Eingabe!G62","v":991.66870588235304},null,null,null,null,null,null,null,null,null,null,null,"Eispeisetarif",null,{"$f":"+Eingabe!N30","v":7}]
[null,null,null,null,null,null,null,null,null,null,null,null,null,null,null,"Jahre",null,25]
[]
[null,"Eigenverbrauch Photovoltaik",null,null,"Mögliche Eigennutzung nach Kategorie [kWh]",null,null,null,null,null,"Verbräuche",null,null,null,null,"Wirtschaftlichkeit"]
[null,"PV Leistung [kWp]","Konstante HH (Näherung)","Konst WW+Heizung (Näherung)","Eigennutzung Haushalt","Eigennutzung Warmwasser","Eigennutzung Heizung","Eigennutzung (theor. Max)","Eigennutzung gesamt kWh","Eigennutzung %","Verbrauch Warmwasser","Verbrauch Heizung","Verbrauch Haushalt","Gesamtverbrauch","Erzeugung","Invest","Eigenverbrauch/a","Eispeisung/a","Überschuss 25J"]
[null,1,{"$f":"SQRT((B19*$D$14)/$D$12)/5","v":9.9582564030173126E-2},{"$f":"SQRT((B19*$D$14)/$G$6)/5","v":0.29485728420705454},{"$f":"$D$12*C19","v":398.33025612069252},{"$f":"$G$6*D19+$H$6","v":362.65363591946863},{"$f":"D19*$G$8+$H$8","v":208.65003710435181},{"$f":"SUM(E19:G19)","v":969.63392914451299},{"$f":"IF(H19<B19*$D$14,H19,B19*$D$14)","v":969.63392914451299},{"$f":"I19/(B19*$D$14)","v":0.97778010276301475},{"$f":"F6","v":912.5},{"$f":"F8","v":2100},{"$f":"D12","v":4000},{"$f":"SUM(K19:M19)","v":7012.5},{"$f":"B19*$D$14","v":991.66870588235304},{"$f":"IF(B19>3.5,3.5*$R$12+(B19-3.5)*$S$12,B19*$R$12)","v":2250},{"$f":"$R$13*I19","v":13991.03683009582},{"$f":"$R$14*(O19-I19)","v":154.24343716488033},{"$f":"(R19+Q19)*$R$15-P19","v":351382.00668151747},"Zelle R13: unklar was gemeint ist"]
[null,2,0.14083101262735798,0.41699117029011468,563.32405050943191,418.37722144486486,240.71018220115511,1222.4114541554518,1222.4114541554518,0.61634064224492779,{"$f":"K19","v":912.5},{"$f":"L19","v":2100},{"$f":"M19","v":4000},7012.5,1983.3374117647061,{"$f":"IF(B20>3.5,3.5*$R$12+(B20-3.5)*$S$12,B20*$R$12)","v":4500},17638.41297479075,5326.4817032647798,{"$f":"(R20+Q20)*$R$15-P20","v":569622.36695138831}]
[null,3,0.1724820604482408,0.51070779722839466,689.92824179296315,461.13543248545506,265.31079677245361,1416.3744710508718,1416.3744710508718,0.47609128016553004,912.5,2100,4000,7012.5,2975.006117647059,6750,20437.143125925824,10910.421526173312,{"$f":"(R21+Q21)*$R$15-P21","v":776939.11630247836}]
[null,4,0.19916512806034625,0.58971456841410907,796.66051224138505,497.18227183893725,286.05007420870362,1579.892858289026,1579.892858289026,0.39829149818822079,912.5,2100,4000,7012.5,3966.6748235294122,8875,22796.58178569442,16707.473756682703,978726.38855942804]
[null,5,0.22267338254519253,0.6593209311479491,890.69353018077015,528.9401748362518,304.32174442633664,1723.9554494433585,1723.9554494433585,0.34768777903693987,912.5,2100,4000,7012.5,4958.3435294117653,10875,24875.288974146057,22640.716559778848,1177025.1383481226]
[null,6,0.24392646915195812,0.72224989325008437,975.70587660783247,557.65151379535098,320.84059697814712,1854.1979873813307,1854.1979873813307,0.31162927302613774,912.5,2100,4000,7012.5,5950.012235294118,12875,26754.583922852144,28670.699735389513,1372757.0914560414]
[null,7,0.26347069934200407,0.78011904626775919,1053.8827973680163,584.05431485966506,336.03124964528678,1973.9683618729682,1973.9683618729682,0.28436460543207009,912.5,2100,4000,7012.5,6941.6809411764716,14875,28482.773985410407,34773.988055124522,1566544.0510133733]
[null,8,0.28166202525471595,0.83398234058022935,1126.6481010188638,608.62944288972972,350.17036440231021,2085.4479083109036,2085.4479083109036,0.26287104452582061,912.5,2100,4000,7012.5,7933.3496470588243,16875,30091.334075084284,40935.312171235448,1758791.156157993]
[null,9,0.29874769209051932,0.88457185262116356,1194.9907683620772,631.71090775840594,363.45011131305546,2190.1517874335386,2190.1517874335386,0.24539465363808349,912.5,2100,4000,7012.5,8925.018352941177,18875,31602.126741293014,47144.065958553467,1949779.8174961619]
[null,10,0.31490771757490366,0.93242060278588712,1259.6308702996146,653.541900021061,376.0104082312954,2289.1831785519712,2289.1831785519712,0.2308415265070943,912.5,2100,4000,7012.5,9916.6870588235306,20875,33031.069973195037,53392.527161900915,2139714.9283773988]
["vorgeschlagen:",{"$f":"+Berechnungen!F44","v":1.2},0.10908723330705679,0.32299997160983102,436.34893322822717,375.49373704698542,216.03749254758065,1027.8801628227934,1027.8801628227934,0.86376306650736134,{"$f":"K28","v":912.5},{"$f":"L28","v":2100},{"$f":"M28","v":4000},{"$f":"SUM(K29:M29)","v":7012.5},1190.0024470588237]
["tatsächlich:",{"$f":"+Berechnungen!G44","v":1.2},0.10908723330705679,0.32299997160983102,436.34893322822717,375.49373704698542,216.03749254758065,1027.8801628227934,1027.8801628227934,0.86376306650736134,912.5,2100,4000,7012.5,{"$f":"B30*$D$14","v":1190.0024470588237}]

{"sheet":"Ausrichtung","index":3,"n_rows":51,"n_cols":36,"rows_kept":51,"cut":false,"hidden":true,"merged":[[7,1,13,1],[23,1,29,1],[37,1,43,1]]}
[]
[null,null,null,null,null,null,null,null,null,null,null,null,null,null,null,null,null,null,null,null,null,null,null,null,null,null,null,null,null,null,null,null,{"$f":"HLOOKUP(AD13,D6:P7,2,TRUE)","v":8}]
[]
[null,null,null,null,null,null,null,null,null,null,null,null,null,null,null,null,null,null,null,null,null,null,null,null,null,null,"Neigung",78,{"$f":"C8","v":0},{"$f":"VLOOKUP(AB4,AC4:AC10,1)","v":75},"untere Grenze",{"$f":"AB4-AD4","v":3},{"$f":"VLOOKUP(AD5,C6:P14,AG2,TRUE)","v":65},null,null,{"$f":"HLOOKUP(AB4,C6:P14,3,TRUE)","v":85}]
[null,null,null,"Osten",null,null,null,null,null,"Azimut",null,null,null,null,null,"Westen",null,null,"Prozent",null,null,null,null,null,null,null,null,{"$f":"AB4","v":78},15,{"$f":"AD4+15","v":90},"obere Grenze",{"$f":"AD5-AB4","v":12},null,null,null,{"$f":"VLOOKUP(AB13,C6:P14,1,TRUE)","v":15}]
[null,null,null,-90,-75,-60,-45,-30,-15,0,15,30,45,60,75,90,null,null,55,null,null,null,null,null,null,null,null,78,30]
[null,null,null,1,2,3,4,5,6,7,8,9,10,11,12,13,null,null,65,null,null,null,null,null,null,null,null,78,45]
[null,"Neigung",0,85,85,85,85,85,85,85,85,85,85,85,85,85,null,null,75,null,null,null,null,null,null,null,null,78,60]
[null,null,15,85,85,85,95,95,95,95,95,95,95,85,85,85,null,null,85,null,null,null,null," ",null,null,null,78,75]
[null,null,30,85,85,85,95,95,95,100,95,95,95,85,85,85,null,null,95,null,null,null,null,null,null,null,null,78,90]
[null,null,45,75,85,85,85,95,95,95,95,95,85,85,85,75,null,null,100]
[null,null,60,75,75,75,85,85,85,85,85,85,85,75,75,75]
[null,null,75,65,65,75,75,75,75,75,75,75,75,75,65,65,null,null,null,null,null,null,null,null,null,null,"Azimut",20,-90,{"$f":"VLOOKUP(AB13,AC13:AC25,1)","v":15},"untere Grenze",{"$f":"AB13-AD13","v":5}]
[null,null,90,55,55,65,65,65,65,65,65,65,65,65,55,55,null,null,null,null,null,null,null,null,null,null,null,{"$f":"AB13","v":20},-75,{"$f":"AD13+15","v":30},"obere Grenze",{"$f":"AD14-AB13","v":10}]
[null,null,"Angaben in Prozent",null,null,null,null,null,null,null,null,null,null,null,null,null,null,null,null,null,null,null,null,null,null,null,null,{"$f":"AB14","v":20},-60]
[null,null,null,null,null,null,null,null,null,null,null,null,null,null,null,null,null,null,null,null,null,null,null,null,null,null,null,20,-45]
[null,null,"Einstrahlung auf die horizontale Fläche:",null,null,null,null,null,{"$f":"Eingabe!O11","v":1084},"kWh/m²a",null,null,{"$f":"I17/85","v":12.752941176470589},null,null,null,null,null,null,null,null,null,null,null,null,null,null,20,-30]
[null,null,null,null,null,null,null,null,null,null,null,null,null,null,null,null,null,null,null,null,null,null,null,null,null,null,null,20,-15]
[null,null,null,null,null,null,null,null,null,null,null,null,null,null,null,null,null,null,null,null,null,null,null,null,null,null,null,20,0]
[null,null,null,null,null,null,null,null,null,null,null,null,null,null,null,null,null,null,null,null,null,null,null,null,null,null,null,20,15]
[null,null,null,"Osten",null,null,null,null,null,"Azimut",null,null,null,null,null,"Westen",null,null,null,null,null,null,null,null,null,null,null,20,30]
[null,null,null,-90,-75,-60,-45,-30,-15,0,15,30,45,60,75,90,null,null,null,null,null,null,null,null,null,null,null,20,45]
[null,null,null,1,2,3,4,5,6,7,8,9,10,11,12,13,null,null,null,null,null,null,null,null,null,null,null,20,60]
[null,"Neigung",0,{"$f":"$M$17*D8","v":1084},1084,1084,1084,1084,1084,1084,1084,1084,1084,1084,1084,1084,null,null,null,null,null,null,null,null,null,null,null,20,75]
[null,null,15,{"$f":"$M$17*D9","v":1084},1084,1084,1211.5294117647059,1211.5294117647059,1211.5294117647059,1211.5294117647059,1211.5294117647059,1211.5294117647059,1211.5294117647059,1084,1084,1084,null,null,null,null,null,null,null,null,null,null,null,20,90]
[null,null,30,{"$f":"$M$17*D10","v":1084},1084,1084,1211.5294117647059,1211.5294117647059,1211.5294117647059,1275.294117647059,1211.5294117647059,1211.5294117647059,1211.5294117647059,1084,1084,1084]
[null,null,45,{"$f":"$M$17*D11","v":956.47058823529414},1084,1084,1084,{"$f":"$M$17*H11","v":1211.5294117647059},1211.5294117647059,1211.5294117647059,1211.5294117647059,1211.5294117647059,1084,1084,1084,956.47058823529414]
[null,null,60,{"$f":"$M$17*D12","v":956.47058823529414},956.47058823529414,956.47058823529414,1084,1084,1084,1084,{"$f":"$M$17*K12","v":1084},1084,1084,{"$f":"$M$17*N12","v":956.47058823529414},956.47058823529414,956.47058823529414]
[null,null,75,{"$f":"$M$17*D13","v":828.94117647058829},828.94117647058829,956.47058823529414,956.47058823529414,956.47058823529414,956.47058823529414,956.47058823529414,956.47058823529414,956.47058823529414,956.47058823529414,956.47058823529414,828.94117647058829,828.94117647058829]
[null,null,90,{"$f":"$M$17*D14","v":701.41176470588243},701.41176470588243,828.94117647058829,828.94117647058829,828.94117647058829,828.94117647058829,828.94117647058829,828.94117647058829,828.94117647058829,828.94117647058829,828.94117647058829,701.41176470588243,701.41176470588243]
[null,null,"Angaben in kWh/m²a"]
[]
[]
[]
[null,null,null,"Osten",null,null,null,null,null,"Azimut",null,null,null,null,null,"Westen"]
[null,null,null,-90,-75,-60,-45,-30,-15,0,15,30,45,60,75,90]
[null,null,null,1,2,3,4,5,6,7,8,9,10,11,12,13]
[null,"Neigung",0,{"$f":"IF($F$51=0,D24,\"\")","v":""},"","","","","","","","","","","",""]
[null,null,15,{"$f":"IF($F$51=15,D25,\"\")","v":""},"","","","","","","","","","","",""]
[null,null,30,{"$f":"IF($F$51=30,D26,\"\")","v":1084},1084,1084,1211.5294117647059,{"$f":"IF($F$51=30,H26,\"\")","v":1211.5294117647059},1211.5294117647059,1275.294117647059,1211.5294117647059,1211.5294117647059,1211.5294117647059,1084,1084,1084]
[null,null,45,{"$f":"IF($F$51=45,D27,\"\")","v":""},"","","","","","","","","","","",""]
[null,null,60,{"$f":"IF($F$51=60,D28,\"\")","v":""},"","","","","","","","","","","",""]
[null,null,75,{"$f":"IF($F$51=75,D29,\"\")","v":""},"","","","","","","","","","","",""]
[null,null,90,{"$f":"IF($F$51=90,D30,\"\")","v":""},"","","","","","","","","","","",""]
[null,null,"Angaben in kWh/m²a"]
[]
[null,"Auswahl:",null,{"$f":"IF($F$50=-90,SUM(D38:D44),\"\")","v":""},{"$f":"IF($F$50=-75,SUM(E38:E44),\"\")","v":""},{"$f":"IF($F$50=-60,SUM(F38:F44),\"\")","v":""},{"$f":"IF($F$50=-45,SUM(G38:G44),\"\")","v":""},{"$f":"IF($F$50=-30,SUM(H38:H44),\"\")","v":""},{"$f":"IF($F$50=-15,SUM(I38:I44),\"\")","v":""},{"$f":"IF($F$50=0,SUM(J38:J44),\"\")","v":1275.294117647059},{"$f":"IF($F$50=15,SUM(K38:K44),\"\")","v":""},{"$f":"IF($F$50=30,SUM(L38:L44),\"\")","v":""},{"$f":"IF($F$50=45,SUM(M38:M44),\"\")","v":""},{"$f":"IF($F$50=60,SUM(N38:N44),\"\")","v":""},{"$f":"IF($F$50=75,SUM(O38:O44),\"\")","v":""},{"$f":"IF($F$50=90,SUM(P38:P44),\"\")","v":""}]
[]
[null,null,"Zuteilung der Werte aus der Einagbemaske:"]
[null,null,null,null,"Ausrichtung:",{"$f":"Eingabe!$F$17","v":0},"°"]
[null,null,null,null,"Neigung:",{"$f":"Eingabe!$L$17","v":30},"°",{"$f":"SUM(D47:P47)","v":1275.294117647059},"kWh/m²a"]

{"sheet":"Wetterdaten","index":4,"n_rows":54,"n_cols":13,"rows_kept":54,"cut":false,"hidden":true,"merged":[]}
["Ort","PLZ","Land","PLZ-Differenz","Jährliche Einstrahlung","mittlere Aussentemperatur","Längengrad","Breitengrad","Ermittlung der Einstrahlung"]
[null,null,null,null,"[kWh/m²a]","[°C]","[°]","[°]"]
["Admont",8911,"AUT",{"$f":"IF(B3>$L$3,B3-$L$3,$L$3-B3)","v":7781},1028.32,"    5.86","-14.45"," 47.57",{"$f":"IF($L$4=D3,E3,0)","v":0},{"$f":"IF(I3=0,0,1)","v":0},"PLZ:",{"$f":"Eingabe!D11","v":1130}]
["Amstetten",3300,"AUT",{"$f":"IF(B4>$L$3,B4-$L$3,$L$3-B4)","v":2170},1069.0999999999999,"    8.79","-14.83"," 48.08",0,{"$f":"IF(I4=0,0,1)","v":0},"Diff:",{"$f":"MIN(D3:D53)","v":60}]
["Arriach",9543,"AUT",{"$f":"IF(B5>$L$3,B5-$L$3,$L$3-B5)","v":8413},1144.54,"    6.46","-13.85"," 46.72",0,0,"Einstrahlung",{"$f":"ROUNDDOWN(K54,-0.5)","v":1084},"kWh/m²a"]
["Bad Gleichenberg",8344,"AUT",7214,1153.19,"    9.14","-15.88"," 46.87",0,0]
["Bad Ischl",4820,"AUT",3690,1093.31,"    7.90","-13.60"," 47.72",0,0]
["Bludenz",6700,"AUT",{"$f":"IF(B8>$L$3,B8-$L$3,$L$3-B8)","v":5570},1079.79,"    7.97"," -9.82"," 48.50",0,0]
["Bruck an der Mur",8600,"AUT",7470,1070.77,"    8.07","-15.25"," 47.42",0,0]
["Eisenerz",8790,"AUT",7660,1071.43,"    7.11","-14.88"," 47.53",0,0]
["Eisenstadt",7000,"AUT",{"$f":"IF(B11>$L$3,B11-$L$3,$L$3-B11)","v":5870},1132.17,"   10.01","-16.68"," 47.90",0,0]
["Feldkirch",6800,"AUT",5670,1100.3800000000001,"    8.30"," -9.58"," 47.23",0,0]
["Ferlach",9170,"AUT",8040,1156.25,"    7.82","-14.28"," 46.52",0,0]
["Fresach ",9712,"AUT",8582,1207.3599999999999,"    7.07","-13.68"," 46.70",0,0]
["Gargellen",6787,"AUT",5657,1174.51,"    4.42"," -9.92"," 46.97",0,0]
["Gmunden",4810,"AUT",3680,1088.42,"    8.57","-13.80"," 47.92",0,0]
["Graz",8010,"AUT",6880,1126.02,"    9.17","-15.42"," 47.67",0,0]
["Gumpoldskirchen",2352,"AUT",1222,1125.22,"    9.11","-16.27"," 48.33",0,0]
["Hallstadt",4830,"AUT",3700,1054.8,"    8.00","-13.63"," 47.55",0,0]
["Imst",6460,"AUT",5330,1069.1099999999999,"    7.31","-10.72"," 47.23",0,0]
["Innsbruck",6020,"AUT",4890,1089.72,"    8.61","-11.40"," 47.27",0,0]
["Kitzbuehl",6370,"AUT",5240,1069.8800000000001,"    6.19","-12.38"," 47.45",0,0]
["Klagenfurt",9010,"AUT",7880,1131,"    8.14","-14.30"," 46.62",0,0]
["Krems a. d. Donau",3500,"AUT",2370,1071.4000000000001,"    9.62","-15.58"," 48.50",{"$f":"IF($L$4=D24,E24,0)","v":0},0]
["Kremsmünster",4550,"AUT",3420,1046.5,"    7.69","-14.12"," 48.05",0,0]
["Leoben",8700,"AUT",7570,1068.49,"    8.30","-15.83"," 47.37",0,0]
["Lienz",9900,"AUT",8770,1147.74,"    7.41","-12.80"," 46.83",0,0]
["Lilienfeld",3180,"AUT",2050,1075.26,"    8.36","-15.62"," 48.17",0,0]
["Millstatt",9872,"AUT",8742,1189.53,"    8.67","-13.57"," 46.80",0,0]
["Mondsee",5310,"AUT",4180,1046.56,"    7.84","-13.33"," 47.85",0,0]
["Mönichkirchen",2872,"AUT",1742,1083.3,"    6.25","-16.17"," 47.50",0,0]
["Nauders",6543,"AUT",5413,1201.4100000000001,"    4.71","-10.50"," 46.88",0,0]
["Neumarkt in der Steiermark",8820,"AUT",7690,1161.95,"    6.39","-14.42"," 47.67",0,0]
["Obervellach",9821,"AUT",8691,1226.7,"    8.44","-13.20"," 46.93",0,0]
["Oberwölz Stadt",8832,"AUT",{"$f":"IF(B35>$L$3,B35-$L$3,$L$3-B35)","v":7702},1107.8499999999999,"    6.20","-14.27"," 47.20",{"$f":"IF($L$4=D35,E35,0)","v":0},0]
["Radentheim",9545,"AUT",8415,1133.1199999999999,"    7.53","-13.70"," 46.80",0,0]
["Ramsau Dachstein",8972,"AUT",7842,1129.03,"    5.16","-12.88"," 47.60",0,0]
["Rauris",5661,"AUT",4531,1124.1500000000001,"    5.82","-12.98"," 47.23",0,0]
["Reichersberg",4981,"AUT",3851,1037.3699999999999,"    8.48","-13.37"," 48.33",0,0]
["Reichraming",4462,"AUT",3332,1068.82,"    8.13","-14.45"," 47.88",0,0]
["Salzburg",5020,"AUT",3890,1113.6099999999999,"    8.39","-13.33"," 47.82",0,0]
["St. Lorenzen im Lesachtal",9654,"AUT",8524,1217.1300000000001,"    5.73"," 12.77"," 46.70",0,0]
["St. Michael i. Lundgau",5582,"AUT",4452,1194.76,"    6.55","-13.48"," 47.83",0,0]
["St. Pölten",3100,"AUT",1970,1031.18,"    8.59","-15.60"," 48.20",0,0]
["Velden am Wörtersee",9220,"AUT",8090,1189.4000000000001,"    8.04","-14.33"," 46.62",0,0]
["Villach",9500,"AUT",8370,1188.95,"    8.04","-13.83"," 46.62",0,0]
["Wels",4600,"AUT",3470,1036.5,"    8.67","-14.17"," 48.17",0,0]
["Weyer Mark",3335,"AUT",2205,1106.53,"    7.58","-14.65"," 47.85",0,0]
["Wien",1190,"AUT",60,1084.48,"    9.77","-16.33"," 48.20",1084.48,1]
["Wiener Neustadt",2700,"AUT",1570,1080.56,"    9.44","-16.23"," 47.82",0,0]
["Wolfsberg",9400,"AUT",8270,1066.68,"    7.86","-14.83"," 46.85",0,0]
["Zell am See",5700,"AUT",4570,1080.32,"    6.55","-12.77"," 47.32",0,0]
["Zwettl",3910,"AUT",2780,1051.52,"    5.71","-15.15"," 48.58",0,0]
[null,null,null,null,null,null,null,"Einstrahlungswert:",{"$f":"SUM(I3:I53)","v":1084.48},{"$f":"SUM(J3:J53)","v":1},{"$f":"I54/J54","v":1084.48}]

{"sheet":"PLZ-Zuordnung","index":5,"n_rows":2460,"n_cols":10,"rows_kept":2460,"cut":false,"hidden":true,"merged":[]}
["PLZ","Ort","Bundesland","NamePLZTyp","intern_extern","adressierbar","Postfach"]
[null,null,null,null,null,null,null,null,"Zuordnung der PLZ und des Ortes (Bundesland):"]
[1004,"Wien","W","InteressentenPLZ","extern","Nein","Ja",null,{"$f":"Eingabe!D11","v":1130},{"$f":"VLOOKUP(I3,A3:C2460,3,TRUE)","v":"W"}]
[1010,"Wien","W","PLZ-Adressierung","extern","Ja","Ja",null,null,{"$f":"VLOOKUP(J3,I7:J15,2,TRUE)","v":"Wien"}]
[1011,"Wien Postfach","W","PLZ-Postfach","extern","Nein","Ja",null,null,{"$f":"VLOOKUP(I3,A3:C2460,2,FALSE)","v":"Wien"}]
[1012,"Wien","W","PLZ-Postfach","extern","Nein","Ja"]
[1013,"Wien","W","PLZ-Postfach","extern","Nein","Ja",null,"B","Burgenland"]
[1014,"Wien","W","PLZ-Postfach","extern","Nein","Ja",null,"K","Kärnten"]
[1015,"Wien","W","PLZ-Postfach","extern","Nein","Ja",null,"N","Niederösterreich"]
[1016,"Wien","W","PLZ-Postfach","extern","Nein","Ja",null,"O","Oberösterreich"]
[1017,"Wien-Parlament","W","PLZ-Postfach","extern","Nein","Ja",null,"Sa","Salzburg"]
[1018,"Wien","W","PLZ-Postfach","extern","Nein","Ja",null,"St","Steiermark"]
[1020,"Wien","W","PLZ-Adressierung","extern","Ja","Ja",null,"T","Tirol"]
[1021,"Wien Postfach","W","PLZ-Postfach","extern","Nein","Ja",null,"V","Vorarlberg"]
[1022,"Wien","W","PLZ-Postfach","extern","Nein","Ja",null,"W","Wien"]
[1023,"Wien","W","PLZ-Postfach","extern","Nein","Ja"]
[1024,"Wien","W","PLZ-Postfach","extern","Nein","Ja"]
[1025,"Wien","W","PLZ-Postfach","extern","Nein","Ja"]
[1029,"Wien","W","InteressentenPLZ","extern","Nein","Ja"]
[1030,"Wien","W","PLZ-Adressierung","extern","Ja","Ja"]
[1031,"Wien Postfach","W","PLZ-Postfach","extern","Nein","Ja"]
[1033,"Wien","W","PLZ-Postfach","extern","Nein","Ja"]
[1034,"Wien","W","PLZ-Postfach","extern","Nein","Ja"]
[1035,"Wien","W","PLZ-Postfach","extern","Nein","Ja"]
[1036,"Wien","W","PLZ-Postfach","extern","Nein","Ja"]
[1037,"Wien","W","PLZ-Postfach","extern","Nein","Ja"]
[1038,"Wien","W","InteressentenPLZ","extern","Nein","Ja"]
[1039,"Wien","W","InteressentenPLZ","extern","Nein","Ja"]
[1040,"Wien","W","PLZ-Adressierung","extern","Ja","Ja"]
[1041,"Wien Postfach","W","PLZ-Postfach","extern","Nein","Ja"]
[1042,"Wien","W","PLZ-Postfach","extern","Nein","Ja"]
[1043,"Wien","W","PLZ-Postfach","extern","Nein","Ja"]
[1045,"Wien","W","InteressentenPLZ","extern","Nein","Ja"]
[1050,"Wien","W","PLZ-Adressierung","extern","Ja","Ja"]
[1051,"Wien Postfach","W","PLZ-Postfach","extern","Nein","Ja"]
[1052,"Wien","W","PLZ-Postfach","extern","Nein","Ja"]
[1053,"Wien","W","PLZ-Postfach","extern","Nein","Ja"]
[1060,"Wien","W","PLZ-Adressierung","extern","Ja","Ja"]
[1061,"Wien Postfach","W","PLZ-Postfach","extern","Nein","Ja"]
[1062,"Wien","W","PLZ-Postfach","extern","Nein","Ja"]
[1063,"Wien-VÖPh","W","InteressentenPLZ","extern","Nein","Ja"]
[1070,"Wien","W","PLZ-Adressierung","extern","Ja","Ja"]
[1071,"Wien Postfach","W","PLZ-Postfach","extern","Nein","Ja"]
[1072,"Wien","W","PLZ-Postfach","extern","Nein","Ja"]
[1080,"Wien","W","PLZ-Adressierung","extern","Ja","Ja"]
[1081,"Wien Postfach","W","PLZ-Postfach","extern","Nein","Ja"]
[1082,"Wien","W","PLZ-Postfach","extern","Nein","Ja"]
[1090,"Wien","W","PLZ-Adressierung","extern","Ja","Ja"]
[1091,"Wien Postfach","W","PLZ-Postfach","extern","Nein","Ja"]
[1092,"Wien","W","PLZ-Postfach","extern","Nein","Ja"]
[1093,"Wien","W","PLZ-Postfach","extern","Nein","Ja"]
[1094,"Wien","W","PLZ-Postfach","extern","Nein","Ja"]
[1095,"Wien","W","PLZ-Postfach","extern","Nein","Ja"]
[1096,"Wien","W","PLZ-Postfach","extern","Nein","Ja"]
[1097,"Wien","W","PLZ-Postfach","extern","Nein","Ja"]
[1100,"Wien","W","PLZ-Adressierung","extern","Ja","Ja"]
[1101,"Wien Postfach","W","PLZ-Postfach","extern","Nein","Ja"]
[1102,"Wien","W","PLZ-Postfach","extern","Nein","Ja"]
[1103,"Wien","W","PLZ-Postfach","extern","Nein","Ja"]
[1104,"Wien","W","PLZ-Postfach","extern","Nein","Ja"]
[1105,"Wien","W","PLZ-Postfach","extern","Nein","Ja"]
[1106,"Wien","W","PLZ-Postfach","extern","Nein","Ja"]
[1107,"Wien","W","PLZ-Postfach","extern","Nein","Ja"]
[1108,"Wien","W","PLZ-Postfach","extern","Nein","Ja"]
[1109,"Wien","W","PLZ-Postfach","extern","Nein","Ja"]
[1110,"Wien","W","PLZ-Adressierung","extern","Ja","Ja"]
[1111,"Wien Postfach","W","PLZ-Postfach","extern","Nein","Ja"]
[1112,"Wien","W","PLZ-Postfach","extern","Nein","Ja"]
[1113,"Wien","W","PLZ-Postfach","extern","Nein","Ja"]
[1120,"Wien","W","PLZ-Adressierung","extern","Ja","Ja"]
[1121,"Wien Postfach","W","PLZ-Postfach","extern","Nein","Ja"]
[1122,"Wien","W","PLZ-Postfach","extern","Nein","Ja"]
[1125,"Wien","W","PLZ-Postfach","extern","Nein","Ja"]
[1126,"Wien","W","PLZ-Postfach","extern","Nein","Ja"]
[1127,"Wien","W","PLZ-Postfach","extern","Nein","Ja"]
[1130,"Wien","W","PLZ-Adressierung","extern","Ja","Ja"]
[1131,"Wien Postfach","W","PLZ-Postfach","extern","Nein","Ja"]
[1132,"Wien","W","PLZ-Postfach","extern","Nein","Ja"]
[1133,"Wien","W","PLZ-Postfach","extern","Nein","Ja"]
[1134,"Wien","W","PLZ-Postfach","extern","Nein","Ja"]
[1136,"Wien","W","InteressentenPLZ","extern","Nein","Ja"]
[1140,"Wien","W","PLZ-Adressierung","extern","Ja","Ja"]
[1141,"Wien Postfach","W","PLZ-Postfach","extern","Nein","Ja"]
[1142,"Wien","W","PLZ-Postfach","extern","Nein","Ja"]
[1143,"Wien","W","PLZ-Postfach","extern","Nein","Ja"]
[1144,"Wien","W","PLZ-Postfach","extern","Nein","Ja"]
[1145,"Wien","W","PLZ-Postfach","extern","Nein","Ja"]
[1147,"Wien","W","PLZ-Postfach","extern","Nein","Ja"]
[1148,"Wien","W","InteressentenPLZ","extern","Nein","Ja"]
[1150,"Wien","W","PLZ-Adressierung","extern","Ja","Ja"]
[1151,"Wien Postfach","W","PLZ-Postfach","extern","Nein","Ja"]
[1152,"Wien","W","PLZ-Postfach","extern","Nein","Ja"]
[1153,"Wien","W","PLZ-Postfach","extern","Nein","Ja"]
[1160,"Wien","W","PLZ-Adressierung","extern","Ja","Ja"]
[1161,"Wien Postfach","W","PLZ-Postfach","extern","Nein","Ja"]
[1163,"Wien","W","PLZ-Postfach","extern","Nein","Ja"]
[1165,"Wien","W","PLZ-Postfach","extern","Nein","Ja"]
[1166,"Wien","W","PLZ-Postfach","extern","Nein","Ja"]
[1170,"Wien","W","PLZ-Adressierung","extern","Ja","Ja"]
[1171,"Wien Postfach","W","PLZ-Postfach","extern","Nein","Ja"]
[1172,"Wien","W","PLZ-Postfach","extern","Nein","Ja"]
[1173,"Wien","W","PLZ-Postfach","extern","Nein","Ja"]
[1180,"Wien","W","PLZ-Adressierung","extern","Ja","Ja"]
[1181,"Wien Postfach","W","PLZ-Postfach","extern","Nein","Ja"]
[1182,"Wien","W","PLZ-Postfach","extern","Nein","Ja"]
[1183,"Wien","W","PLZ-Postfach","extern","Nein","Ja"]
[1190,"Wien","W","PLZ-Adressierung","extern","Ja","Ja"]
[1191,"Wien Postfach","W","PLZ-Postfach","extern","Nein","Ja"]
[1192,"Wien","W","PLZ-Postfach","extern","Nein","Ja"]
[1193,"Wien","W","PLZ-Postfach","extern","Nein","Ja"]
[1194,"Wien","W","PLZ-Postfach","extern","Nein","Ja"]
[1195,"Wien","W","PLZ-Postfach","extern","Nein","Ja"]
[1196,"Wien","W","PLZ-Postfach","extern","Nein","Ja"]
[1200,"Wien","W","PLZ-Adressierung","extern","Ja","Ja"]
[1201,"Wien Postfach","W","PLZ-Postfach","extern","Nein","Ja"]
[1202,"Wien","W","PLZ-Postfach","extern","Nein","Ja"]
[1203,"Wien","W","PLZ-Postfach","extern","Nein","Ja"]
[1204,"Wien","W","PLZ-Postfach","extern","Nein","Ja"]
[1205,"Wien","W","PLZ-Postfach","extern","Nein","Ja"]
[1206,"Wien","W","PLZ-Postfach","extern","Nein","Ja"]
[1210,"Wien","W","PLZ-Adressierung","extern","Ja","Ja"]
[1211,"Wien Postfach","W","PLZ-Postfach","extern","Nein","Ja"]
[1212,"Wien","W","PLZ-Postfach","extern","Nein","Ja"]
[1213,"Wien","W","PLZ-Postfach","extern","Nein","Ja"]
[1214,"Wien","W","PLZ-Postfach","extern","Nein","Ja"]
[1215,"Wien","W","PLZ-Postfach","extern","Nein","Ja"]
[1216,"Wien","W","PLZ-Postfach","extern","Nein","Ja"]
[1217,"Wien","W","PLZ-Postfach","extern","Nein","Ja"]
[1218,"Wien","W","PLZ-Postfach","extern","Nein","Ja"]
[1220,"Wien","W","PLZ-Adressierung","extern","Ja","Ja"]
[1221,"Wien Postfach","W","PLZ-Postfach","extern","Nein","Ja"]
[1222,"Wien","W","PLZ-Postfach","extern","Nein","Ja"]
[1223,"Wien","W","PLZ-Postfach","extern","Nein","Ja"]
[1224,"Wien","W","PLZ-Postfach","extern","Nein","Ja"]
[1225,"Wien","W","PLZ-Postfach","extern","Nein","Ja"]
[1226,"Wien","W","PLZ-Postfach","extern","Nein","Ja"]
[1228,"Wien","W","PLZ-Postfach","extern","Nein","Ja"]
[1229,"Wien","W","PLZ-Postfach","extern","Nein","Ja"]
[1230,"Wien","W","PLZ-Adressierung","extern","Ja","Ja"]
[1231,"Wien Postfach","W","PLZ-Postfach","extern","Nein","Ja"]
[1232,"Wien","W","PLZ-Postfach","extern","Nein","Ja"]
[1233,"Wien","W","PLZ-Postfach","extern","Nein","Ja"]
[1234,"Wien","W","PLZ-Postfach","extern","Nein","Ja"]
[1235,"Wien","W","PLZ-Postfach","extern","Nein","Ja"]
[1236,"Wien","W","PLZ-Postfach","extern","Nein","Ja"]
[1238,"Wien","W","PLZ-Postfach","extern","Nein","Ja"]
[1239,"Wien","W","PLZ-Postfach","extern","Nein","Ja"]
[1300,"Wien-Flughafen","W","PLZ-Adressierung","extern","Ja","Ja"]
[1400,"Wien-Vereinte Nationen","W","PLZ-Postfach","extern","Nein","Ja"]
[1402,"Wien","W","PLZ-Postfach","extern","Nein","Ja"]
[1423,"Wien","W","PLZ-Postfach","extern","Nein","Ja"]
[1500,"UNDOF AUSBATT","W","FeldPLZ","extern","Nein","Ja"]
[1502,"AUCON EUFOR","W","FeldPLZ","extern","Nein","Ja"]
[1503,"AUCON KFOR","W","FeldPLZ","extern","Nein","Ja"]
[1600,"Wien","W","InteressentenPLZ","extern","Nein","Ja"]
[2000,"Stockerau","N","PLZ-Adressierung","extern","Ja","Ja"]
[2002,"Großmugl","N","PLZ-Adressierung","extern","Ja","Nein"]
[2003,"Leitzersdorf","N","PLZ-Adressierung","extern","Ja","Nein"]
[2004,"Niederhollabrunn","N","PLZ-Adressierung","extern","Ja","Nein"]
[2011,"Sierndorf","N","PLZ-Adressierung","extern","Ja","Nein"]
[2013,"Göllersdorf","N","PLZ-Adressierung","extern","Ja","Nein"]
[2014,"Breitenwaida","N","PLZ-Adressierung","extern","Ja","Nein"]
[2020,"Hollabrunn","N","PLZ-Adressierung","extern","Ja","Ja"]
[2022,"Immendorf","N","PLZ-Adressierung","extern","Ja","Nein"]
[2023,"Nappersdorf","N","PLZ-Adressierung","extern","Ja","Ja"]
[2024,"Mailberg","N","PLZ-Adressierung","extern","Ja","Nein"]
[2031,"Eggendorf im Thale","N","PLZ-Adressierung","extern","Ja","Nein"]
[2032,"Enzersdorf im Thale","N","PLZ-Adressierung","extern","Ja","Nein"]
[2033,"Kammersdorf","N","PLZ-Adressierung","extern","Ja","Nein"]
[2034,"Großharras","N","PLZ-Adressierung","extern","Ja","Ja"]
[2041,"Wullersdorf","N","PLZ-Adressierung","extern","Ja","Ja"]
[2042,"Guntersdorf","N","PLZ-Adressierung","extern","Ja","Nein"]
[2051,"Zellerndorf","N","PLZ-Adressierung","extern","Ja","Ja"]
[2052,"Pernersdorf-Pfaffendorf","N","PLZ-Adressierung","extern","Ja","Nein"]
[2053,"Jetzelsdorf","N","PLZ-Adressierung","extern","Ja","Nein"]
[2054,"Haugsdorf","N","PLZ-Adressierung","extern","Ja","Ja"]
[2061,"Hadres","N","PLZ-Adressierung","extern","Ja","Ja"]
[2062,"Seefeld-Großkadolz","N","PLZ-Adressierung","extern","Ja","Nein"]
[2063,"Zwingendorf","N","PLZ-Adressierung","extern","Ja","Nein"]
[2064,"Wulzeshofen","N","PLZ-Adressierung","extern","Ja","Nein"]
[2070,"Retz","N","PLZ-Adressierung","extern","Ja","Ja"]
[2073,"Schrattenthal","N","PLZ-Adressierung","extern","Ja","Nein"]
[2074,"Unterretzbach","N","PLZ-Adressierung","extern","Ja","Nein"]
[2081,"Niederfladnitz","N","PLZ-Adressierung","extern","Ja","Nein"]
[2082,"Hardegg","N","PLZ-Adressierung","extern","Ja","Nein"]
[2083,"Pleißing","N","PLZ-Adressierung","extern","Ja","Nein"]
[2084,"Weitersfeld","N","PLZ-Adressierung","extern","Ja","Ja"]
[2091,"Langau","N","PLZ-Adressierung","extern","Ja","Nein"]
[2092,"Riegersburg","N","PLZ-Adressierung","extern","Ja","Nein"]
[2093,"Geras","N","PLZ-Adressierung","extern","Ja","Ja"]
[2094,"Zissersdorf","N","PLZ-Adressierung","extern","Ja","Nein"]
[2095,"Drosendorf","N","PLZ-Adressierung","extern","Ja","Nein"]
[2100,"Korneuburg","N","PLZ-Adressierung","extern","Ja","Ja"]
[2102,"Bisamberg","N","PLZ-Adressierung","extern","Ja","Ja"]
[2103,"Langenzersdorf","N","PLZ-Adressierung","extern","Ja","Ja"]
[2104,"Spillern","N","PLZ-Adressierung","extern","Ja","Ja"]
[2105,"Oberrohrbach","N","PLZ-Adressierung","extern","Ja","Nein"]
[2111,"Rückersdorf-Harmannsdorf","N","PLZ-Adressierung","extern","Ja","Nein"]
[2112,"Würnitz","N","PLZ-Adressierung","extern","Ja","Nein"]
[2113,"Karnabrunn","N","PLZ-Adressierung","extern","Ja","Nein"]
[2114,"Großrußbach","N","PLZ-Adressierung","extern","Ja","Nein"]
[2115,"Ernstbrunn","N","PLZ-Adressierung","extern","Ja","Ja"]
[2116,"Niederleis","N","PLZ-Adressierung","extern","Ja","Nein"]
[2120,"Wolkersdorf im Weinviertel","N","PLZ-Adressierung","extern","Ja","Ja"]
[2122,"Ulrichskirchen","N","PLZ-Adressierung","extern","Ja","Ja"]
[2123,"Schleinbach","N","PLZ-Adressierung","extern","Ja","Nein"]
[2124,"Niederkreuzstetten","N","PLZ-Adressierung","extern","Ja","Ja"]
[2125,"Neubau","N","PLZ-Adressierung","extern","Ja","Nein"]
[2126,"Ladendorf","N","PLZ-Adressierung","extern","Ja","Nein"]
[2130,"Mistelbach","N","PLZ-Adressierung","extern","Ja","Ja"]
[2132,"Frättingsdorf","N","PLZ-Adressierung","extern","Ja","Nein"]
[2133,"Loosdorf","N","PLZ-Adressierung","extern","Ja","Nein"]
[2134,"Staatz-Kautendorf","N","PLZ-Adressierung","extern","Ja","Nein"]
[2135,"Neudorf bei Staatz","N","PLZ-Adressierung","extern","Ja","Nein"]
[2136,"Laa an der Thaya","N","PLZ-Adressierung","extern","Ja","Ja"]
[2141,"Ameis","N","PLZ-Adressierung","extern","Ja","Ja"]
[2143,"Großkrut","N","PLZ-Adressierung","extern","Ja","Nein"]
[2144,"Altlichtenwarth","N","PLZ-Adressierung","extern","Ja","Nein"]
[2145,"Hausbrunn","N","PLZ-Adressierung","extern","Ja","Ja"]
[2151,"Asparn an der Zaya","N","PLZ-Adressierung","extern","Ja","Nein"]
[2152,"Gnadendorf","N","PLZ-Adressierung","extern","Ja","Ja"]
[2153,"Stronsdorf","N","PLZ-Adressierung","extern","Ja","Nein"]
[2154,"Unterstinkenbrunn","N","PLZ-Adressierung","extern","Ja","Nein"]
[2161,"Poysbrunn","N","PLZ-Adressierung","extern","Ja","Ja"]
[2162,"Falkenstein","N","PLZ-Adressierung","extern","Ja","Nein"]
[2163,"Ottenthal","N","PLZ-Adressierung","extern","Ja","Ja"]
[2164,"Wildendürnbach","N","PLZ-Adressierung","extern","Ja","Nein"]
[2165,"Drasenhofen","N","PLZ-Adressierung","extern","Ja","Nein"]
[2170,"Poysdorf","N","PLZ-Adressierung","extern","Ja","Ja"]
[2171,"Herrnbaumgarten","N","PLZ-Adressierung","extern","Ja","Nein"]
[2172,"Schrattenberg","N","PLZ-Adressierung","extern","Ja","Ja"]
[2181,"Dobermannsdorf","N","PLZ-Adressierung","extern","Ja","Nein"]
[2182,"Palterndorf","N","PLZ-Adressierung","extern","Ja","Nein"]
[2183,"Neusiedl an der Zaya","N","PLZ-Adressierung","extern","Ja","Nein"]
[2184,"Hauskirchen","N","PLZ-Adressierung","extern","Ja","Nein"]
[2185,"Prinzendorf an der Zaya","N","PLZ-Adressierung","extern","Ja","Nein"]
[2191,"Gaweinstal","N","PLZ-Adressierung","extern","Ja","Ja"]
[2192,"Kettlasbrunn","N","PLZ-Adressierung","extern","Ja","Nein"]
[2193,"Wilfersdorf","N","PLZ-Adressierung","extern","Ja","Nein"]
[2201,"Gerasdorf","N","PLZ-Adressierung","extern","Ja","Ja"]
[2202,"Enzersfeld","N","PLZ-Adressierung","extern","Ja","Ja"]
[2203,"Großebersdorf","N","PLZ-Adressierung","extern","Ja","Ja"]
[2211,"Pillichsdorf","N","PLZ-Adressierung","extern","Ja","Nein"]
[2212,"Großengersdorf","N","PLZ-Adressierung","extern","Ja","Nein"]
[2213,"Bockfließ","N","PLZ-Adressierung","extern","Ja","Ja"]
[2214,"Auersthal","N","PLZ-Adressierung","extern","Ja","Ja"]
[2215,"Raggendorf","N","PLZ-Adressierung","extern","Ja","Nein"]
[2221,"Groß Schweinbarth","N","PLZ-Adressierung","extern","Ja","Nein"]
[2222,"Bad Pirawarth","N","PLZ-Adressierung","extern","Ja","Nein"]
[2223,"Hohenruppersdorf","N","PLZ-Adressierung","extern","Ja","Nein"]
[2224,"Obersulz","N","PLZ-Adressierung","extern","Ja","Nein"]
[2225,"Zistersdorf","N","PLZ-Adressierung","extern","Ja","Ja"]
[2230,"Gänserndorf","N","PLZ-Adressierung","extern","Ja","Ja"]
[2231,"Strasshof an der Nordbahn","N","PLZ-Adressierung","extern","Ja","Ja"]
[2232,"Deutsch Wagram","N","PLZ-Adressierung","extern","Ja","Ja"]
[2241,"Schönkirchen","N","PLZ-Adressierung","extern","Ja","Nein"]
[2242,"Prottes","N","PLZ-Adressierung","extern","Ja","Ja"]
[2243,"Matzen","N","PLZ-Adressierung","extern","Ja","Nein"]
[2244,"Spannberg","N","PLZ-Adressierung","extern","Ja","Nein"]
[2245,"Velm-Götzendorf","N","PLZ-Adressierung","extern","Ja","Nein"]
[2251,"Ebenthal","N","PLZ-Adressierung","extern","Ja","Nein"]
[2252,"Ollersdorf","N","PLZ-Adressierung","extern","Ja","Nein"]
[2253,"Weikendorf","N","PLZ-Adressierung","extern","Ja","Nein"]
[2261,"Angern an der March","N","PLZ-Adressierung","extern","Ja","Ja"]
[2262,"Stillfried","N","PLZ-Adressierung","extern","Ja","Nein"]
[2263,"Dürnkrut","N","PLZ-Adressierung","extern","Ja","Ja"]
[2264,"Jedenspeigen","N","PLZ-Adressierung","extern","Ja","Nein"]
[2265,"Drösing","N","PLZ-Adressierung","extern","Ja","Nein"]
[2272,"Niederabsdorf","N","PLZ-Adressierung","extern","Ja","Nein"]
[2273,"Hohenau an der March","N","PLZ-Adressierung","extern","Ja","Ja"]
[2274,"Rabensburg","N","PLZ-Adressierung","extern","Ja","Ja"]
[2275,"Bernhardsthal","N","PLZ-Adressierung","extern","Ja","Nein"]
[2276,"Reintal","N","PLZ-Adressierung","extern","Ja","Nein"]
[2281,"Raasdorf","N","PLZ-Adressierung","extern","Ja","Nein"]
[2282,"Markgrafneusiedl","N","PLZ-Adressierung","extern","Ja","Nein"]
[2283,"Obersiebenbrunn","N","PLZ-Adressierung","extern","Ja","Ja"]
[2284,"Untersiebenbrunn","N","PLZ-Adressierung","extern","Ja","Nein"]
[2285,"Leopoldsdorf im Marchfelde","N","PLZ-Adressierung","extern","Ja","Nein"]
[2286,"Haringsee","N","PLZ-Adressierung","extern","Ja","Nein"]
[2291,"Lassee","N","PLZ-Adressierung","extern","Ja","Ja"]
[2292,"Engelhartstetten","N","PLZ-Adressierung","extern","Ja","Nein"]
[2293,"Marchegg Stadt","N","PLZ-Adressierung","extern","Ja","Nein"]
[2294,"Marchegg Bahnhof","N","PLZ-Adressierung","extern","Ja","Ja"]
[2295,"Oberweiden","N","PLZ-Adressierung","extern","Ja","Nein"]
[2301,"Groß-Enzersdorf","N","PLZ-Adressierung","extern","Ja","Ja"]
[2304,"Orth an der Donau","N","PLZ-Adressierung","extern","Ja","Ja"]
[2305,"Eckartsau","N","PLZ-Adressierung","extern","Ja","Nein"]
[2320,"Schwechat","N","PLZ-Adressierung","extern","Ja","Ja"]
[2322,"Zwölfaxing","N","PLZ-Adressierung","extern","Ja","Nein"]
[2323,"Schwechat-Mannswörth","N","PLZ-Postfach","extern","Nein","Ja"]
[2324,"Schwechat-Rannersdorf","N","PLZ-Postfach","extern","Nein","Ja"]
[2325,"Himberg","N","PLZ-Adressierung","extern","Ja","Ja"]
[2326,"Maria Lanzendorf","N","PLZ-Adressierung","extern","Ja","Ja"]
[2331,"Vösendorf","N","PLZ-Adressierung","extern","Ja","Ja"]
[2332,"Hennersdorf","N","PLZ-Adressierung","extern","Ja","Ja"]
[2333,"Leopoldsdorf","N","PLZ-Adressierung","extern","Ja","Ja"]
[2334,"Vösendorf","N","PLZ-Adressierung","extern","Ja","Ja"]
[2340,"Mödling","N","PLZ-Adressierung","extern","Ja","Ja"]
[2342,"Mödling","N","PLZ-Postfach","extern","Nein","Ja"]
[2344,"Maria Enzersdorf","N","PLZ-Adressierung","extern","Ja","Ja"]
[2345,"Brunn am Gebirge","N","PLZ-Adressierung","extern","Ja","Ja"]
[2346,"Maria Enzersdorf-Südstadt","N","PLZ-Postfach","extern","Nein","Ja"]
[2351,"Wiener Neudorf","N","PLZ-Adressierung","extern","Ja","Ja"]
[2352,"Gumpoldskirchen","N","PLZ-Adressierung","extern","Ja","Ja"]
[2353,"Guntramsdorf","N","PLZ-Adressierung","extern","Ja","Ja"]
[2355,"Wiener Neudorf","N","PLZ-Postfach","extern","Nein","Ja"]
[2361,"Laxenburg","N","PLZ-Adressierung","extern","Ja","Ja"]
[2362,"Biedermannsdorf","N","PLZ-Adressierung","extern","Ja","Ja"]
[2371,"Hinterbrühl","N","PLZ-Adressierung","extern","Ja","Ja"]
[2372,"Gießhübl","N","PLZ-Adressierung","extern","Ja","Nein"]
[2380,"Perchtoldsdorf","N","PLZ-Adressierung","extern","Ja","Ja"]
[2381,"Laab im Walde","N","PLZ-Adressierung","extern","Ja","Nein"]
[2384,"Breitenfurt bei Wien","N","PLZ-Adressierung","extern","Ja","Ja"]
[2391,"Kaltenleutgeben","N","PLZ-Adressierung","extern","Ja","Ja"]
[2392,"Sulz im Wienerwald","N","PLZ-Adressierung","extern","Ja","Ja"]
[2393,"Sittendorf","N","PLZ-Adressierung","extern","Ja","Nein"]
[2401,"Fischamend","N","PLZ-Adressierung","extern","Ja","Ja"]
[2402,"Maria Ellend","N","PLZ-Adressierung","extern","Ja","Ja"]
[2403,"Regelsbrunn","N","PLZ-Adressierung","extern","Ja","Nein"]
[2404,"Petronell","N","PLZ-Adressierung","extern","Ja","Nein"]
[2405,"Bad Deutsch Altenburg","N","PLZ-Adressierung","extern","Ja","Ja"]
[2410,"Hainburg an der Donau","N","PLZ-Adressierung","extern","Ja","Ja"]
[2412,"Wolfsthal","N","PLZ-Adressierung","extern","Ja","Nein"]
[2413,"Berg","N","PLZ-Adressierung","extern","Ja","Nein"]
[2421,"Kittsee","B","PLZ-Adressierung","extern","Ja","Ja"]
[2422,"Pama","B","PLZ-Adressierung","extern","Ja","Nein"]
[2423,"Deutsch Jahrndorf","B","PLZ-Adressierung","extern","Ja","Nein"]
[2424,"Zurndorf","B","PLZ-Adressierung","extern","Ja","Ja"]
[2425,"Nickelsdorf","B","PLZ-Adressierung","extern","Ja","Ja"]
[2431,"Kleinneusiedl","N","PLZ-Adressierung","extern","Ja","Nein"]
[2432,"Schwadorf","N","PLZ-Adressierung","extern","Ja","Ja"]
[2433,"Margarethen am Moos","N","PLZ-Adressierung","extern","Ja","Nein"]
[2434,"Götzendorf an der Leitha","N","PLZ-Adressierung","extern","Ja","Nein"]
[2435,"Ebergassing","N","PLZ-Adressierung","extern","Ja","Ja"]
[2440,"Gramatneusiedl","N","PLZ-Adressierung","extern","Ja","Ja"]
[2441,"Mitterndorf an der Fischa","N","PLZ-Adressierung","extern","Ja","Nein"]
[2442,"Unterwaltersdorf","N","PLZ-Adressierung","extern","Ja","Ja"]
[2443,"Deutsch Brodersdorf","N","PLZ-Adressierung","extern","Ja","Ja"]
[2444,"Seibersdorf","N","PLZ-Adressierung","extern","Ja","Nein"]
[2451,"Hof am Leithaberge","N","PLZ-Adressierung","extern","Ja","Ja"]
[2452,"Mannersdorf am Leithagebirge","N","PLZ-Adressierung","extern","Ja","Ja"]
[2453,"Sommerein","N","PLZ-Adressierung","extern","Ja","Nein"]
[2454,"Trautmannsdorf an der Leitha","N","PLZ-Adressierung","extern","Ja","Nein"]
[2460,"Bruck an der Leitha","N","PLZ-Adressierung","extern","Ja","Ja"]
[2462,"Wilfleinsdorf","N","PLZ-Adressierung","extern","Ja","Nein"]
[2463,"Stixneusiedl","N","PLZ-Adressierung","extern","Ja","Nein"]
[2464,"Göttlesbrunn","N","PLZ-Adressierung","extern","Ja","Nein"]
[2465,"Höflein","N","PLZ-Adressierung","extern","Ja","Nein"]
[2471,"Rohrau","N","PLZ-Adressierung","extern","Ja","Nein"]
[2472,"Prellenkirchen","N","PLZ-Adressierung","extern","Ja","Nein"]
[2473,"Potzneusiedl","B","PLZ-Adressierung","extern","Ja","Nein"]
[2474,"Gattendorf","B","PLZ-Adressierung","extern","Ja","Ja"]
[2475,"Neudorf","B","PLZ-Adressierung","extern","Ja","Nein"]
[2481,"Achau","N","PLZ-Adressierung","extern","Ja","Ja"]
[2482,"Münchendorf","N","PLZ-Adressierung","extern","Ja","Ja"]
[2483,"Ebreichsdorf","N","PLZ-Adressierung","extern","Ja","Ja"]
[2485,"Wampersdorf","N","PLZ-Adressierung","extern","Ja","Ja"]
[2486,"Pottendorf","N","PLZ-Adressierung","extern","Ja","Ja"]
[2490,"Ebenfurth","N","PLZ-Adressierung","extern","Ja","Ja"]
[2491,"Neufeld an der Leitha","B","PLZ-Adressierung","extern","Ja","Ja"]
[2492,"Eggendorf","N","PLZ-Adressierung","extern","Ja","Nein"]
[2493,"Lichtenwörth-Nadelburg","N","PLZ-Adressierung","extern","Ja","Ja"]
[2500,"Baden","N","PLZ-Adressierung","extern","Ja","Ja"]
[2502,"Baden-Leesdorf","N","PLZ-Postfach","extern","Nein","Ja"]
[2511,"Pfaffstätten","N","PLZ-Adressierung","extern","Ja","Ja"]
[2512,"Tribuswinkel","N","PLZ-Adressierung","extern","Ja","Ja"]
[2513,"Möllersdorf","N","PLZ-Postfach","extern","Nein","Ja"]
[2514,"Traiskirchen","N","PLZ-Adressierung","extern","Ja","Ja"]
[2521,"Trumau","N","PLZ-Adressierung","extern","Ja","Ja"]
[2522,"Oberwaltersdorf","N","PLZ-Adressierung","extern","Ja","Ja"]
[2523,"Tattendorf","N","PLZ-Adressierung","extern","Ja","Ja"]
[2524,"Teesdorf","N","PLZ-Adressierung","extern","Ja","Nein"]
[2525,"Günselsdorf","N","PLZ-Adressierung","extern","Ja","Ja"]
[2531,"Gaaden","N","PLZ-Adressierung","extern","Ja","Nein"]
[2532,"Heiligenkreuz","N","PLZ-Adressierung","extern","Ja","Ja"]
[2533,"Klausen-Leopoldsdorf","N","PLZ-Adressierung","extern","Ja","Nein"]
[2534,"Alland","N","PLZ-Adressierung","extern","Ja","Ja"]
[2540,"Bad Vöslau","N","PLZ-Adressierung","extern","Ja","Ja"]
[2542,"Kottingbrunn","N","PLZ-Adressierung","extern","Ja","Ja"]
[2544,"Leobersdorf","N","PLZ-Adressierung","extern","Ja","Ja"]
[2551,"Enzesfeld-Lindabrunn","N","PLZ-Adressierung","extern","Ja","Ja"]
[2552,"Hirtenberg","N","PLZ-Adressierung","extern","Ja","Ja"]
[2560,"Berndorf","N","PLZ-Adressierung","extern","Ja","Ja"]
[2562,"Berndorf, Niederösterreich","N","PLZ-Postfach","extern","Nein","Ja"]
[2563,"Pottenstein","N","PLZ-Adressierung","extern","Ja","Ja"]
[2564,"Weissenbach an der Triesting","N","PLZ-Adressierung","extern","Ja","Ja"]
[2565,"Neuhaus","N","PLZ-Adressierung","extern","Ja","Nein"]
[2571,"Altenmarkt-Thenneberg","N","PLZ-Adressierung","extern","Ja","Ja"]
[2572,"Kaumberg","N","PLZ-Adressierung","extern","Ja","Nein"]
[2601,"Sollenau","N","PLZ-Adressierung","extern","Ja","Ja"]
[2602,"Blumau-Neurißhof","N","PLZ-Adressierung","extern","Ja","Nein"]
[2603,"Felixdorf","N","PLZ-Adressierung","extern","Ja","Ja"]
[2604,"Theresienfeld","N","PLZ-Adressierung","extern","Ja","Ja"]
[2620,"Neunkirchen","N","PLZ-Adressierung","extern","Ja","Ja"]
[2622,"Neunkirchen, Niederösterreich","N","PLZ-Postfach","extern","Nein","Ja"]
[2624,"Breitenau","N","PLZ-Adressierung","extern","Ja","Nein"]
[2625,"Schwarzau am Steinfelde","N","PLZ-Adressierung","extern","Ja","Nein"]
[2630,"Ternitz","N","PLZ-Adressierung","extern","Ja","Ja"]
[2631,"Sieding-Stixenstein","N","PLZ-Adressierung","extern","Ja","Nein"]
[2632,"Wimpassing im Schwarzatale","N","PLZ-Adressierung","extern","Ja","Ja"]
[2640,"Gloggnitz","N","PLZ-Adressierung","extern","Ja","Ja"]
[2641,"Schottwien","N","PLZ-Adressierung","extern","Ja","Nein"]
[2642,"Maria Schutz","N","PLZ-Adressierung","extern","Ja","Nein"]
[2650,"Payerbach","N","PLZ-Adressierung","extern","Ja","Ja"]
[2651,"Reichenau an der Rax","N","PLZ-Adressierung","extern","Ja","Ja"]
[2654,"Prein an der Rax","N","PLZ-Adressierung","extern","Ja","Nein"]
[2661,"Naßwald","N","PLZ-Adressierung","extern","Ja","Nein"]
[2662,"Schwarzau im Gebirge","N","PLZ-Adressierung","extern","Ja","Nein"]
[2663,"Rohr im Gebirge","N","PLZ-Adressierung","extern","Ja","Nein"]
[2671,"Küb","N","PLZ-Adressierung","extern","Ja","Nein"]
[2673,"Breitenstein","N","PLZ-Adressierung","extern","Ja","Nein"]
[2680,"Semmering","N","PLZ-Adressierung","extern","Ja","Nein"]
[2700,"Wiener Neustadt","N","PLZ-Adressierung","extern","Ja","Ja"]
[2702,"Wiener Neustadt","N","PLZ-Postfach","extern","Nein","Ja"]
[2704,"Wiener Neustadt","N","PLZ-Postfach","extern","Nein","Ja"]
[2705,"Wiener Neustadt","N","PLZ-Postfach","extern","Nein","Ja"]
[2706,"Wiener Neustadt","N","InteressentenPLZ","extern","Nein","Ja"]
[2721,"Bad Fischau","N","PLZ-Adressierung","extern","Ja","Ja"]
[2722,"Winzendorf","N","PLZ-Adressierung","extern","Ja","Ja"]
[2723,"Muthmannsdorf","N","PLZ-Adressierung","extern","Ja","Nein"]
[2724,"Hohe Wand-Stollhof","N","PLZ-Adressierung","extern","Ja","Nein"]
[2731,"St. Egyden am Steinfeld","N","PLZ-Adressierung","extern","Ja","Nein"]
[2732,"Willendorf","N","PLZ-Adressierung","extern","Ja","Ja"]
[2733,"Grünbach am Schneeberg","N","PLZ-Adressierung","extern","Ja","Ja"]
[2734,"Puchberg am Schneeberg","N","PLZ-Adressierung","extern","Ja","Ja"]
[2751,"Steinabrückl","N","PLZ-Adressierung","extern","Ja","Ja"]
[2752,"Wöllersdorf","N","PLZ-Adressierung","extern","Ja","Ja"]
[2753,"Markt Piesting","N","PLZ-Adressierung","extern","Ja","Ja"]
[2754,"Waldegg","N","PLZ-Adressierung","extern","Ja","Ja"]
[2755,"Oed","N","PLZ-Adressierung","extern","Ja","Nein"]
[2761,"Miesenbach","N","PLZ-Adressierung","extern","Ja","Nein"]
[2763,"Pernitz","N","PLZ-Adressierung","extern","Ja","Ja"]
[2770,"Gutenstein","N","PLZ-Adressierung","extern","Ja","Nein"]
[2801,"Katzelsdorf","N","PLZ-Adressierung","extern","Ja","Nein"]
[2802,"Hochwolkersdorf","N","PLZ-Adressierung","extern","Ja","Nein"]
[2803,"Schwarzenbach","N","PLZ-Adressierung","extern","Ja","Nein"]
[2811,"Wiesmath","N","PLZ-Adressierung","extern","Ja","Ja"]
[2812,"Hollenthon","N","PLZ-Adressierung","extern","Ja","Nein"]
[2813,"Lichtenegg","N","PLZ-Adressierung","extern","Ja","Nein"]
[2821,"Lanzenkirchen","N","PLZ-Adressierung","extern","Ja","Ja"]
[2822,"Bad Erlach","N","PLZ-Adressierung","extern","Ja","Ja"]
[2823,"Pitten","N","PLZ-Adressierung","extern","Ja","Ja"]
[2824,"Seebenstein","N","PLZ-Adressierung","extern","Ja","Nein"]
[2831,"Warth","N","PLZ-Adressierung","extern","Ja","Ja"]
[2832,"Thernberg","N","PLZ-Adressierung","extern","Ja","Nein"]
[2833,"Bromberg","N","PLZ-Adressierung","extern","Ja","Nein"]
[2840,"Grimmenstein","N","PLZ-Adressierung","extern","Ja","Ja"]
[2842,"Edlitz","N","PLZ-Adressierung","extern","Ja","Nein"]
[2851,"Krumbach","N","PLZ-Adressierung","extern","Ja","Ja"]
[2852,"Hochneukirchen","N","PLZ-Adressierung","extern","Ja","Nein"]
[2853,"Bad Schönau","N","PLZ-Adressierung","extern","Ja","Nein"]
[2860,"Kirchschlag in der Buckligen Welt","N","PLZ-Adressierung","extern","Ja","Ja"]
[2870,"Aspang","N","PLZ-Adressierung","extern","Ja","Ja"]
[2871,"Zöbern","N","PLZ-Adressierung","extern","Ja","Nein"]
[2872,"Mönichkirchen","N","PLZ-Adressierung","extern","Ja","Nein"]
[2873,"Feistritz am Wechsel","N","PLZ-Adressierung","extern","Ja","Nein"]
[2880,"Kirchberg am Wechsel","N","PLZ-Adressierung","extern","Ja","Ja"]
[2881,"Trattenbach","N","PLZ-Adressierung","extern","Ja","Nein"]
[3001,"Mauerbach","N","PLZ-Adressierung","extern","Ja","Ja"]
[3002,"Purkersdorf","N","PLZ-Adressierung","extern","Ja","Ja"]
[3003,"Gablitz","N","PLZ-Adressierung","extern","Ja","Ja"]
[3004,"Ried am Riederberg","N","PLZ-Adressierung","extern","Ja","Nein"]
[3011,"Untertullnerbach","N","PLZ-Adressierung","extern","Ja","Ja"]
[3012,"Wolfsgraben","N","PLZ-Adressierung","extern","Ja","Ja"]
[3013,"Tullnerbach-Lawies","N","PLZ-Adressierung","extern","Ja","Ja"]
[3021,"Pressbaum","N","PLZ-Adressierung","extern","Ja","Ja"]
[3031,"Rekawinkel","N","PLZ-Adressierung","extern","Ja","Nein"]
[3032,"Eichgraben","N","PLZ-Adressierung","extern","Ja","Ja"]
[3033,"Altlengbach","N","PLZ-Adressierung","extern","Ja","Ja"]
[3034,"Maria Anzbach","N","PLZ-Adressierung","extern","Ja","Ja"]
[3040,"Neulengbach","N","PLZ-Adressierung","extern","Ja","Ja"]
[3041,"Asperhofen","N","PLZ-Adressierung","extern","Ja","Nein"]
[3042,"Würmla","N","PLZ-Adressierung","extern","Ja","Nein"]
[3051,"St. Christophen","N","PLZ-Adressierung","extern","Ja","Nein"]
[3052,"Innermanzing","N","PLZ-Adressierung","extern","Ja","Nein"]
[3053,"Laaben","N","PLZ-Adressierung","extern","Ja","Nein"]
[3061,"Ollersbach","N","PLZ-Adressierung","extern","Ja","Nein"]
[3062,"Kirchstetten","N","PLZ-Adressierung","extern","Ja","Ja"]
[3071,"Böheimkirchen","N","PLZ-Adressierung","extern","Ja","Ja"]
[3072,"Kasten bei Böheimkirchen","N","PLZ-Adressierung","extern","Ja","Nein"]
[3073,"Stössing","N","PLZ-Adressierung","extern","Ja","Ja"]
[3074,"Michelbach","N","PLZ-Adressierung","extern","Ja","Nein"]
[3100,"St. Pölten","N","PLZ-Adressierung","extern","Ja","Ja"]
[3101,"St. Pölten Postfach","N","PLZ-Postfach","extern","Nein","Ja"]
[3102,"St. Pölten","N","PLZ-Postfach","extern","Nein","Ja"]
[3103,"St. Pölten","N","PLZ-Postfach","extern","Nein","Ja"]
[3104,"St. Pölten-Harland","N","PLZ-Adressierung","extern","Ja","Nein"]
[3105,"St. Pölten-Radlberg","N","PLZ-Adressierung","extern","Ja","Nein"]
[3106,"St. Pölten-Spratzern","N","PLZ-Postfach","extern","Nein","Ja"]
[3107,"St. Pölten-Traisenpark","N","PLZ-Adressierung","extern","Ja","Ja"]
[3108,"St. Pölten-Wagram","N","PLZ-Postfach","extern","Nein","Ja"]
[3109,"St. Pölten","N","PLZ-Postfach","extern","Nein","Ja"]
[3110,"Neidling","N","PLZ-Adressierung","extern","Ja","Nein"]
[3111,"St. Pölten","N","PLZ-Postfach","extern","Nein","Ja"]
[3121,"Karlstetten","N","PLZ-Adressierung","extern","Ja","Ja"]
[3122,"Gansbach","N","PLZ-Adressierung","extern","Ja","Nein"]
[3123,"Obritzberg","N","PLZ-Adressierung","extern","Ja","Nein"]
[3124,"Oberwölbling","N","PLZ-Adressierung","extern","Ja","Nein"]
[3125,"Statzendorf","N","PLZ-Adressierung","extern","Ja","Nein"]
[3130,"Herzogenburg","N","PLZ-Adressierung","extern","Ja","Ja"]
[3131,"Getzersdorf","N","PLZ-Adressierung","extern","Ja","Nein"]
[3133,"Traismauer","N","PLZ-Adressierung","extern","Ja","Ja"]
[3134,"Nußdorf","N","PLZ-Adressierung","extern","Ja","Nein"]
[3140,"Pottenbrunn","N","PLZ-Adressierung","extern","Ja","Nein"]
[3141,"Kapelln","N","PLZ-Adressierung","extern","Ja","Nein"]
[3142,"Perschling","N","PLZ-Adressierung","extern","Ja","Nein"]
[3143,"Pyhra","N","PLZ-Adressierung","extern","Ja","Ja"]
[3144,"Wald","N","PLZ-Adressierung","extern","Ja","Nein"]
[3150,"Wilhelmsburg","N","PLZ-Adressierung","extern","Ja","Ja"]
[3151,"St. Georgen am Steinfelde","N","PLZ-Adressierung","extern","Ja","Nein"]
[3153,"Eschenau","N","PLZ-Adressierung","extern","Ja","Nein"]
[3160,"Traisen","N","PLZ-Adressierung","extern","Ja","Ja"]
[3161,"St. Veit an der Gölsen","N","PLZ-Adressierung","extern","Ja","Ja"]
[3162,"Rainfeld","N","PLZ-Adressierung","extern","Ja","Nein"]
[3163,"Rohrbach","N","PLZ-Adressierung","extern","Ja","Nein"]
[3170,"Hainfeld","N","PLZ-Adressierung","extern","Ja","Ja"]
[3171,"Kleinzell-Salzerbad","N","PLZ-Adressierung","extern","Ja","Nein"]
[3172,"Ramsau","N","PLZ-Adressierung","extern","Ja","Nein"]
[3180,"Lilienfeld","N","PLZ-Adressierung","extern","Ja","Ja"]
[3182,"Marktl, Traisental","N","InteressentenPLZ","extern","Nein","Ja"]
[3183,"Freiland","N","PLZ-Adressierung","extern","Ja","Nein"]
[3184,"Türnitz","N","PLZ-Adressierung","extern","Ja","Ja"]
[3192,"Hohenberg","N","PLZ-Adressierung","extern","Ja","Nein"]
[3193,"St. Aegyd am Neuwalde","N","PLZ-Adressierung","extern","Ja","Ja"]
[3195,"Kernhof","N","PLZ-Adressierung","extern","Ja","Nein"]
[3200,"Ober-Grafendorf","N","PLZ-Adressierung","extern","Ja","Ja"]
[3202,"Hofstetten","N","PLZ-Adressierung","extern","Ja","Nein"]
[3203,"Rabenstein an der Pielach","N","PLZ-Adressierung","extern","Ja","Ja"]
[3204,"Kirchberg an der Pielach","N","PLZ-Adressierung","extern","Ja","Ja"]
[3211,"Loich","N","PLZ-Adressierung","extern","Ja","Nein"]
[3212,"Schwarzenbach an der Pielach","N","PLZ-Adressierung","extern","Ja","Nein"]
[3213,"Frankenfels","N","PLZ-Adressierung","extern","Ja","Ja"]
[3214,"Puchenstuben","N","PLZ-Adressierung","extern","Ja","Ja"]
[3221,"Gösing an der Mariazellerbahn","N","PLZ-Adressierung","extern","Ja","Nein"]
[3222,"Annaberg","N","PLZ-Adressierung","extern","Ja","Nein"]
[3223,"Wienerbruck","N","PLZ-Adressierung","extern","Ja","Nein"]
[3224,"Mitterbach","N","PLZ-Adressierung","extern","Ja","Nein"]
[3231,"St. Margarethen an der Sierning","N","PLZ-Adressierung","extern","Ja","Nein"]
[3232,"Bischofstetten","N","PLZ-Adressierung","extern","Ja","Nein"]
[3233,"Kilb","N","PLZ-Adressierung","extern","Ja","Nein"]
[3240,"Mank","N","PLZ-Adressierung","extern","Ja","Ja"]
[3241,"Kirnberg an der Mank","N","PLZ-Adressierung","extern","Ja","Nein"]
[3242,"Texing","N","PLZ-Adressierung","extern","Ja","Nein"]
[3243,"St. Leonhard am Forst","N","PLZ-Adressierung","extern","Ja","Ja"]
[3244,"Ruprechtshofen","N","PLZ-Adressierung","extern","Ja","Nein"]
[3250,"Wieselburg","N","PLZ-Adressierung","extern","Ja","Ja"]
[3251,"Purgstall","N","PLZ-Adressierung","extern","Ja","Ja"]
[3252,"Petzenkirchen","N","PLZ-Adressierung","extern","Ja","Nein"]
[3253,"Erlauf","N","PLZ-Adressierung","extern","Ja","Nein"]
[3261,"Steinakirchen am Forst","N","PLZ-Adressierung","extern","Ja","Ja"]
[3262,"Wang","N","PLZ-Adressierung","extern","Ja","Nein"]
[3263,"Randegg","N","PLZ-Adressierung","extern","Ja","Nein"]
[3264,"Gresten","N","PLZ-Adressierung","extern","Ja","Ja"]
[3270,"Scheibbs","N","PLZ-Adressierung","extern","Ja","Ja"]
[3281,"Oberndorf an der Melk","N","PLZ-Adressierung","extern","Ja","Ja"]
[3282,"St. Georgen an der Leys","N","PLZ-Adressierung","extern","Ja","Nein"]
[3283,"St. Anton an der Jeßnitz","N","PLZ-Adressierung","extern","Ja","Nein"]
[3291,"Kienberg","N","PLZ-Adressierung","extern","Ja","Nein"]
[3292,"Gaming","N","PLZ-Adressierung","extern","Ja","Ja"]
[3293,"Lunz am See","N","PLZ-Adressierung","extern","Ja","Ja"]
[3294,"Langau","N","PLZ-Adressierung","extern","Ja","Nein"]
[3295,"Lackenhof","N","PLZ-Adressierung","extern","Ja","Nein"]
[3300,"Amstetten","N","PLZ-Adressierung","extern","Ja","Ja"]
[3302,"Amstetten, Niederösterreich","N","PLZ-Postfach","extern","Nein","Ja"]
[3304,"St. Georgen am Ybbsfelde","N","PLZ-Adressierung","extern","Ja","Nein"]
[3311,"Zeillern","N","PLZ-Adressierung","extern","Ja","Nein"]
[3312,"Oed","N","PLZ-Adressierung","extern","Ja","Nein"]
[3313,"Wallsee","N","PLZ-Adressierung","extern","Ja","Nein"]
[3314,"Strengberg","N","PLZ-Adressierung","extern","Ja","Ja"]
[3321,"Ardagger","N","PLZ-Adressierung","extern","Ja","Ja"]
[3322,"Viehdorf","N","PLZ-Adressierung","extern","Ja","Nein"]
[3323,"Neustadtl an der Donau","N","PLZ-Adressierung","extern","Ja","Nein"]
[3324,"Euratsfeld","N","PLZ-Adressierung","extern","Ja","Ja"]
[3325,"Ferschnitz","N","PLZ-Adressierung","extern","Ja","Nein"]
[3331,"Kematen","N","PLZ-Adressierung","extern","Ja","Ja"]
[3332,"Rosenau am Sonntagberg","N","PLZ-Adressierung","extern","Ja","Nein"]
[3333,"Böhlerwerk","N","PLZ-Adressierung","extern","Ja","Nein"]
[3334,"Gaflenz","O","PLZ-Adressierung","extern","Ja","Ja"]
[3335,"Weyer","O","PLZ-Adressierung","extern","Ja","Ja"]
[3340,"Waidhofen an der Ybbs","N","PLZ-Adressierung","extern","Ja","Ja"]
[3341,"Ybbsitz","N","PLZ-Adressierung","extern","Ja","Ja"]
[3342,"Opponitz","N","PLZ-Adressierung","extern","Ja","Nein"]
[3343,"Hollenstein an der Ybbs","N","PLZ-Adressierung","extern","Ja","Ja"]
[3344,"St. Georgen am Reith","N","PLZ-Adressierung","extern","Ja","Nein"]
[3345,"Göstling an der Ybbs","N","PLZ-Adressierung","extern","Ja","Ja"]
[3350,"Haag","N","PLZ-Adressierung","extern","Ja","Ja"]
[3351,"Weistrach","N","PLZ-Adressierung","extern","Ja","Nein"]
[3352,"St. Peter in der Au","N","PLZ-Adressierung","extern","Ja","Ja"]
[3353,"Seitenstetten","N","PLZ-Adressierung","extern","Ja","Ja"]
[3354,"Wolfsbach","N","PLZ-Adressierung","extern","Ja","Nein"]
[3355,"Ertl","N","PLZ-Adressierung","extern","Ja","Nein"]
[3361,"Aschbach Markt","N","PLZ-Adressierung","extern","Ja","Ja"]
[3362,"Mauer-Öhling","N","PLZ-Adressierung","extern","Ja","Nein"]
[3363,"Ulmerfeld-Hausmening","N","PLZ-Adressierung","extern","Ja","Ja"]
[3364,"Neuhofen an der Ybbs","N","PLZ-Adressierung","extern","Ja","Nein"]
[3365,"Allhartsberg","N","PLZ-Adressierung","extern","Ja","Nein"]
[3370,"Ybbs an der Donau","N","PLZ-Adressierung","extern","Ja","Ja"]
[3371,"Neumarkt an der Ybbs","N","PLZ-Adressierung","extern","Ja","Nein"]
[3372,"Blindenmarkt","N","PLZ-Adressierung","extern","Ja","Ja"]
[3373,"Kemmelbach","N","PLZ-Adressierung","extern","Ja","Ja"]
[3374,"Säusenstein","N","PLZ-Adressierung","extern","Ja","Nein"]
[3375,"Krummnußbaum","N","PLZ-Adressierung","extern","Ja","Nein"]
[3380,"Pöchlarn","N","PLZ-Adressierung","extern","Ja","Ja"]
[3381,"Golling","N","PLZ-Adressierung","extern","Ja","Nein"]
[3382,"Loosdorf","N","PLZ-Adressierung","extern","Ja","Ja"]
[3383,"Hürm","N","PLZ-Adressierung","extern","Ja","Ja"]
[3384,"Groß Sierning","N","PLZ-Adressierung","extern","Ja","Nein"]
[3385,"Prinzersdorf","N","PLZ-Adressierung","extern","Ja","Ja"]
[3386,"Hafnerbach","N","PLZ-Adressierung","extern","Ja","Nein"]
[3390,"Melk","N","PLZ-Adressierung","extern","Ja","Ja"]
[3392,"Schönbühel an der Donau","N","PLZ-Adressierung","extern","Ja","Nein"]
[3393,"Matzleinsdorf","N","PLZ-Adressierung","extern","Ja","Nein"]
[3400,"Klosterneuburg","N","PLZ-Adressierung","extern","Ja","Ja"]
[3403,"Klosterneuburg","N","PLZ-Postfach","extern","Nein","Ja"]
[3411,"Weidling","N","PLZ-Postfach","extern","Nein","Ja"]
[3412,"Kierling","N","PLZ-Postfach","extern","Nein","Ja"]
[3413,"Hintersdorf","N","PLZ-Adressierung","extern","Ja","Nein"]
[3420,"Kritzendorf","N","PLZ-Adressierung","extern","Ja","Ja"]
[3421,"Höflein an der Donau","N","PLZ-Adressierung","extern","Ja","Nein"]
[3422,"Greifenstein","N","PLZ-Adressierung","extern","Ja","Nein"]
[3423,"St. Andrä-Wördern","N","PLZ-Adressierung","extern","Ja","Ja"]
[3424,"Zeiselmauer","N","PLZ-Adressierung","extern","Ja","Ja"]
[3425,"Langenlebarn","N","PLZ-Adressierung","extern","Ja","Ja"]
[3430,"Tulln an der Donau","N","PLZ-Adressierung","extern","Ja","Ja"]
[3433,"Königstetten","N","PLZ-Adressierung","extern","Ja","Nein"]
[3434,"Tulbing","N","PLZ-Adressierung","extern","Ja","Ja"]
[3435,"Zwentendorf an der Donau","N","PLZ-Adressierung","extern","Ja","Ja"]
[3441,"Judenau","N","PLZ-Adressierung","extern","Ja","Nein"]
[3442,"Langenrohr","N","PLZ-Adressierung","extern","Ja","Nein"]
[3443,"Sieghartskirchen","N","PLZ-Adressierung","extern","Ja","Ja"]
[3451,"Michelhausen","N","PLZ-Adressierung","extern","Ja","Ja"]
[3452,"Atzenbrugg","N","PLZ-Adressierung","extern","Ja","Ja"]
[3454,"Sitzenberg-Reidling","N","PLZ-Adressierung","extern","Ja","Ja"]
[3462,"Absdorf","N","PLZ-Adressierung","extern","Ja","Ja"]
[3463,"Stetteldorf am Wagram","N","PLZ-Adressierung","extern","Ja","Nein"]
[3464,"Hausleiten","N","PLZ-Adressierung","extern","Ja","Ja"]
[3465,"Königsbrunn am Wagram","N","PLZ-Adressierung","extern","Ja","Ja"]
[3470,"Kirchberg am Wagram","N","PLZ-Adressierung","extern","Ja","Ja"]
[3471,"Großriedenthal","N","PLZ-Adressierung","extern","Ja","Ja"]
[3472,"Hohenwarth","N","PLZ-Adressierung","extern","Ja","Nein"]
[3473,"Mühlbach am Manhartsberg","N","PLZ-Adressierung","extern","Ja","Nein"]
[3474,"Altenwörth","N","PLZ-Adressierung","extern","Ja","Nein"]
[3481,"Fels am Wagram","N","PLZ-Adressierung","extern","Ja","Ja"]
[3482,"Gösing am Wagram","N","PLZ-Adressierung","extern","Ja","Nein"]
[3483,"Feuersbrunn","N","PLZ-Adressierung","extern","Ja","Nein"]
[3484,"Grafenwörth","N","PLZ-Adressierung","extern","Ja","Ja"]
[3485,"Haitzendorf","N","PLZ-Adressierung","extern","Ja","Nein"]
[3491,"Straß im Straßertale","N","PLZ-Adressierung","extern","Ja","Ja"]
[3492,"Etsdorf am Kamp","N","PLZ-Adressierung","extern","Ja","Ja"]
[3493,"Hadersdorf am Kamp","N","PLZ-Adressierung","extern","Ja","Ja"]
[3494,"Gedersdorf","N","PLZ-Adressierung","extern","Ja","Ja"]
[3495,"Rohrendorf bei Krems","N","PLZ-Adressierung","extern","Ja","Nein"]
[3500,"Krems an der Donau","N","PLZ-Adressierung","extern","Ja","Ja"]
[3502,"Krems-Lerchenfeld","N","PLZ-Postfach","extern","Nein","Ja"]
[3504,"Krems-Stein","N","PLZ-Postfach","extern","Nein","Ja"]
[3506,"Krems-Hollenburg","N","PLZ-Adressierung","extern","Ja","Nein"]
[3507,"Krems-Mitterau","N","PLZ-Postfach","extern","Nein","Ja"]
[3508,"Paudorf","N","PLZ-Adressierung","extern","Ja","Nein"]
[3511,"Furth bei Göttweig","N","PLZ-Adressierung","extern","Ja","Ja"]
[3512,"Mautern","N","PLZ-Adressierung","extern","Ja","Ja"]
[3521,"Obermeisling","N","PLZ-Adressierung","extern","Ja","Nein"]
[3522,"Lichtenau","N","PLZ-Adressierung","extern","Ja","Nein"]
[3524,"Grainbrunn","N","PLZ-Adressierung","extern","Ja","Ja"]
[3525,"Sallingberg","N","PLZ-Adressierung","extern","Ja","Nein"]
[3531,"Niedernondorf","N","PLZ-Adressierung","extern","Ja","Nein"]
[3532,"Rastenfeld","N","PLZ-Adressierung","extern","Ja","Ja"]
[3533,"Friedersbach","N","PLZ-Adressierung","extern","Ja","Nein"]
[3541,"Senftenberg","N","PLZ-Adressierung","extern","Ja","Ja"]
[3542,"Gföhl","N","PLZ-Adressierung","extern","Ja","Ja"]
[3543,"Krumau am Kamp","N","PLZ-Adressierung","extern","Ja","Nein"]
[3544,"Idolsberg","N","PLZ-Adressierung","extern","Ja","Nein"]
[3550,"Langenlois","N","PLZ-Adressierung","extern","Ja","Ja"]
[3552,"Lengenfeld","N","PLZ-Adressierung","extern","Ja","Ja"]
[3553,"Schiltern","N","PLZ-Adressierung","extern","Ja","Ja"]
[3561,"Zöbing","N","PLZ-Adressierung","extern","Ja","Nein"]
[3562,"Schönberg","N","PLZ-Adressierung","extern","Ja","Nein"]
[3564,"Plank am Kamp","N","PLZ-Adressierung","extern","Ja","Nein"]
[3571,"Gars am Kamp","N","PLZ-Adressierung","extern","Ja","Ja"]
[3572,"St. Leonhard am Hornerwald","N","PLZ-Adressierung","extern","Ja","Nein"]
[3573,"Rosenburg","N","PLZ-Adressierung","extern","Ja","Nein"]
[3580,"Horn","N","PLZ-Adressierung","extern","Ja","Ja"]
[3591,"Altenburg","N","PLZ-Adressierung","extern","Ja","Nein"]
[3592,"Röhrenbach","N","PLZ-Adressierung","extern","Ja","Nein"]
[3593,"Neupölla","N","PLZ-Adressierung","extern","Ja","Ja"]
[3594,"Franzen","N","PLZ-Adressierung","extern","Ja","Nein"]
[3595,"Brunn an der Wild","N","PLZ-Adressierung","extern","Ja","Nein"]
[3601,"Dürnstein","N","PLZ-Adressierung","extern","Ja","Nein"]
[3602,"Rossatz","N","PLZ-Adressierung","extern","Ja","Nein"]
[3610,"Weißenkirchen in der Wachau","N","PLZ-Adressierung","extern","Ja","Ja"]
[3611,"Großheinrichschlag","N","PLZ-Adressierung","extern","Ja","Ja"]
[3613,"Albrechtsberg an der Großen Krems","N","PLZ-Adressierung","extern","Ja","Nein"]
[3620,"Spitz","N","PLZ-Adressierung","extern","Ja","Ja"]
[3621,"Mitterarnsdorf","N","PLZ-Adressierung","extern","Ja","Nein"]
[3622,"Mühldorf","N","PLZ-Adressierung","extern","Ja","Ja"]
[3623,"Kottes","N","PLZ-Adressierung","extern","Ja","Nein"]
[3631,"Ottenschlag","N","PLZ-Adressierung","extern","Ja","Ja"]
[3632,"Traunstein","N","PLZ-Adressierung","extern","Ja","Ja"]
[3633,"Schönbach","N","PLZ-Adressierung","extern","Ja","Nein"]
[3641,"Aggsbach Markt","N","PLZ-Adressierung","extern","Ja","Nein"]
[3642,"Aggsbach Dorf","N","PLZ-Adressierung","extern","Ja","Nein"]
[3643,"Maria Laach am Jauerling","N","PLZ-Adressierung","extern","Ja","Ja"]
[3644,"Emmersdorf an der Donau","N","PLZ-Adressierung","extern","Ja","Nein"]
[3650,"Pöggstall","N","PLZ-Adressierung","extern","Ja","Ja"]
[3652,"Leiben","N","PLZ-Adressierung","extern","Ja","Nein"]
[3653,"Weiten","N","PLZ-Adressierung","extern","Ja","Ja"]
[3654,"Raxendorf","N","PLZ-Adressierung","extern","Ja","Ja"]
[3660,"Klein-Pöchlarn","N","PLZ-Adressierung","extern","Ja","Nein"]
[3661,"Artstetten","N","PLZ-Adressierung","extern","Ja","Ja"]
[3662,"Münichreith","N","PLZ-Adressierung","extern","Ja","Nein"]
[3663,"Laimbach am Ostrong","N","PLZ-Adressierung","extern","Ja","Nein"]
[3664,"Martinsberg","N","PLZ-Adressierung","extern","Ja","Ja"]
[3665,"Gutenbrunn","N","PLZ-Adressierung","extern","Ja","Nein"]
[3671,"Marbach an der Donau","N","PLZ-Adressierung","extern","Ja","Ja"]
[3672,"Maria Taferl","N","PLZ-Adressierung","extern","Ja","Ja"]
[3680,"Persenbeug","N","PLZ-Adressierung","extern","Ja","Ja"]
[3683,"Yspertal","N","PLZ-Adressierung","extern","Ja","Ja"]
[3684,"St. Oswald","N","PLZ-Adressierung","extern","Ja","Nein"]
[3691,"Nöchling","N","PLZ-Adressierung","extern","Ja","Nein"]
[3701,"Großweikersdorf","N","PLZ-Adressierung","extern","Ja","Ja"]
[3702,"Niederrußbach","N","PLZ-Adressierung","extern","Ja","Nein"]
[3704,"Glaubendorf","N","PLZ-Adressierung","extern","Ja","Nein"]
[3710,"Ziersdorf","N","PLZ-Adressierung","extern","Ja","Ja"]
[3711,"Großmeiseldorf","N","PLZ-Adressierung","extern","Ja","Nein"]
[3712,"Maissau","N","PLZ-Adressierung","extern","Ja","Ja"]
[3713,"Harmannsdorf","N","PLZ-Adressierung","extern","Ja","Nein"]
[3714,"Sitzendorf an der Schmida","N","PLZ-Adressierung","extern","Ja","Nein"]
[3720,"Ravelsbach","N","PLZ-Adressierung","extern","Ja","Nein"]
[3721,"Limberg","N","PLZ-Adressierung","extern","Ja","Nein"]
[3722,"Straning","N","PLZ-Adressierung","extern","Ja","Nein"]
[3730,"Eggenburg","N","PLZ-Adressierung","extern","Ja","Ja"]
[3741,"Pulkau","N","PLZ-Adressierung","extern","Ja","Ja"]
[3742,"Theras","N","PLZ-Adressierung","extern","Ja","Nein"]
[3743,"Röschitz","N","PLZ-Adressierung","extern","Ja","Nein"]
[3744,"Stockern","N","PLZ-Adressierung","extern","Ja","Nein"]
[3751,"Sigmundsherberg","N","PLZ-Adressierung","extern","Ja","Ja"]
[3752,"Walkenstein","N","PLZ-Adressierung","extern","Ja","Nein"]
[3753,"Hötzelsdorf","N","PLZ-Adressierung","extern","Ja","Nein"]
[3754,"Irnfritz","N","PLZ-Adressierung","extern","Ja","Nein"]
[3761,"Messern","N","PLZ-Adressierung","extern","Ja","Nein"]
[3762,"Ludweis","N","PLZ-Adressierung","extern","Ja","Nein"]
[3763,"Japons","N","PLZ-Adressierung","extern","Ja","Ja"]
[3800,"Göpfritz an der Wild","N","PLZ-Adressierung","extern","Ja","Nein"]
[3804,"Allentsteig","N","PLZ-Adressierung","extern","Ja","Ja"]
[3811,"Kirchberg an der Wild","N","PLZ-Adressierung","extern","Ja","Nein"]
[3812,"Groß Siegharts","N","PLZ-Adressierung","extern","Ja","Ja"]
[3813,"Dietmanns","N","PLZ-Adressierung","extern","Ja","Nein"]
[3814,"Aigen","N","PLZ-Adressierung","extern","Ja","Nein"]
[3820,"Raabs an der Thaya","N","PLZ-Adressierung","extern","Ja","Ja"]
[3822,"Karlstein an der Thaya","N","PLZ-Adressierung","extern","Ja","Nein"]
[3823,"Weikertschlag an der Thaya","N","PLZ-Adressierung","extern","Ja","Nein"]
[3824,"Großau","N","PLZ-Adressierung","extern","Ja","Nein"]
[3830,"Waidhofen an der Thaya","N","PLZ-Adressierung","extern","Ja","Ja"]
[3834,"Pfaffenschlag bei Waidhofen an der Thaya","N","PLZ-Adressierung","extern","Ja","Nein"]
[3841,"Windigsteig","N","PLZ-Adressierung","extern","Ja","Nein"]
[3842,"Thaya","N","PLZ-Adressierung","extern","Ja","Nein"]
[3843,"Dobersberg","N","PLZ-Adressierung","extern","Ja","Ja"]
[3844,"Waldkirchen an der Thaya","N","PLZ-Adressierung","extern","Ja","Nein"]
[3851,"Kautzen","N","PLZ-Adressierung","extern","Ja","Nein"]
[3852,"Gastern","N","PLZ-Adressierung","extern","Ja","Ja"]
[3860,"Heidenreichstein","N","PLZ-Adressierung","extern","Ja","Ja"]
[3861,"Eggern","N","PLZ-Adressierung","extern","Ja","Nein"]
[3862,"Eisgarn","N","PLZ-Adressierung","extern","Ja","Nein"]
[3863,"Reingers","N","PLZ-Adressierung","extern","Ja","Nein"]
[3871,"Nagelberg","N","PLZ-Adressierung","extern","Ja","Ja"]
[3872,"Langegg","N","PLZ-Adressierung","extern","Ja","Nein"]
[3873,"Brand","N","PLZ-Adressierung","extern","Ja","Nein"]
[3874,"Litschau","N","PLZ-Adressierung","extern","Ja","Ja"]
[3900,"Schwarzenau","N","PLZ-Adressierung","extern","Ja","Ja"]
[3902,"Vitis","N","PLZ-Adressierung","extern","Ja","Ja"]
[3903,"Echsenbach","N","PLZ-Adressierung","extern","Ja","Ja"]
[3910,"Zwettl","N","PLZ-Adressierung","extern","Ja","Ja"]
[3911,"Rappottenstein","N","PLZ-Adressierung","extern","Ja","Ja"]
[3912,"Grafenschlag","N","PLZ-Adressierung","extern","Ja","Nein"]
[3913,"Großgöttfritz","N","PLZ-Adressierung","extern","Ja","Nein"]
[3914,"Waldhausen","N","PLZ-Adressierung","extern","Ja","Nein"]
[3920,"Groß Gerungs","N","PLZ-Adressierung","extern","Ja","Ja"]
[3921,"Langschlag","N","PLZ-Adressierung","extern","Ja","Nein"]
[3922,"Großschönau","N","PLZ-Adressierung","extern","Ja","Nein"]
[3923,"Jagenbach","N","PLZ-Adressierung","extern","Ja","Nein"]
[3924,"Rosenau Schloß","N","PLZ-Adressierung","extern","Ja","Nein"]
[3925,"Arbesbach","N","PLZ-Adressierung","extern","Ja","Ja"]
[3931,"Schweiggers","N","PLZ-Adressierung","extern","Ja","Ja"]
[3932,"Kirchberg am Walde","N","PLZ-Adressierung","extern","Ja","Nein"]
[3942,"Hirschbach","N","PLZ-Adressierung","extern","Ja","Nein"]
[3943,"Schrems","N","PLZ-Adressierung","extern","Ja","Ja"]
[3944,"Pürbach","N","PLZ-Adressierung","extern","Ja","Nein"]
[3945,"Hoheneich","N","PLZ-Adressierung","extern","Ja","Nein"]
[3950,"Gmünd","N","PLZ-Adressierung","extern","Ja","Ja"]
[3961,"Waldenstein","N","PLZ-Adressierung","extern","Ja","Nein"]
[3962,"Heinrichs bei Weitra","N","PLZ-Adressierung","extern","Ja","Nein"]
[3970,"Weitra","N","PLZ-Adressierung","extern","Ja","Ja"]
[3971,"St. Martin","N","PLZ-Adressierung","extern","Ja","Nein"]
[3972,"Bad Großpertholz","N","PLZ-Adressierung","extern","Ja","Ja"]
[3973,"Karlstift","N","PLZ-Adressierung","extern","Ja","Nein"]
[4010,"Linz, Donau","O","PLZ-Postfach","extern","Nein","Ja"]
[4013,"Linz, Donau","O","PLZ-Postfach","extern","Nein","Ja"]
[4014,"Linz, Donau","O","PLZ-Postfach","extern","Nein","Ja"]
[4015,"Linz, Donau","O","PLZ-Postfach","extern","Nein","Ja"]
[4017,"Linz, Donau","O","PLZ-Postfach","extern","Nein","Ja"]
[4018,"Linz, Donau","O","PLZ-Postfach","extern","Nein","Ja"]
[4020,"Linz","O","PLZ-Adressierung","extern","Ja","Ja"]
[4021,"Linz, Donau Postfach","O","PLZ-Postfach","extern","Nein","Ja"]
[4025,"Linz, Donau","O","PLZ-Postfach","extern","Nein","Ja"]
[4026,"Linz, Donau","O","PLZ-Postfach","extern","Nein","Ja"]
[4029,"Linz, Donau","O","PLZ-Postfach","extern","Nein","Ja"]
[4030,"Linz","O","PLZ-Adressierung","extern","Ja","Ja"]
[4031,"Linz, Donau Postfach","O","PLZ-Postfach","extern","Nein","Ja"]
[4033,"Linz-Ebelsberg","O","PLZ-Postfach","extern","Nein","Ja"]
[4034,"Linz, Donau","O","PLZ-Postfach","extern","Nein","Ja"]
[4040,"Linz","O","PLZ-Adressierung","extern","Ja","Ja"]
[4041,"Linz, Donau Postfach","O","PLZ-Postfach","extern","Nein","Ja"]
[4044,"Linz, Donau","O","PLZ-Postfach","extern","Nein","Ja"]
[4046,"Linz, Donau","O","PLZ-Postfach","extern","Nein","Ja"]
[4048,"Puchenau","O","PLZ-Adressierung","extern","Ja","Ja"]
[4050,"Traun","O","PLZ-Adressierung","extern","Ja","Ja"]
[4052,"Ansfelden","O","PLZ-Adressierung","extern","Ja","Ja"]
[4053,"Haid","O","PLZ-Adressierung","extern","Ja","Ja"]
[4055,"Pucking","O","PLZ-Adressierung","extern","Ja","Nein"]
[4059,"Leonding","O","PLZ-Postfach","extern","Nein","Ja"]
[4060,"Leonding","O","PLZ-Adressierung","extern","Ja","Ja"]
[4061,"Pasching","O","PLZ-Adressierung","extern","Ja","Ja"]
[4062,"Thening","O","PLZ-Adressierung","extern","Ja","Nein"]
[4063,"Hörsching","O","PLZ-Adressierung","extern","Ja","Ja"]
[4064,"Oftering","O","PLZ-Adressierung","extern","Ja","Ja"]
[4066,"Pasching","O","PLZ-Postfach","extern","Nein","Ja"]
[4069,"Leonding","O","PLZ-Postfach","extern","Nein","Ja"]
[4070,"Eferding","O","PLZ-Adressierung","extern","Ja","Ja"]
[4072,"Alkoven","O","PLZ-Adressierung","extern","Ja","Ja"]
[4073,"Wilhering","O","PLZ-Adressierung","extern","Ja","Ja"]
[4074,"Stroheim","O","PLZ-Adressierung","extern","Ja","Nein"]
[4075,"Breitenaich","O","PLZ-Adressierung","extern","Ja","Nein"]
[4076,"St. Marienkirchen an der Polsenz","O","PLZ-Adressierung","extern","Ja","Nein"]
[4081,"Hartkirchen","O","PLZ-Adressierung","extern","Ja","Ja"]
[4082,"Aschach an der Donau","O","PLZ-Adressierung","extern","Ja","Nein"]
[4083,"Haibach ob der Donau","O","PLZ-Adressierung","extern","Ja","Ja"]
[4084,"St. Agatha","O","PLZ-Adressierung","extern","Ja","Nein"]
[4085,"Wesenufer","O","PLZ-Adressierung","extern","Ja","Ja"]
[4090,"Engelhartszell","O","PLZ-Adressierung","extern","Ja","Ja"]
[4091,"Vichtenstein","O","PLZ-Adressierung","extern","Ja","Nein"]
[4092,"Esternberg","O","PLZ-Adressierung","extern","Ja","Ja"]
[4100,"Ottensheim","O","PLZ-Adressierung","extern","Ja","Ja"]
[4101,"Feldkirchen an der Donau","O","PLZ-Adressierung","extern","Ja","Ja"]
[4111,"Walding","O","PLZ-Adressierung","extern","Ja","Ja"]
[4112,"Rottenegg","O","PLZ-Adressierung","extern","Ja","Nein"]
[4113,"St. Martin im Mühlkreis","O","PLZ-Adressierung","extern","Ja","Ja"]
[4114,"Neuhaus an der Donau","O","PLZ-Adressierung","extern","Ja","Nein"]
[4115,"Kleinzell im Mühlkreis","O","PLZ-Adressierung","extern","Ja","Nein"]
[4120,"Neufelden","O","PLZ-Adressierung","extern","Ja","Ja"]
[4121,"Altenfelden","O","PLZ-Adressierung","extern","Ja","Ja"]
[4122,"Arnreit","O","PLZ-Adressierung","extern","Ja","Nein"]
[4131,"Obermühl","O","PLZ-Adressierung","extern","Ja","Nein"]
[4132,"Lembach im Mühlkreis","O","PLZ-Adressierung","extern","Ja","Ja"]
[4133,"Niederkappel","O","PLZ-Adressierung","extern","Ja","Nein"]
[4134,"Putzleinsdorf","O","PLZ-Adressierung","extern","Ja","Nein"]
[4141,"Pfarrkirchen im Mühlkreis","O","PLZ-Adressierung","extern","Ja","Nein"]
[4142,"Hofkirchen im Mühlkreis","O","PLZ-Adressierung","extern","Ja","Ja"]
[4143,"Neustift im Mühlkreis","O","PLZ-Adressierung","extern","Ja","Ja"]
[4144,"Oberkappel","O","PLZ-Adressierung","extern","Ja","Nein"]
[4150,"Rohrbach in Oberösterreich","O","PLZ-Adressierung","extern","Ja","Ja"]
[4152,"Sarleinsbach","O","PLZ-Adressierung","extern","Ja","Nein"]
[4153,"Peilstein im Mühlviertel","O","PLZ-Adressierung","extern","Ja","Ja"]
[4154,"Kollerschlag","O","PLZ-Adressierung","extern","Ja","Nein"]
[4160,"Aigen im Mühlkreis","O","PLZ-Adressierung","extern","Ja","Ja"]
[4161,"Ulrichsberg","O","PLZ-Adressierung","extern","Ja","Ja"]
[4162,"Julbach","O","PLZ-Adressierung","extern","Ja","Nein"]
[4163,"Klaffer am Hochficht","O","PLZ-Adressierung","extern","Ja","Nein"]
[4164,"Schwarzenberg am Böhmerwald","O","PLZ-Adressierung","extern","Ja","Nein"]
[4170,"Haslach an der Mühl","O","PLZ-Adressierung","extern","Ja","Ja"]
[4171,"St. Peter am Wimberg","O","PLZ-Adressierung","extern","Ja","Ja"]
[4172,"St. Johann am Wimberg","O","PLZ-Adressierung","extern","Ja","Nein"]
[4173,"St. Veit im Mühlkreis","O","PLZ-Adressierung","extern","Ja","Nein"]
[4174,"Niederwaldkirchen","O","PLZ-Adressierung","extern","Ja","Nein"]
[4175,"Herzogsdorf","O","PLZ-Adressierung","extern","Ja","Ja"]
[4180,"Zwettl an der Rodl","O","PLZ-Adressierung","extern","Ja","Ja"]
[4181,"Oberneukirchen","O","PLZ-Adressierung","extern","Ja","Ja"]
[4182,"Waxenberg","O","PLZ-Adressierung","extern","Ja","Nein"]
[4183,"Traberg","O","PLZ-Adressierung","extern","Ja","Nein"]
[4184,"Helfenberg","O","PLZ-Adressierung","extern","Ja","Nein"]
[4190,"Bad Leonfelden","O","PLZ-Adressierung","extern","Ja","Ja"]
[4191,"Vorderweißenbach","O","PLZ-Adressierung","extern","Ja","Nein"]
[4192,"Schenkenfelden","O","PLZ-Adressierung","extern","Ja","Ja"]
[4193,"Reichenthal","O","PLZ-Adressierung","extern","Ja","Ja"]
[4201,"Gramastetten","O","PLZ-Adressierung","extern","Ja","Ja"]
[4202,"Hellmonsödt","O","PLZ-Adressierung","extern","Ja","Ja"]
[4203,"Altenberg bei Linz","O","PLZ-Adressierung","extern","Ja","Ja"]
[4204,"Reichenau im Mühlkreis","O","PLZ-Adressierung","extern","Ja","Nein"]
[4209,"Engerwitzdorf","O","PLZ-Adressierung","extern","Ja","Nein"]
[4210,"Gallneukirchen","O","PLZ-Adressierung","extern","Ja","Ja"]
[4211,"Alberndorf in der Riedmark","O","PLZ-Adressierung","extern","Ja","Ja"]
[4212,"Neumarkt im Mühlkreis","O","PLZ-Adressierung","extern","Ja","Ja"]
[4221,"Steyregg","O","PLZ-Adressierung","extern","Ja","Ja"]
[4222,"St. Georgen an der Gusen","O","PLZ-Adressierung","extern","Ja","Ja"]
[4223,"Katsdorf","O","PLZ-Adressierung","extern","Ja","Ja"]
[4224,"Wartberg ob der Aist","O","PLZ-Adressierung","extern","Ja","Ja"]
[4230,"Pregarten","O","PLZ-Adressierung","extern","Ja","Ja"]
[4231,"Untergaisbach","O","PLZ-Adressierung","extern","Ja","Nein"]
[4232,"Hagenberg im Mühlkreis","O","PLZ-Adressierung","extern","Ja","Ja"]
[4240,"Freistadt","O","PLZ-Adressierung","extern","Ja","Ja"]
[4242,"Hirschbach im Mühlkreis","O","PLZ-Adressierung","extern","Ja","Ja"]
[4251,"Sandl","O","PLZ-Adressierung","extern","Ja","Ja"]
[4252,"Liebenau","O","PLZ-Adressierung","extern","Ja","Nein"]
[4261,"Rainbach im Mühlkreis","O","PLZ-Adressierung","extern","Ja","Ja"]
[4262,"Leopoldschlag","O","PLZ-Adressierung","extern","Ja","Nein"]
[4263,"Windhaag bei Freistadt","O","PLZ-Adressierung","extern","Ja","Ja"]
[4264,"Grünbach","O","PLZ-Adressierung","extern","Ja","Nein"]
[4271,"St. Oswald bei Freistadt","O","PLZ-Adressierung","extern","Ja","Nein"]
[4272,"Weitersfelden","O","PLZ-Adressierung","extern","Ja","Nein"]
[4273,"Unterweißenbach","O","PLZ-Adressierung","extern","Ja","Ja"]
[4274,"Schönau im Mühlkreis","O","PLZ-Adressierung","extern","Ja","Nein"]
[4280,"Königswiesen","O","PLZ-Adressierung","extern","Ja","Ja"]
[4281,"Mönchdorf","O","PLZ-Adressierung","extern","Ja","Nein"]
[4282,"Pierbach","O","PLZ-Adressierung","extern","Ja","Nein"]
[4283,"Bad Zell","O","PLZ-Adressierung","extern","Ja","Ja"]
[4284,"Tragwein","O","PLZ-Adressierung","extern","Ja","Nein"]
[4291,"Lasberg","O","PLZ-Adressierung","extern","Ja","Ja"]
[4292,"Kefermarkt","O","PLZ-Adressierung","extern","Ja","Nein"]
[4293,"Gutau","O","PLZ-Adressierung","extern","Ja","Ja"]
[4294,"St. Leonhard bei Freistadt","O","PLZ-Adressierung","extern","Ja","Nein"]
[4300,"St. Valentin","N","PLZ-Adressierung","extern","Ja","Ja"]
[4303,"St. Pantaleon","N","PLZ-Adressierung","extern","Ja","Nein"]
[4310,"Mauthausen","O","PLZ-Adressierung","extern","Ja","Ja"]
[4311,"Schwertberg","O","PLZ-Adressierung","extern","Ja","Ja"]
[4312,"Ried in der Riedmark","O","PLZ-Adressierung","extern","Ja","Ja"]
[4320,"Perg","O","PLZ-Adressierung","extern","Ja","Ja"]
[4322,"Windhaag bei Perg","O","PLZ-Adressierung","extern","Ja","Nein"]
[4323,"Münzbach","O","PLZ-Adressierung","extern","Ja","Nein"]
[4324,"Rechberg","O","PLZ-Adressierung","extern","Ja","Nein"]
[4331,"Naarn","O","PLZ-Adressierung","extern","Ja","Ja"]
[4332,"Au an der Donau","O","PLZ-Adressierung","extern","Ja","Nein"]
[4341,"Arbing","O","PLZ-Adressierung","extern","Ja","Nein"]
[4342,"Baumgartenberg","O","PLZ-Adressierung","extern","Ja","Nein"]
[4343,"Mitterkirchen","O","PLZ-Adressierung","extern","Ja","Ja"]
[4351,"Saxen","O","PLZ-Adressierung","extern","Ja","Nein"]
[4352,"Klam","O","PLZ-Adressierung","extern","Ja","Nein"]
[4360,"Grein","O","PLZ-Adressierung","extern","Ja","Ja"]
[4362,"Bad Kreuzen","O","PLZ-Adressierung","extern","Ja","Ja"]
[4363,"Pabneukirchen","O","PLZ-Adressierung","extern","Ja","Ja"]
[4364,"St. Thomas","O","PLZ-Adressierung","extern","Ja","Nein"]
[4371,"Dimbach","O","PLZ-Adressierung","extern","Ja","Nein"]
[4372,"St. Georgen am Walde","O","PLZ-Adressierung","extern","Ja","Ja"]
[4381,"St. Nikola an der Donau","O","PLZ-Adressierung","extern","Ja","Nein"]
[4382,"Sarmingstein","O","PLZ-Adressierung","extern","Ja","Nein"]
[4391,"Waldhausen im Strudengau","O","PLZ-Adressierung","extern","Ja","Ja"]
[4392,"Dorfstetten","N","PLZ-Adressierung","extern","Ja","Nein"]
[4400,"Steyr","O","PLZ-Adressierung","extern","Ja","Ja"]
[4401,"Steyr Postfach","O","PLZ-Postfach","extern","Nein","Ja"]
[4402,"Steyr","O","PLZ-Postfach","extern","Nein","Ja"]
[4403,"Steyr","O","PLZ-Postfach","extern","Nein","Ja"]
[4405,"Steyr-Münichholz","O","PLZ-Postfach","extern","Nein","Ja"]
[4406,"Steyr","O","PLZ-Postfach","extern","Nein","Ja"]
[4407,"Steyr-Gleink","O","PLZ-Adressierung","extern","Ja","Ja"]
[4411,"Christkindl","O","PLZ-Postfach","extern","Nein","Ja"]
[4421,"Aschach an der Steyr","O","PLZ-Adressierung","extern","Ja","Nein"]
[4431,"Haidershofen","N","PLZ-Adressierung","extern","Ja","Ja"]
[4432,"Ernsthofen","N","PLZ-Adressierung","extern","Ja","Nein"]
[4441,"Behamberg","N","PLZ-Adressierung","extern","Ja","Nein"]
[4442,"Kleinraming","O","PLZ-Adressierung","extern","Ja","Nein"]
[4443,"Maria Neustift","O","PLZ-Adressierung","extern","Ja","Ja"]
[4451,"Garsten","O","PLZ-Adressierung","extern","Ja","Ja"]
[4452,"Ternberg","O","PLZ-Adressierung","extern","Ja","Ja"]
[4453,"Trattenbach","O","PLZ-Adressierung","extern","Ja","Nein"]
[4460,"Losenstein","O","PLZ-Adressierung","extern","Ja","Nein"]
[4461,"Laussa","O","PLZ-Adressierung","extern","Ja","Nein"]
[4462,"Reichraming","O","PLZ-Adressierung","extern","Ja","Nein"]
[4463,"Großraming","O","PLZ-Adressierung","extern","Ja","Ja"]
[4464,"Kleinreifling","O","PLZ-Adressierung","extern","Ja","Nein"]
[4470,"Enns","O","PLZ-Adressierung","extern","Ja","Ja"]
[4481,"Asten","O","PLZ-Adressierung","extern","Ja","Ja"]
[4482,"Ennsdorf","N","PLZ-Adressierung","extern","Ja","Nein"]
[4483,"Hargelsberg","O","PLZ-Adressierung","extern","Ja","Nein"]
[4484,"Kronstorf","O","PLZ-Adressierung","extern","Ja","Ja"]
[4490,"St. Florian","O","PLZ-Adressierung","extern","Ja","Ja"]
[4491,"Niederneukirchen","O","PLZ-Adressierung","extern","Ja","Ja"]
[4492,"Hofkirchen im Traunkreis","O","PLZ-Adressierung","extern","Ja","Nein"]
[4493,"Wolfern","O","PLZ-Adressierung","extern","Ja","Nein"]
[4501,"Neuhofen an der Krems","O","PLZ-Adressierung","extern","Ja","Ja"]
[4502,"St. Marien","O","PLZ-Adressierung","extern","Ja","Ja"]
[4511,"Allhaming","O","PLZ-Adressierung","extern","Ja","Nein"]
[4521,"Schiedlberg","O","PLZ-Adressierung","extern","Ja","Nein"]
[4522,"Sierning","O","PLZ-Adressierung","extern","Ja","Ja"]
[4523,"Neuzeug","O","PLZ-Adressierung","extern","Ja","Nein"]
[4531,"Kematen an der Krems","O","PLZ-Adressierung","extern","Ja","Ja"]
[4532,"Rohr im Kremstal","O","PLZ-Adressierung","extern","Ja","Nein"]
[4533,"Piberbach","O","PLZ-Adressierung","extern","Ja","Nein"]
[4540,"Bad Hall","O","PLZ-Adressierung","extern","Ja","Ja"]
[4541,"Adlwang","O","PLZ-Adressierung","extern","Ja","Nein"]
[4542,"Nußbach","O","PLZ-Adressierung","extern","Ja","Nein"]
[4550,"Kremsmünster","O","PLZ-Adressierung","extern","Ja","Ja"]
[4551,"Ried im Traunkreis","O","PLZ-Adressierung","extern","Ja","Nein"]
[4552,"Wartberg an der Krems","O","PLZ-Adressierung","extern","Ja","Ja"]
[4553,"Schlierbach","O","PLZ-Adressierung","extern","Ja","Nein"]
[4560,"Kirchdorf an der Krems","O","PLZ-Adressierung","extern","Ja","Ja"]
[4562,"Steinbach am Ziehberg","O","PLZ-Adressierung","extern","Ja","Nein"]
[4563,"Micheldorf","O","PLZ-Adressierung","extern","Ja","Ja"]
[4564,"Klaus an der Pyhrnbahn","O","PLZ-Adressierung","extern","Ja","Nein"]
[4571,"Steyrling","O","PLZ-Adressierung","extern","Ja","Nein"]
[4572,"St. Pankraz","O","PLZ-Adressierung","extern","Ja","Nein"]
[4573,"Hinterstoder","O","PLZ-Adressierung","extern","Ja","Ja"]
[4574,"Vorderstoder","O","PLZ-Adressierung","extern","Ja","Nein"]
[4575,"Roßleithen","O","PLZ-Adressierung","extern","Ja","Nein"]
[4580,"Windischgarsten","O","PLZ-Adressierung","extern","Ja","Ja"]
[4581,"Rosenau am Hengstpaß","O","PLZ-Adressierung","extern","Ja","Nein"]
[4582,"Spital am Pyhrn","O","PLZ-Adressierung","extern","Ja","Ja"]
[4591,"Molln","O","PLZ-Adressierung","extern","Ja","Ja"]
[4592,"Leonstein","O","PLZ-Adressierung","extern","Ja","Nein"]
[4593,"Obergrünburg","O","PLZ-Adressierung","extern","Ja","Nein"]
[4594,"Grünburg","O","PLZ-Adressierung","extern","Ja","Ja"]
[4595,"Waldneukirchen","O","PLZ-Adressierung","extern","Ja","Nein"]
[4600,"Wels","O","PLZ-Adressierung","extern","Ja","Ja"]
[4601,"Wels","O","PLZ-Postfach","extern","Nein","Ja"]
[4602,"Wels Postfach","O","PLZ-Postfach","extern","Nein","Ja"]
[4603,"Wels","O","PLZ-Postfach","extern","Nein","Ja"]
[4604,"Wels","O","PLZ-Postfach","extern","Nein","Ja"]
[4605,"Wels","O","PLZ-Postfach","extern","Nein","Ja"]
[4606,"Wels","O","PLZ-Postfach","extern","Nein","Ja"]
[4607,"Wels","O","PLZ-Postfach","extern","Nein","Ja"]
[4609,"Thalheim bei Wels","O","PLZ-Postfach","extern","Nein","Ja"]
[4611,"Buchkirchen","O","PLZ-Adressierung","extern","Ja","Nein"]
[4612,"Scharten","O","PLZ-Adressierung","extern","Ja","Nein"]
[4613,"Mistelbach bei Wels","O","PLZ-Adressierung","extern","Ja","Nein"]
[4614,"Marchtrenk","O","PLZ-Adressierung","extern","Ja","Ja"]
[4615,"Holzhausen","O","PLZ-Adressierung","extern","Ja","Nein"]
[4616,"Weißkirchen","O","PLZ-Adressierung","extern","Ja","Nein"]
[4621,"Sipbachzell","O","PLZ-Adressierung","extern","Ja","Nein"]
[4622,"Eggendorf im Traunkreis","O","PLZ-Adressierung","extern","Ja","Nein"]
[4623,"Gunskirchen","O","PLZ-Adressierung","extern","Ja","Ja"]
[4624,"Pennewang","O","PLZ-Adressierung","extern","Ja","Nein"]
[4625,"Offenhausen","O","PLZ-Adressierung","extern","Ja","Nein"]
[4631,"Krenglbach","O","PLZ-Adressierung","extern","Ja","Nein"]
[4632,"Pichl bei Wels","O","PLZ-Adressierung","extern","Ja","Ja"]
[4633,"Kematen am Innbach","O","PLZ-Adressierung","extern","Ja","Nein"]
[4641,"Steinhaus","O","PLZ-Adressierung","extern","Ja","Nein"]
[4642,"Sattledt","O","PLZ-Adressierung","extern","Ja","Ja"]
[4643,"Pettenbach","O","PLZ-Adressierung","extern","Ja","Ja"]
[4644,"Scharnstein","O","PLZ-Adressierung","extern","Ja","Ja"]
[4645,"Grünau im Almtal","O","PLZ-Adressierung","extern","Ja","Nein"]
[4650,"Lambach","O","PLZ-Adressierung","extern","Ja","Ja"]
[4651,"Stadl-Paura","O","PLZ-Adressierung","extern","Ja","Ja"]
[4652,"Steinerkirchen an der Traun","O","PLZ-Adressierung","extern","Ja","Ja"]
[4653,"Eberstalzell","O","PLZ-Adressierung","extern","Ja","Nein"]
[4654,"Bad Wimsbach-Neydharting","O","PLZ-Adressierung","extern","Ja","Nein"]
[4655,"Vorchdorf","O","PLZ-Adressierung","extern","Ja","Ja"]
[4656,"Kirchham","O","PLZ-Adressierung","extern","Ja","Ja"]
[4661,"Roitham","O","PLZ-Adressierung","extern","Ja","Ja"]
[4662,"Steyrermühl","O","PLZ-Adressierung","extern","Ja","Nein"]
[4663,"Laakirchen","O","PLZ-Adressierung","extern","Ja","Ja"]
[4664,"Oberweis","O","PLZ-Adressierung","extern","Ja","Ja"]
[4671,"Neukirchen bei Lambach","O","PLZ-Adressierung","extern","Ja","Nein"]
[4672,"Bachmanning","O","PLZ-Adressierung","extern","Ja","Nein"]
[4673,"Gaspoltshofen","O","PLZ-Adressierung","extern","Ja","Ja"]
[4674,"Altenhof am Hausruck","O","PLZ-Adressierung","extern","Ja","Nein"]
[4675,"Weibern","O","PLZ-Adressierung","extern","Ja","Ja"]
[4676,"Aistersheim","O","PLZ-Adressierung","extern","Ja","Nein"]
[4680,"Haag am Hausruck","O","PLZ-Adressierung","extern","Ja","Ja"]
[4681,"Rottenbach","O","PLZ-Adressierung","extern","Ja","Nein"]
[4682,"Geboltskirchen","O","PLZ-Adressierung","extern","Ja","Nein"]
[4690,"Schwanenstadt","O","PLZ-Adressierung","extern","Ja","Ja"]
[4691,"Breitenschützing","O","PLZ-Adressierung","extern","Ja","Nein"]
[4692,"Niederthalheim","O","PLZ-Adressierung","extern","Ja","Nein"]
[4693,"Desselbrunn","O","PLZ-Adressierung","extern","Ja","Nein"]
[4694,"Ohlsdorf","O","PLZ-Adressierung","extern","Ja","Ja"]
[4701,"Bad Schallerbach","O","PLZ-Adressierung","extern","Ja","Ja"]
[4702,"Wallern an der Trattnach","O","PLZ-Adressierung","extern","Ja","Nein"]
[4707,"Schlüßlberg","O","PLZ-Adressierung","extern","Ja","Nein"]
[4710,"Grieskirchen","O","PLZ-Adressierung","extern","Ja","Ja"]
[4712,"Michaelnbach","O","PLZ-Adressierung","extern","Ja","Nein"]
[4713,"Gallspach","O","PLZ-Adressierung","extern","Ja","Ja"]
[4714,"Meggenhofen","O","PLZ-Adressierung","extern","Ja","Nein"]
[4715,"Taufkirchen an der Trattnach","O","PLZ-Adressierung","extern","Ja","Nein"]
[4716,"Hofkirchen an der Trattnach","O","PLZ-Adressierung","extern","Ja","Nein"]
[4720,"Neumarkt im Hausruckkreis","O","PLZ-Adressierung","extern","Ja","Ja"]
[4721,"Altschwendt","O","PLZ-Adressierung","extern","Ja","Nein"]
[4722,"Peuerbach","O","PLZ-Adressierung","extern","Ja","Ja"]
[4723,"Natternbach","O","PLZ-Adressierung","extern","Ja","Nein"]
[4724,"Neukirchen am Walde","O","PLZ-Adressierung","extern","Ja","Ja"]
[4725,"St. Aegidi","O","PLZ-Adressierung","extern","Ja","Nein"]
[4730,"Waizenkirchen","O","PLZ-Adressierung","extern","Ja","Ja"]
[4731,"Prambachkirchen","O","PLZ-Adressierung","extern","Ja","Ja"]
[4732,"St. Thomas","O","PLZ-Adressierung","extern","Ja","Nein"]
[4733,"Heiligenberg","O","PLZ-Adressierung","extern","Ja","Nein"]
[4741,"Wendling","O","PLZ-Adressierung","extern","Ja","Nein"]
[4742,"Pram","O","PLZ-Adressierung","extern","Ja","Nein"]
[4743,"Peterskirchen","O","PLZ-Adressierung","extern","Ja","Nein"]
[4751,"Dorf","O","PLZ-Adressierung","extern","Ja","Nein"]
[4752,"Riedau","O","PLZ-Adressierung","extern","Ja","Ja"]
[4753,"Taiskirchen im Innkreis","O","PLZ-Adressierung","extern","Ja","Ja"]
[4754,"Andrichsfurt","O","PLZ-Adressierung","extern","Ja","Nein"]
[4755,"Zell an der Pram","O","PLZ-Adressierung","extern","Ja","Nein"]
[4760,"Raab","O","PLZ-Adressierung","extern","Ja","Ja"]
[4761,"Enzenkirchen","O","PLZ-Adressierung","extern","Ja","Nein"]
[4762,"St. Willibald","O","PLZ-Adressierung","extern","Ja","Nein"]
[4770,"Andorf","O","PLZ-Adressierung","extern","Ja","Ja"]
[4771,"Sigharting","O","PLZ-Adressierung","extern","Ja","Nein"]
[4772,"Lambrechten","O","PLZ-Adressierung","extern","Ja","Nein"]
[4773,"Eggerding","O","PLZ-Adressierung","extern","Ja","Nein"]
[4774,"St. Marienkirchen bei Schärding","O","PLZ-Adressierung","extern","Ja","Nein"]
[4775,"Taufkirchen an der Pram","O","PLZ-Adressierung","extern","Ja","Ja"]
[4776,"Diersbach","O","PLZ-Adressierung","extern","Ja","Nein"]
[4777,"Mayrhof","O","PLZ-Adressierung","extern","Ja","Nein"]
[4780,"Schärding","O","PLZ-Adressierung","extern","Ja","Ja"]
[4782,"St. Florian am Inn","O","PLZ-Adressierung","extern","Ja","Nein"]
[4783,"Wernstein am Inn","O","PLZ-Adressierung","extern","Ja","Nein"]
[4784,"Schardenberg","O","PLZ-Adressierung","extern","Ja","Ja"]
[4785,"Freinberg","O","PLZ-Adressierung","extern","Ja","Nein"]
[4786,"Brunnenthal","O","PLZ-Adressierung","extern","Ja","Nein"]
[4791,"Rainbach im Innkreis","O","PLZ-Adressierung","extern","Ja","Ja"]
[4792,"Münzkirchen","O","PLZ-Adressierung","extern","Ja","Ja"]
[4793,"St. Roman","O","PLZ-Adressierung","extern","Ja","Nein"]
[4794,"Kopfing im Innkreis","O","PLZ-Adressierung","extern","Ja","Nein"]
[4800,"Attnang-Puchheim","O","PLZ-Adressierung","extern","Ja","Ja"]
[4801,"Traunkirchen","O","PLZ-Adressierung","extern","Ja","Nein"]
[4802,"Ebensee","O","PLZ-Adressierung","extern","Ja","Ja"]
[4810,"Gmunden","O","PLZ-Adressierung","extern","Ja","Ja"]
[4812,"Pinsdorf","O","PLZ-Adressierung","extern","Ja","Ja"]
[4813,"Altmünster","O","PLZ-Adressierung","extern","Ja","Ja"]
[4814,"Neukirchen","O","PLZ-Adressierung","extern","Ja","Ja"]
[4815,"Ort bei Gmunden","O","PLZ-Postfach","extern","Nein","Ja"]
[4816,"Gschwandt","O","PLZ-Adressierung","extern","Ja","Ja"]
[4817,"St. Konrad","O","PLZ-Adressierung","extern","Ja","Nein"]
[4819,"Gmunden","O","PLZ-Postfach","extern","Nein","Ja"]
[4820,"Bad Ischl","O","PLZ-Adressierung","extern","Ja","Ja"]
[4821,"Lauffen","O","PLZ-Adressierung","extern","Ja","Nein"]
[4822,"Bad Goisern","O","PLZ-Adressierung","extern","Ja","Ja"]
[4823,"Steeg","O","PLZ-Adressierung","extern","Ja","Nein"]
[4824,"Gosau","O","PLZ-Adressierung","extern","Ja","Ja"]
[4825,"Gosau-Hintertal","O","PLZ-Adressierung","extern","Ja","Nein"]
[4829,"Bad Ischl","O","PLZ-Postfach","extern","Nein","Ja"]
[4830,"Hallstatt","O","PLZ-Adressierung","extern","Ja","Nein"]
[4831,"Obertraun","O","PLZ-Adressierung","extern","Ja","Nein"]
[4840,"Vöcklabruck","O","PLZ-Adressierung","extern","Ja","Ja"]
[4841,"Ungenach","O","PLZ-Adressierung","extern","Ja","Nein"]
[4842,"Zell am Pettenfirst","O","PLZ-Adressierung","extern","Ja","Nein"]
[4843,"Ampflwang","O","PLZ-Adressierung","extern","Ja","Ja"]
[4844,"Regau","O","PLZ-Adressierung","extern","Ja","Ja"]
[4845,"Rutzenmoos","O","PLZ-Adressierung","extern","Ja","Nein"]
[4850,"Timelkam","O","PLZ-Adressierung","extern","Ja","Ja"]
[4851,"Gampern","O","PLZ-Adressierung","extern","Ja","Nein"]
[4852,"Weyregg am Attersee","O","PLZ-Adressierung","extern","Ja","Nein"]
[4853,"Steinbach am Attersee","O","PLZ-Adressierung","extern","Ja","Ja"]
[4854,"Weißenbach","O","PLZ-Adressierung","extern","Ja","Nein"]
[4860,"Lenzing","O","PLZ-Adressierung","extern","Ja","Ja"]
[4861,"Schörfling","O","PLZ-Adressierung","extern","Ja","Ja"]
[4863,"Seewalchen am Attersee","O","PLZ-Adressierung","extern","Ja","Ja"]
[4864,"Attersee","O","PLZ-Adressierung","extern","Ja","Nein"]
[4865,"Nußdorf am Attersee","O","PLZ-Adressierung","extern","Ja","Ja"]
[4866,"Unterach","O","PLZ-Adressierung","extern","Ja","Ja"]
[4870,"Vöcklamarkt","O","PLZ-Adressierung","extern","Ja","Ja"]
[4871,"Zipf","O","PLZ-Adressierung","extern","Ja","Ja"]
[4872,"Neukirchen an der Vöckla","O","PLZ-Adressierung","extern","Ja","Nein"]
[4873,"Frankenburg am Hausruck","O","PLZ-Adressierung","extern","Ja","Ja"]
[4874,"Pramet","O","PLZ-Historisch","intern","Nein","Nein"]
[4880,"St. Georgen im Attergau","O","PLZ-Adressierung","extern","Ja","Ja"]
[4881,"Straß im Attergau","O","PLZ-Adressierung","extern","Ja","Nein"]
[4882,"Oberwang","O","PLZ-Adressierung","extern","Ja","Nein"]
[4890,"Frankenmarkt","O","PLZ-Adressierung","extern","Ja","Ja"]
[4891,"Pöndorf","O","PLZ-Adressierung","extern","Ja","Nein"]
[4892,"Fornach","O","PLZ-Adressierung","extern","Ja","Nein"]
[4893,"Zell am Moos","O","PLZ-Adressierung","extern","Ja","Ja"]
[4894,"Oberhofen am Irrsee","O","PLZ-Adressierung","extern","Ja","Ja"]
[4901,"Ottnang","O","PLZ-Adressierung","extern","Ja","Ja"]
[4902,"Wolfsegg am Hausruck","O","PLZ-Adressierung","extern","Ja","Nein"]
[4904,"Atzbach","O","PLZ-Adressierung","extern","Ja","Nein"]
[4905,"Thomasroith","O","PLZ-Adressierung","extern","Ja","Nein"]
[4906,"Eberschwang","O","PLZ-Adressierung","extern","Ja","Ja"]
[4910,"Ried im Innkreis","O","PLZ-Adressierung","extern","Ja","Ja"]
[4912,"Neuhofen im Innkreis","O","PLZ-Adressierung","extern","Ja","Nein"]
[4920,"Schildorn","O","PLZ-Adressierung","extern","Ja","Nein"]
[4921,"Hohenzell","O","PLZ-Adressierung","extern","Ja","Nein"]
[4922,"Geiersberg","O","PLZ-Adressierung","extern","Ja","Nein"]
[4923,"Lohnsburg","O","PLZ-Adressierung","extern","Ja","Ja"]
[4924,"Waldzell","O","PLZ-Adressierung","extern","Ja","Ja"]
[4925,"Pramet","O","PLZ-Adressierung","extern","Ja","Nein"]
[4926,"St. Marienkirchen am Hausruck","O","PLZ-Adressierung","extern","Ja","Nein"]
[4931,"Mettmach","O","PLZ-Adressierung","extern","Ja","Ja"]
[4932,"Kirchheim im Innkreis","O","PLZ-Adressierung","extern","Ja","Nein"]
[4933,"Wildenau","O","PLZ-Adressierung","extern","Ja","Nein"]
[4941,"Mehrnbach","O","PLZ-Adressierung","extern","Ja","Nein"]
[4942,"Gurten","O","PLZ-Adressierung","extern","Ja","Nein"]
[4943,"Geinberg","O","PLZ-Adressierung","extern","Ja","Ja"]
[4950,"Altheim","O","PLZ-Adressierung","extern","Ja","Ja"]
[4951,"Polling im Innkreis","O","PLZ-Adressierung","extern","Ja","Nein"]
[4952,"Weng im Innkreis","O","PLZ-Adressierung","extern","Ja","Nein"]
[4961,"Mühlheim am Inn","O","PLZ-Adressierung","extern","Ja","Nein"]
[4962,"Mining","O","PLZ-Adressierung","extern","Ja","Nein"]
[4963,"St. Peter am Hart","O","PLZ-Adressierung","extern","Ja","Nein"]
[4970,"Eitzing","O","PLZ-Adressierung","extern","Ja","Nein"]
[4971,"Aurolzmünster","O","PLZ-Adressierung","extern","Ja","Ja"]
[4972,"Utzenaich","O","PLZ-Adressierung","extern","Ja","Nein"]
[4973,"St. Martin","O","PLZ-Adressierung","extern","Ja","Ja"]
[4974,"Ort im Innkreis","O","PLZ-Adressierung","extern","Ja","Nein"]
[4975,"Suben","O","PLZ-Adressierung","extern","Ja","Nein"]
[4980,"Antiesenhofen","O","PLZ-Adressierung","extern","Ja","Nein"]
[4981,"Reichersberg","O","PLZ-Adressierung","extern","Ja","Nein"]
[4982,"Obernberg am Inn","O","PLZ-Adressierung","extern","Ja","Ja"]
[4983,"St. Georgen bei Obernberg am Inn","O","PLZ-Adressierung","extern","Ja","Nein"]
[4984,"Weilbach","O","PLZ-Adressierung","extern","Ja","Nein"]
[5010,"Salzburg","Sa","PLZ-Postfach","extern","Nein","Ja"]
[5012,"Salzburg","Sa","PLZ-Postfach","extern","Nein","Ja"]
[5013,"Salzburg-Liefering","Sa","PLZ-Postfach","extern","Nein","Ja"]
[5014,"Salzburg","Sa","PLZ-Postfach","extern","Nein","Ja"]
[5015,"Salzburg","Sa","PLZ-Postfach","extern","Nein","Ja"]
[5016,"Salzburg","Sa","PLZ-Postfach","extern","Nein","Ja"]
[5017,"Salzburg","Sa","PLZ-Postfach","extern","Nein","Ja"]
[5018,"Salzburg-Europark","Sa","PLZ-Postfach","extern","Nein","Ja"]
[5020,"Salzburg","Sa","PLZ-Adressierung","extern","Ja","Ja"]
[5021,"Salzburg Postfach","Sa","PLZ-Postfach","extern","Nein","Ja"]
[5022,"Salzburg","Sa","PLZ-Postfach","extern","Nein","Ja"]
[5023,"Salzburg-Gnigl","Sa","PLZ-Adressierung","extern","Ja","Ja"]
[5024,"Salzburg","Sa","PLZ-Postfach","extern","Nein","Ja"]
[5025,"Salzburg-Parsch","Sa","PLZ-Postfach","extern","Nein","Ja"]
[5026,"Salzburg-Aigen","Sa","PLZ-Adressierung","extern","Ja","Ja"]
[5027,"Salzburg","Sa","PLZ-Postfach","extern","Nein","Ja"]
[5028,"Salzburg-Kasern","Sa","PLZ-Postfach","extern","Nein","Ja"]
[5029,"Salzburg","Sa","PLZ-Postfach","extern","Nein","Ja"]
[5033,"Salzburg","Sa","PLZ-Postfach","extern","Nein","Ja"]
[5034,"Salzburg-Morzg","Sa","PLZ-Postfach","extern","Nein","Ja"]
[5061,"Elsbethen-Glasenbach","Sa","PLZ-Adressierung","extern","Ja","Ja"]
[5071,"Wals","Sa","PLZ-Adressierung","extern","Ja","Ja"]
[5072,"Siezenheim","Sa","PLZ-Postfach","extern","Nein","Ja"]
[5073,"Wals-Himmelreich","Sa","PLZ-Postfach","extern","Nein","Ja"]
[5081,"Anif","Sa","PLZ-Adressierung","extern","Ja","Ja"]
[5082,"Grödig","Sa","PLZ-Adressierung","extern","Ja","Ja"]
[5083,"Gartenau-St. Leonhard","Sa","PLZ-Adressierung","extern","Ja","Ja"]
[5084,"Großgmain","Sa","PLZ-Adressierung","extern","Ja","Ja"]
[5089,"Niederalm","Sa","PLZ-Postfach","extern","Nein","Ja"]
[5090,"Lofer","Sa","PLZ-Adressierung","extern","Ja","Ja"]
[5091,"Unken","Sa","PLZ-Adressierung","extern","Ja","Ja"]
[5092,"St. Martin bei Lofer","Sa","PLZ-Adressierung","extern","Ja","Nein"]
[5093,"Weißbach bei Lofer","Sa","PLZ-Adressierung","extern","Ja","Nein"]
[5101,"Bergheim","Sa","PLZ-Adressierung","extern","Ja","Ja"]
[5102,"Anthering","Sa","PLZ-Adressierung","extern","Ja","Ja"]
[5110,"Oberndorf bei Salzburg","Sa","PLZ-Adressierung","extern","Ja","Ja"]
[5111,"Bürmoos","Sa","PLZ-Adressierung","extern","Ja","Ja"]
[5112,"Lamprechtshausen","Sa","PLZ-Adressierung","extern","Ja","Ja"]
[5113,"St. Georgen bei Salzburg","Sa","PLZ-Adressierung","extern","Ja","Nein"]
[5114,"Göming","Sa","PLZ-Adressierung","extern","Ja","Nein"]
[5120,"St. Pantaleon","O","PLZ-Adressierung","extern","Ja","Nein"]
[5121,"Ostermiething","O","PLZ-Adressierung","extern","Ja","Ja"]
[5122,"Ach","O","PLZ-Adressierung","extern","Ja","Ja"]
[5131,"Franking","O","PLZ-Adressierung","extern","Ja","Nein"]
[5132,"Geretsberg","O","PLZ-Adressierung","extern","Ja","Nein"]
[5133,"Gilgenberg am Weilhart","O","PLZ-Adressierung","extern","Ja","Nein"]
[5134,"Schwand im Innkreis","O","PLZ-Adressierung","extern","Ja","Nein"]
[5141,"Moosdorf","O","PLZ-Adressierung","extern","Ja","Nein"]
[5142,"Eggelsberg","O","PLZ-Adressierung","extern","Ja","Ja"]
[5143,"Feldkirchen bei Mattighofen","O","PLZ-Adressierung","extern","Ja","Nein"]
[5144,"Handenberg","O","PLZ-Adressierung","extern","Ja","Nein"]
[5145,"Neukirchen an der Enknach","O","PLZ-Adressierung","extern","Ja","Ja"]
[5151,"Nußdorf am Haunsberg","Sa","PLZ-Adressierung","extern","Ja","Nein"]
[5152,"Michaelbeuern","Sa","PLZ-Adressierung","extern","Ja","Nein"]
[5161,"Elixhausen","Sa","PLZ-Adressierung","extern","Ja","Ja"]
[5162,"Obertrum am See","Sa","PLZ-Adressierung","extern","Ja","Ja"]
[5163,"Mattsee","Sa","PLZ-Adressierung","extern","Ja","Ja"]
[5164,"Seeham","Sa","PLZ-Adressierung","extern","Ja","Nein"]
[5165,"Berndorf bei Salzburg","Sa","PLZ-Adressierung","extern","Ja","Ja"]
[5201,"Seekirchen","Sa","PLZ-Adressierung","extern","Ja","Ja"]
[5202,"Neumarkt am Wallersee","Sa","PLZ-Adressierung","extern","Ja","Ja"]
[5203,"Köstendorf","Sa","PLZ-Adressierung","extern","Ja","Nein"]
[5204,"Straßwalchen","Sa","PLZ-Adressierung","extern","Ja","Ja"]
[5205,"Schleedorf","Sa","PLZ-Adressierung","extern","Ja","Nein"]
[5211,"Friedburg","O","PLZ-Adressierung","extern","Ja","Ja"]
[5212,"Schneegattern","O","PLZ-Adressierung","extern","Ja","Nein"]
[5221,"Lochen","O","PLZ-Adressierung","extern","Ja","Ja"]
[5222,"Munderfing","O","PLZ-Adressierung","extern","Ja","Ja"]
[5223,"Pfaffstätt","O","PLZ-Adressierung","extern","Ja","Nein"]
[5224,"Auerbach","O","PLZ-Adressierung","extern","Ja","Nein"]
[5225,"Jeging","O","PLZ-Adressierung","extern","Ja","Nein"]
[5230,"Mattighofen","O","PLZ-Adressierung","extern","Ja","Ja"]
[5231,"Schalchen","O","PLZ-Adressierung","extern","Ja","Nein"]
[5232,"Kirchberg bei Mattighofen","O","PLZ-Adressierung","extern","Ja","Nein"]
[5233,"Pischelsdorf am Engelbach","O","PLZ-Adressierung","extern","Ja","Nein"]
[5241,"Maria Schmolln","O","PLZ-Adressierung","extern","Ja","Nein"]
[5242,"St. Johann am Walde","O","PLZ-Adressierung","extern","Ja","Nein"]
[5251,"Höhnhart","O","PLZ-Adressierung","extern","Ja","Ja"]
[5252,"Aspach","O","PLZ-Adressierung","extern","Ja","Ja"]
[5261,"Uttendorf","O","PLZ-Adressierung","extern","Ja","Ja"]
[5270,"Mauerkirchen","O","PLZ-Adressierung","extern","Ja","Ja"]
[5271,"Moosbach","O","PLZ-Adressierung","extern","Ja","Nein"]
[5272,"Treubach","O","PLZ-Adressierung","extern","Ja","Nein"]
[5273,"Roßbach","O","PLZ-Adressierung","extern","Ja","Nein"]
[5274,"Burgkirchen","O","PLZ-Adressierung","extern","Ja","Nein"]
[5280,"Braunau am Inn","O","PLZ-Adressierung","extern","Ja","Ja"]
[5282,"Braunau","O","PLZ-Adressierung","extern","Ja","Ja"]
[5300,"Hallwang","Sa","PLZ-Adressierung","extern","Ja","Ja"]
[5301,"Eugendorf","Sa","PLZ-Adressierung","extern","Ja","Ja"]
[5302,"Henndorf am Wallersee","Sa","PLZ-Adressierung","extern","Ja","Ja"]
[5303,"Thalgau","Sa","PLZ-Adressierung","extern","Ja","Ja"]
[5310,"Mondsee","O","PLZ-Adressierung","extern","Ja","Ja"]
[5311,"Loibichl","O","PLZ-Adressierung","extern","Ja","Nein"]
[5321,"Koppl","Sa","PLZ-Adressierung","extern","Ja","Nein"]
[5322,"Hof bei Salzburg","Sa","PLZ-Adressierung","extern","Ja","Ja"]
[5323,"Ebenau","Sa","PLZ-Adressierung","extern","Ja","Nein"]
[5324,"Faistenau","Sa","PLZ-Adressierung","extern","Ja","Ja"]
[5325,"Plainfeld","Sa","PLZ-Adressierung","extern","Ja","Nein"]
[5330,"Fuschl am See","Sa","PLZ-Adressierung","extern","Ja","Ja"]
[5340,"St. Gilgen","Sa","PLZ-Adressierung","extern","Ja","Ja"]
[5342,"Abersee","Sa","PLZ-Adressierung","extern","Ja","Nein"]
[5350,"Strobl","Sa","PLZ-Adressierung","extern","Ja","Ja"]
[5351,"Aigen-Voglhub","Sa","PLZ-Adressierung","extern","Ja","Nein"]
[5360,"St. Wolfgang im Salzkammergut","O","PLZ-Adressierung","extern","Ja","Ja"]
[5400,"Hallein","Sa","PLZ-Adressierung","extern","Ja","Ja"]
[5409,"Hallein","Sa","PLZ-Postfach","extern","Nein","Ja"]
[5411,"Oberalm","Sa","PLZ-Adressierung","extern","Ja","Ja"]
[5412,"Puch bei Hallein","Sa","PLZ-Adressierung","extern","Ja","Ja"]
[5421,"Adnet","Sa","PLZ-Adressierung","extern","Ja","Ja"]
[5422,"Heilbad Dürrnberg","Sa","PLZ-Adressierung","extern","Ja","Nein"]
[5423,"St. Koloman","Sa","PLZ-Adressierung","extern","Ja","Nein"]
[5424,"Bad Vigaun","Sa","PLZ-Adressierung","extern","Ja","Nein"]
[5431,"Kuchl","Sa","PLZ-Adressierung","extern","Ja","Ja"]
[5440,"Golling an der Salzach","Sa","PLZ-Adressierung","extern","Ja","Ja"]
[5441,"Abtenau","Sa","PLZ-Adressierung","extern","Ja","Ja"]
[5442,"Rußbach am Paß Gschütt","Sa","PLZ-Adressierung","extern","Ja","Nein"]
[5450,"Werfen","Sa","PLZ-Adressierung","extern","Ja","Ja"]
[5451,"Tenneck","Sa","PLZ-Adressierung","extern","Ja","Nein"]
[5452,"Pfarrwerfen","Sa","PLZ-Adressierung","extern","Ja","Ja"]
[5453,"Werfenweng","Sa","PLZ-Adressierung","extern","Ja","Nein"]
[5500,"Bischofshofen","Sa","PLZ-Adressierung","extern","Ja","Ja"]
[5505,"Mühlbach am Hochkönig","Sa","PLZ-Adressierung","extern","Ja","Ja"]
[5511,"Hüttau","Sa","PLZ-Adressierung","extern","Ja","Nein"]
[5521,"Niedernfritz","Sa","PLZ-Adressierung","extern","Ja","Nein"]
[5522,"St. Martin am Tennengebirge","Sa","PLZ-Adressierung","extern","Ja","Ja"]
[5523,"Lungötz","Sa","PLZ-Adressierung","extern","Ja","Nein"]
[5524,"Annaberg","Sa","PLZ-Adressierung","extern","Ja","Ja"]
[5531,"Eben im Pongau","Sa","PLZ-Adressierung","extern","Ja","Ja"]
[5532,"Filzmoos","Sa","PLZ-Adressierung","extern","Ja","Ja"]
[5541,"Altenmarkt im Pongau","Sa","PLZ-Adressierung","extern","Ja","Ja"]
[5542,"Flachau","Sa","PLZ-Adressierung","extern","Ja","Ja"]
[5550,"Radstadt","Sa","PLZ-Adressierung","extern","Ja","Ja"]
[5552,"Forstau","Sa","PLZ-Adressierung","extern","Ja","Nein"]
[5561,"Untertauern","Sa","PLZ-Adressierung","extern","Ja","Nein"]
[5562,"Obertauern","Sa","PLZ-Adressierung","extern","Ja","Ja"]
[5563,"Tweng","Sa","PLZ-Adressierung","extern","Ja","Nein"]
[5570,"Mauterndorf","Sa","PLZ-Adressierung","extern","Ja","Ja"]
[5571,"Mariapfarr","Sa","PLZ-Adressierung","extern","Ja","Ja"]
[5572,"St. Andrä im Lungau","Sa","PLZ-Adressierung","extern","Ja","Nein"]
[5573,"Weißpriach","Sa","PLZ-Adressierung","extern","Ja","Nein"]
[5580,"Tamsweg","Sa","PLZ-Adressierung","extern","Ja","Ja"]
[5581,"St. Margarethen im Lungau","Sa","PLZ-Adressierung","extern","Ja","Nein"]
[5582,"St. Michael im Lungau","Sa","PLZ-Adressierung","extern","Ja","Ja"]
[5583,"Muhr","Sa","PLZ-Adressierung","extern","Ja","Nein"]
[5584,"Zederhaus","Sa","PLZ-Adressierung","extern","Ja","Nein"]
[5585,"Unternberg","Sa","PLZ-Adressierung","extern","Ja","Nein"]
[5591,"Ramingstein","Sa","PLZ-Adressierung","extern","Ja","Nein"]
[5592,"Thomatal","Sa","PLZ-Adressierung","extern","Ja","Nein"]
[5600,"St. Johann im Pongau","Sa","PLZ-Adressierung","extern","Ja","Ja"]
[5602,"Wagrain","Sa","PLZ-Adressierung","extern","Ja","Ja"]
[5603,"Kleinarl","Sa","PLZ-Adressierung","extern","Ja","Nein"]
[5611,"Großarl","Sa","PLZ-Adressierung","extern","Ja","Ja"]
[5612,"Hüttschlag","Sa","PLZ-Adressierung","extern","Ja","Nein"]
[5620,"Schwarzach im Pongau","Sa","PLZ-Adressierung","extern","Ja","Ja"]
[5621,"St. Veit im Pongau","Sa","PLZ-Adressierung","extern","Ja","Nein"]
[5622,"Goldegg","Sa","PLZ-Adressierung","extern","Ja","Nein"]
[5623,"Schwarzach im Pongau","Sa","InteressentenPLZ","extern","Nein","Ja"]
[5630,"Bad Hofgastein","Sa","PLZ-Adressierung","extern","Ja","Ja"]
[5632,"Dorfgastein","Sa","PLZ-Adressierung","extern","Ja","Nein"]
[5640,"Bad Gastein","Sa","PLZ-Adressierung","extern","Ja","Ja"]
[5645,"Böckstein","Sa","PLZ-Adressierung","extern","Ja","Nein"]
[5651,"Lend","Sa","PLZ-Adressierung","extern","Ja","Nein"]
[5652,"Dienten am Hochkönig","Sa","PLZ-Adressierung","extern","Ja","Nein"]
[5660,"Taxenbach","Sa","PLZ-Adressierung","extern","Ja","Ja"]
[5661,"Rauris","Sa","PLZ-Adressierung","extern","Ja","Ja"]
[5662,"Gries","Sa","PLZ-Adressierung","extern","Ja","Nein"]
[5671,"Bruck an der Großglocknerstraße","Sa","PLZ-Adressierung","extern","Ja","Ja"]
[5672,"Fusch an der Glocknerstraße","Sa","PLZ-Adressierung","extern","Ja","Nein"]
[5700,"Zell am See","Sa","PLZ-Adressierung","extern","Ja","Ja"]
[5702,"Zell am See-Schüttdorf","Sa","PLZ-Postfach","extern","Nein","Ja"]
[5710,"Kaprun","Sa","PLZ-Adressierung","extern","Ja","Ja"]
[5721,"Piesendorf","Sa","PLZ-Adressierung","extern","Ja","Ja"]
[5722,"Niedernsill","Sa","PLZ-Adressierung","extern","Ja","Nein"]
[5723,"Uttendorf","Sa","PLZ-Adressierung","extern","Ja","Ja"]
[5724,"Stuhlfelden","Sa","PLZ-Adressierung","extern","Ja","Nein"]
[5730,"Mittersill","Sa","PLZ-Adressierung","extern","Ja","Ja"]
[5731,"Hollersbach im Pinzgau","Sa","PLZ-Adressierung","extern","Ja","Nein"]
[5732,"Mühlbach","Sa","PLZ-Adressierung","extern","Ja","Nein"]
[5733,"Bramberg am Wildkogel","Sa","PLZ-Adressierung","extern","Ja","Ja"]
[5741,"Neukirchen am Großvenediger","Sa","PLZ-Adressierung","extern","Ja","Ja"]
[5742,"Wald im Pinzgau","Sa","PLZ-Adressierung","extern","Ja","Ja"]
[5743,"Krimml","Sa","PLZ-Adressierung","extern","Ja","Ja"]
[5751,"Maishofen","Sa","PLZ-Adressierung","extern","Ja","Ja"]
[5752,"Viehhofen","Sa","PLZ-Adressierung","extern","Ja","Nein"]
[5753,"Saalbach","Sa","PLZ-Adressierung","extern","Ja","Ja"]
[5754,"Hinterglemm","Sa","PLZ-Adressierung","extern","Ja","Ja"]
[5760,"Saalfelden am Steinernen Meer","Sa","PLZ-Adressierung","extern","Ja","Ja"]
[5761,"Maria Alm am Steinernen Meer","Sa","PLZ-Adressierung","extern","Ja","Ja"]
[5771,"Leogang","Sa","PLZ-Adressierung","extern","Ja","Ja"]
[6010,"Innsbruck","T","PLZ-Postfach","extern","Nein","Ja"]
[6012,"Innsbruck","T","PLZ-Postfach","extern","Nein","Ja"]
[6013,"Innsbruck","T","PLZ-Postfach","extern","Nein","Ja"]
[6014,"Innsbruck","T","PLZ-Postfach","extern","Nein","Ja"]
[6020,"Innsbruck","T","PLZ-Adressierung","extern","Ja","Nein"]
[6021,"Innsbruck Postfach","T","PLZ-Postfach","extern","Nein","Ja"]
[6022,"Innsbruck","T","PLZ-Postfach","extern","Nein","Ja"]
[6023,"Innsbruck","T","PLZ-Postfach","extern","Nein","Ja"]
[6026,"Innsbruck","T","PLZ-Postfach","extern","Nein","Ja"]
[6027,"Innsbruck","T","PLZ-Postfach","extern","Nein","Ja"]
[6029,"Innsbruck","T","PLZ-Postfach","extern","Nein","Ja"]
[6033,"Innsbruck-Arzl","T","PLZ-Postfach","extern","Nein","Ja"]
[6040,"Innsbruck-Neuarzl","T","PLZ-Postfach","extern","Nein","Ja"]
[6050,"Hall in Tirol","T","PLZ-Postfach","extern","Nein","Ja"]
[6060,"Hall in Tirol","T","PLZ-Adressierung","extern","Ja","Ja"]
[6063,"Rum","T","PLZ-Adressierung","extern","Ja","Ja"]
[6064,"Rum","T","PLZ-Postfach","extern","Nein","Ja"]
[6065,"Thaur","T","PLZ-Adressierung","extern","Ja","Nein"]
[6067,"Absam","T","PLZ-Adressierung","extern","Ja","Ja"]
[6068,"Mils","T","PLZ-Adressierung","extern","Ja","Ja"]
[6069,"Gnadenwald","T","PLZ-Adressierung","extern","Ja","Nein"]
[6070,"Ampass","T","PLZ-Adressierung","extern","Ja","Nein"]
[6071,"Aldrans","T","PLZ-Adressierung","extern","Ja","Ja"]
[6072,"Lans","T","PLZ-Adressierung","extern","Ja","Nein"]
[6073,"Sistrans","T","PLZ-Adressierung","extern","Ja","Nein"]
[6074,"Rinn","T","PLZ-Adressierung","extern","Ja","Nein"]
[6075,"Tulfes","T","PLZ-Adressierung","extern","Ja","Nein"]
[6080,"Innsbruck-Igls","T","PLZ-Adressierung","extern","Ja","Ja"]
[6082,"Patsch","T","PLZ-Adressierung","extern","Ja","Nein"]
[6083,"Ellbögen","T","PLZ-Adressierung","extern","Ja","Nein"]
[6091,"Götzens","T","PLZ-Adressierung","extern","Ja","Ja"]
[6092,"Birgitz","T","PLZ-Adressierung","extern","Ja","Nein"]
[6094,"Axams","T","PLZ-Adressierung","extern","Ja","Ja"]
[6095,"Grinzens","T","PLZ-Adressierung","extern","Ja","Nein"]
[6100,"Seefeld in Tirol","T","PLZ-Adressierung","extern","Ja","Ja"]
[6103,"Reith bei Seefeld","T","PLZ-Adressierung","extern","Ja","Nein"]
[6105,"Leutasch","T","PLZ-Adressierung","extern","Ja","Nein"]
[6108,"Scharnitz","T","PLZ-Adressierung","extern","Ja","Nein"]
[6111,"Volders","T","PLZ-Adressierung","extern","Ja","Ja"]
[6112,"Wattens","T","PLZ-Adressierung","extern","Ja","Ja"]
[6113,"Wattenberg","T","PLZ-Adressierung","extern","Ja","Nein"]
[6114,"Kolsass","T","PLZ-Adressierung","extern","Ja","Ja"]
[6115,"Kolsassberg","T","PLZ-Adressierung","extern","Ja","Nein"]
[6121,"Baumkirchen","T","PLZ-Adressierung","extern","Ja","Nein"]
[6122,"Fritzens","T","PLZ-Adressierung","extern","Ja","Nein"]
[6123,"Terfens","T","PLZ-Adressierung","extern","Ja","Nein"]
[6130,"Schwaz","T","PLZ-Adressierung","extern","Ja","Ja"]
[6131,"Schwaz","T","PLZ-Postfach","extern","Nein","Ja"]
[6133,"Weerberg","T","PLZ-Adressierung","extern","Ja","Nein"]
[6134,"Vomp","T","PLZ-Adressierung","extern","Ja","Ja"]
[6135,"Stans","T","PLZ-Adressierung","extern","Ja","Ja"]
[6141,"Schönberg im Stubaital","T","PLZ-Adressierung","extern","Ja","Nein"]
[6142,"Mieders","T","PLZ-Adressierung","extern","Ja","Nein"]
[6143,"Matrei am Brenner","T","PLZ-Adressierung","extern","Ja","Ja"]
[6145,"Navis","T","PLZ-Adressierung","extern","Ja","Nein"]
[6150,"Steinach am Brenner","T","PLZ-Adressierung","extern","Ja","Ja"]
[6152,"Trins","T","PLZ-Adressierung","extern","Ja","Nein"]
[6154,"St. Jodok am Brenner","T","PLZ-Adressierung","extern","Ja","Nein"]
[6156,"Gries am Brenner","T","PLZ-Adressierung","extern","Ja","Nein"]
[6157,"Obernberg am Brenner","T","PLZ-Adressierung","extern","Ja","Nein"]
[6161,"Natters","T","PLZ-Adressierung","extern","Ja","Nein"]
[6162,"Mutters","T","PLZ-Adressierung","extern","Ja","Ja"]
[6165,"Telfes im Stubai","T","PLZ-Adressierung","extern","Ja","Nein"]
[6166,"Fulpmes","T","PLZ-Adressierung","extern","Ja","Ja"]
[6167,"Neustift im Stubaital","T","PLZ-Adressierung","extern","Ja","Ja"]
[6170,"Zirl","T","PLZ-Adressierung","extern","Ja","Ja"]
[6173,"Oberperfuss","T","PLZ-Adressierung","extern","Ja","Ja"]
[6175,"Kematen in Tirol","T","PLZ-Adressierung","extern","Ja","Ja"]
[6176,"Völs","T","PLZ-Adressierung","extern","Ja","Ja"]
[6177,"Völs","T","PLZ-Postfach","extern","Nein","Ja"]
[6178,"Unterperfuss","T","PLZ-Adressierung","extern","Ja","Nein"]
[6179,"Ranggen","T","PLZ-Adressierung","extern","Ja","Nein"]
[6181,"Sellrain","T","PLZ-Adressierung","extern","Ja","Ja"]
[6182,"Gries im Sellrain","T","PLZ-Adressierung","extern","Ja","Ja"]
[6183,"Kühtai","T","PLZ-Adressierung","extern","Ja","Nein"]
[6184,"St. Sigmund","T","PLZ-Adressierung","extern","Ja","Nein"]
[6200,"Jenbach","T","PLZ-Adressierung","extern","Ja","Ja"]
[6210,"Wiesing","T","PLZ-Adressierung","extern","Ja","Nein"]
[6212,"Maurach","T","PLZ-Adressierung","extern","Ja","Ja"]
[6213,"Pertisau","T","PLZ-Adressierung","extern","Ja","Nein"]
[6215,"Achenkirch","T","PLZ-Adressierung","extern","Ja","Ja"]
[6222,"Gallzein","T","PLZ-Adressierung","extern","Ja","Nein"]
[6230,"Brixlegg","T","PLZ-Adressierung","extern","Ja","Ja"]
[6232,"Münster","T","PLZ-Adressierung","extern","Ja","Ja"]
[6233,"Kramsach","T","PLZ-Adressierung","extern","Ja","Ja"]
[6234,"Brandenberg","T","PLZ-Adressierung","extern","Ja","Nein"]
[6235,"Reith im Alpbachtal","T","PLZ-Adressierung","extern","Ja","Nein"]
[6236,"Alpbach","T","PLZ-Adressierung","extern","Ja","Ja"]
[6240,"Rattenberg","T","PLZ-Adressierung","extern","Ja","Ja"]
[6250,"Kundl","T","PLZ-Adressierung","extern","Ja","Ja"]
[6252,"Breitenbach am Inn","T","PLZ-Adressierung","extern","Ja","Nein"]
[6260,"Bruck am Ziller","T","PLZ-Adressierung","extern","Ja","Nein"]
[6261,"Strass im Zillertal","T","PLZ-Adressierung","extern","Ja","Nein"]
[6262,"Schlitters","T","PLZ-Adressierung","extern","Ja","Ja"]
[6263,"Fügen","T","PLZ-Adressierung","extern","Ja","Ja"]
[6265,"Hart im Zillertal","T","PLZ-Adressierung","extern","Ja","Nein"]
[6271,"Uderns","T","PLZ-Adressierung","extern","Ja","Ja"]
[6272,"Kaltenbach","T","PLZ-Adressierung","extern","Ja","Ja"]
[6274,"Aschau","T","PLZ-Adressierung","extern","Ja","Ja"]
[6275,"Stumm","T","PLZ-Adressierung","extern","Ja","Nein"]
[6276,"Stummerberg","T","PLZ-Adressierung","extern","Ja","Nein"]
[6280,"Zell am Ziller","T","PLZ-Adressierung","extern","Ja","Ja"]
[6281,"Gerlos","T","PLZ-Adressierung","extern","Ja","Ja"]
[6283,"Hippach","T","PLZ-Adressierung","extern","Ja","Ja"]
[6284,"Ramsau im Zillertal","T","PLZ-Adressierung","extern","Ja","Nein"]
[6290,"Mayrhofen","T","PLZ-Adressierung","extern","Ja","Ja"]
[6292,"Finkenberg","T","PLZ-Adressierung","extern","Ja","Nein"]
[6293,"Tux","T","PLZ-Adressierung","extern","Ja","Ja"]
[6294,"Hintertux","T","PLZ-Adressierung","extern","Ja","Nein"]
[6295,"Ginzling","T","PLZ-Adressierung","extern","Ja","Nein"]
[6300,"Wörgl","T","PLZ-Adressierung","extern","Ja","Ja"]
[6302,"Wörgl","T","PLZ-Postfach","extern","Nein","Ja"]
[6305,"Itter","T","PLZ-Adressierung","extern","Ja","Nein"]
[6306,"Söll","T","PLZ-Adressierung","extern","Ja","Ja"]
[6311,"Wildschönau-Oberau","T","PLZ-Adressierung","extern","Ja","Ja"]
[6313,"Wildschönau-Auffach","T","PLZ-Adressierung","extern","Ja","Nein"]
[6314,"Wildschönau-Niederau","T","PLZ-Adressierung","extern","Ja","Nein"]
[6320,"Angerberg","T","PLZ-Adressierung","extern","Ja","Nein"]
[6322,"Kirchbichl","T","PLZ-Adressierung","extern","Ja","Ja"]
[6323,"Bad Häring","T","PLZ-Adressierung","extern","Ja","Ja"]
[6324,"Mariastein","T","PLZ-Adressierung","extern","Ja","Nein"]
[6330,"Kufstein","T","PLZ-Adressierung","extern","Ja","Ja"]
[6332,"Kufstein","T","PLZ-Postfach","extern","Nein","Ja"]
[6333,"Kufstein","T","PLZ-Postfach","extern","Nein","Ja"]
[6334,"Schwoich","T","PLZ-Adressierung","extern","Ja","Nein"]
[6335,"Thiersee","T","PLZ-Adressierung","extern","Ja","Ja"]
[6336,"Langkampfen","T","PLZ-Adressierung","extern","Ja","Nein"]
[6341,"Ebbs","T","PLZ-Adressierung","extern","Ja","Ja"]
[6342,"Niederndorf","T","PLZ-Adressierung","extern","Ja","Ja"]
[6343,"Erl","T","PLZ-Adressierung","extern","Ja","Nein"]
[6344,"Walchsee","T","PLZ-Adressierung","extern","Ja","Ja"]
[6345,"Kössen","T","PLZ-Adressierung","extern","Ja","Ja"]
[6351,"Scheffau am Wilden Kaiser","T","PLZ-Adressierung","extern","Ja","Ja"]
[6352,"Ellmau","T","PLZ-Adressierung","extern","Ja","Ja"]
[6353,"Going am Wilden Kaiser","T","PLZ-Adressierung","extern","Ja","Ja"]
[6361,"Hopfgarten","T","PLZ-Adressierung","extern","Ja","Ja"]
[6363,"Westendorf","T","PLZ-Adressierung","extern","Ja","Ja"]
[6364,"Brixen im Thale","T","PLZ-Adressierung","extern","Ja","Ja"]
[6365,"Kirchberg in Tirol","T","PLZ-Adressierung","extern","Ja","Ja"]
[6370,"Kitzbühel","T","PLZ-Adressierung","extern","Ja","Ja"]
[6372,"Oberndorf in Tirol","T","PLZ-Adressierung","extern","Ja","Ja"]
[6373,"Jochberg","T","PLZ-Adressierung","extern","Ja","Nein"]
[6380,"St. Johann in Tirol","T","PLZ-Adressierung","extern","Ja","Ja"]
[6382,"Kirchdorf in Tirol","T","PLZ-Adressierung","extern","Ja","Nein"]
[6383,"Erpfendorf","T","PLZ-Adressierung","extern","Ja","Ja"]
[6384,"Waidring","T","PLZ-Adressierung","extern","Ja","Ja"]
[6385,"Schwendt","T","PLZ-Adressierung","extern","Ja","Nein"]
[6391,"Fieberbrunn","T","PLZ-Adressierung","extern","Ja","Ja"]
[6392,"St. Jakob in Haus","T","PLZ-Adressierung","extern","Ja","Nein"]
[6393,"St. Ulrich am Pillersee","T","PLZ-Adressierung","extern","Ja","Ja"]
[6395,"Hochfilzen","T","PLZ-Adressierung","extern","Ja","Nein"]
[6401,"Inzing","T","PLZ-Adressierung","extern","Ja","Ja"]
[6402,"Hatting","T","PLZ-Adressierung","extern","Ja","Nein"]
[6403,"Flaurling","T","PLZ-Adressierung","extern","Ja","Nein"]
[6404,"Polling","T","PLZ-Adressierung","extern","Ja","Nein"]
[6405,"Pfaffenhofen","T","PLZ-Adressierung","extern","Ja","Nein"]
[6406,"Oberhofen im Inntal","T","PLZ-Adressierung","extern","Ja","Nein"]
[6408,"Pettnau","T","PLZ-Adressierung","extern","Ja","Nein"]
[6410,"Telfs","T","PLZ-Adressierung","extern","Ja","Ja"]
[6412,"Telfs-St. Georgen","T","PLZ-Postfach","extern","Nein","Ja"]
[6414,"Mieming","T","PLZ-Adressierung","extern","Ja","Ja"]
[6416,"Obsteig","T","PLZ-Adressierung","extern","Ja","Nein"]
[6421,"Rietz","T","PLZ-Adressierung","extern","Ja","Nein"]
[6422,"Stams","T","PLZ-Adressierung","extern","Ja","Ja"]
[6423,"Mötz","T","PLZ-Adressierung","extern","Ja","Nein"]
[6424,"Silz","T","PLZ-Adressierung","extern","Ja","Ja"]
[6425,"Haiming","T","PLZ-Adressierung","extern","Ja","Ja"]
[6426,"Roppen","T","PLZ-Adressierung","extern","Ja","Nein"]
[6430,"Ötztal Bahnhof","T","PLZ-Adressierung","extern","Ja","Ja"]
[6432,"Sautens","T","PLZ-Adressierung","extern","Ja","Nein"]
[6433,"Oetz","T","PLZ-Adressierung","extern","Ja","Ja"]
[6441,"Umhausen","T","PLZ-Adressierung","extern","Ja","Ja"]
[6444,"Längenfeld","T","PLZ-Adressierung","extern","Ja","Ja"]
[6450,"Sölden","T","PLZ-Adressierung","extern","Ja","Ja"]
[6452,"Hochsölden","T","PLZ-Adressierung","extern","Ja","Nein"]
[6456,"Obergurgl","T","PLZ-Adressierung","extern","Ja","Ja"]
[6458,"Vent","T","PLZ-Adressierung","extern","Ja","Nein"]
[6460,"Imst","T","PLZ-Adressierung","extern","Ja","Ja"]
[6462,"Karres","T","PLZ-Adressierung","extern","Ja","Nein"]
[6464,"Tarrenz","T","PLZ-Adressierung","extern","Ja","Nein"]
[6465,"Nassereith","T","PLZ-Adressierung","extern","Ja","Ja"]
[6471,"Arzl im Pitztal","T","PLZ-Adressierung","extern","Ja","Ja"]
[6473,"Wenns","T","PLZ-Adressierung","extern","Ja","Ja"]
[6474,"Jerzens","T","PLZ-Adressierung","extern","Ja","Nein"]
[6481,"St. Leonhard im Pitztal","T","PLZ-Adressierung","extern","Ja","Ja"]
[6491,"Schönwies","T","PLZ-Adressierung","extern","Ja","Nein"]
[6492,"Imsterberg","T","PLZ-Adressierung","extern","Ja","Nein"]
[6500,"Landeck","T","PLZ-Adressierung","extern","Ja","Ja"]
[6503,"Landeck-Öd","T","PLZ-Postfach","extern","Nein","Ja"]
[6511,"Zams","T","PLZ-Adressierung","extern","Ja","Ja"]
[6521,"Fließ","T","PLZ-Adressierung","extern","Ja","Nein"]
[6522,"Prutz","T","PLZ-Adressierung","extern","Ja","Ja"]
[6524,"Feichten im Kaunertal","T","PLZ-Adressierung","extern","Ja","Nein"]
[6527,"Kaunerberg","T","PLZ-Adressierung","extern","Ja","Nein"]
[6528,"Fendels","T","PLZ-Adressierung","extern","Ja","Nein"]
[6531,"Ried im Oberinntal","T","PLZ-Adressierung","extern","Ja","Ja"]
[6532,"Ladis","T","PLZ-Adressierung","extern","Ja","Nein"]
[6533,"Fiss","T","PLZ-Adressierung","extern","Ja","Ja"]
[6534,"Serfaus","T","PLZ-Adressierung","extern","Ja","Ja"]
[6541,"Tösens","T","PLZ-Adressierung","extern","Ja","Nein"]
[6542,"Pfunds","T","PLZ-Adressierung","extern","Ja","Ja"]
[6543,"Nauders","T","PLZ-Adressierung","extern","Ja","Ja"]
[6544,"Spiss","T","PLZ-Adressierung","extern","Ja","Nein"]
[6551,"Pians","T","PLZ-Adressierung","extern","Ja","Ja"]
[6552,"Tobadill","T","PLZ-Adressierung","extern","Ja","Nein"]
[6553,"See","T","PLZ-Adressierung","extern","Ja","Ja"]
[6555,"Kappl","T","PLZ-Adressierung","extern","Ja","Ja"]
[6561,"Ischgl","T","PLZ-Adressierung","extern","Ja","Ja"]
[6562,"Mathon","T","PLZ-Adressierung","extern","Ja","Nein"]
[6563,"Galtür","T","PLZ-Adressierung","extern","Ja","Ja"]
[6571,"Strengen","T","PLZ-Adressierung","extern","Ja","Nein"]
[6572,"Flirsch","T","PLZ-Adressierung","extern","Ja","Ja"]
[6574,"Pettneu am Arlberg","T","PLZ-Adressierung","extern","Ja","Ja"]
[6580,"St. Anton am Arlberg","T","PLZ-Adressierung","extern","Ja","Ja"]
[6591,"Grins","T","PLZ-Adressierung","extern","Ja","Nein"]
[6600,"Reutte","T","PLZ-Adressierung","extern","Ja","Ja"]
[6610,"Wängle","T","PLZ-Adressierung","extern","Ja","Nein"]
[6611,"Heiterwang","T","PLZ-Adressierung","extern","Ja","Nein"]
[6621,"Bichlbach","T","PLZ-Adressierung","extern","Ja","Ja"]
[6622,"Berwang","T","PLZ-Adressierung","extern","Ja","Nein"]
[6623,"Namlos","T","PLZ-Adressierung","extern","Ja","Nein"]
[6631,"Lermoos","T","PLZ-Adressierung","extern","Ja","Ja"]
[6632,"Ehrwald","T","PLZ-Adressierung","extern","Ja","Ja"]
[6633,"Biberwier","T","PLZ-Adressierung","extern","Ja","Nein"]
[6642,"Stanzach","T","PLZ-Adressierung","extern","Ja","Nein"]
[6644,"Elmen","T","PLZ-Adressierung","extern","Ja","Nein"]
[6645,"Vorderhornbach","T","PLZ-Adressierung","extern","Ja","Nein"]
[6646,"Hinterhornbach","T","PLZ-Adressierung","extern","Ja","Nein"]
[6647,"Pfafflar","T","PLZ-Adressierung","extern","Ja","Nein"]
[6650,"Gramais","T","PLZ-Adressierung","extern","Ja","Nein"]
[6651,"Häselgehr","T","PLZ-Adressierung","extern","Ja","Nein"]
[6652,"Elbigenalp","T","PLZ-Adressierung","extern","Ja","Ja"]
[6653,"Bach","T","PLZ-Adressierung","extern","Ja","Nein"]
[6654,"Holzgau","T","PLZ-Adressierung","extern","Ja","Nein"]
[6655,"Steeg","T","PLZ-Adressierung","extern","Ja","Nein"]
[6670,"Forchach","T","PLZ-Adressierung","extern","Ja","Nein"]
[6671,"Weißenbach am Lech","T","PLZ-Adressierung","extern","Ja","Ja"]
[6672,"Nesselwängle","T","PLZ-Adressierung","extern","Ja","Nein"]
[6673,"Grän","T","PLZ-Adressierung","extern","Ja","Nein"]
[6675,"Tannheim","T","PLZ-Adressierung","extern","Ja","Ja"]
[6677,"Schattwald","T","PLZ-Adressierung","extern","Ja","Nein"]
[6682,"Vils","T","PLZ-Adressierung","extern","Ja","Ja"]
[6691,"Jungholz","T","PLZ-Adressierung","extern","Ja","Ja"]
[6700,"Bludenz","V","PLZ-Adressierung","extern","Ja","Ja"]
[6701,"Bludenz Postfach","V","PLZ-Postfach","extern","Nein","Ja"]
[6706,"Bürs","V","PLZ-Adressierung","extern","Ja","Ja"]
[6707,"Bürserberg","V","PLZ-Adressierung","extern","Ja","Nein"]
[6708,"Brand","V","PLZ-Adressierung","extern","Ja","Nein"]
[6710,"Nenzing","V","PLZ-Adressierung","extern","Ja","Ja"]
[6712,"Thüringen","V","PLZ-Adressierung","extern","Ja","Ja"]
[6713,"Ludesch","V","PLZ-Adressierung","extern","Ja","Ja"]
[6714,"Nüziders","V","PLZ-Adressierung","extern","Ja","Ja"]
[6719,"Bludesch","V","PLZ-Adressierung","extern","Ja","Nein"]
[6721,"Thüringerberg","V","PLZ-Adressierung","extern","Ja","Nein"]
[6722,"St. Gerold","V","PLZ-Adressierung","extern","Ja","Nein"]
[6723,"Blons","V","PLZ-Adressierung","extern","Ja","Nein"]
[6731,"Sonntag","V","PLZ-Adressierung","extern","Ja","Ja"]
[6733,"Fontanella","V","PLZ-Adressierung","extern","Ja","Nein"]
[6741,"Raggal","V","PLZ-Adressierung","extern","Ja","Nein"]
[6751,"Braz","V","PLZ-Adressierung","extern","Ja","Nein"]
[6752,"Dalaas","V","PLZ-Adressierung","extern","Ja","Ja"]
[6754,"Klösterle","V","PLZ-Adressierung","extern","Ja","Nein"]
[6762,"Stuben","V","PLZ-Adressierung","extern","Ja","Nein"]
[6763,"Zürs","V","PLZ-Adressierung","extern","Ja","Nein"]
[6764,"Lech","V","PLZ-Adressierung","extern","Ja","Ja"]
[6767,"Warth","V","PLZ-Adressierung","extern","Ja","Nein"]
[6771,"St. Anton im Montafon","V","PLZ-Adressierung","extern","Ja","Nein"]
[6773,"Vandans","V","PLZ-Adressierung","extern","Ja","Ja"]
[6774,"Tschagguns","V","PLZ-Adressierung","extern","Ja","Ja"]
[6780,"Schruns","V","PLZ-Adressierung","extern","Ja","Ja"]
[6787,"Gargellen","V","PLZ-Adressierung","extern","Ja","Nein"]
[6791,"St. Gallenkirch","V","PLZ-Adressierung","extern","Ja","Ja"]
[6793,"Gaschurn","V","PLZ-Adressierung","extern","Ja","Ja"]
[6794,"Partenen","V","PLZ-Adressierung","extern","Ja","Nein"]
[6800,"Feldkirch","V","PLZ-Adressierung","extern","Ja","Ja"]
[6801,"Feldkirch Postfach","V","PLZ-Postfach","extern","Nein","Ja"]
[6803,"Feldkirch","V","PLZ-Postfach","extern","Nein","Ja"]
[6804,"Feldkirch-Altenstadt","V","PLZ-Postfach","extern","Nein","Ja"]
[6805,"Feldkirch-Gisingen","V","PLZ-Postfach","extern","Nein","Ja"]
[6806,"Feldkirch-Tosters","V","PLZ-Postfach","extern","Nein","Ja"]
[6807,"Feldkirch-Tisis","V","PLZ-Postfach","extern","Nein","Ja"]
[6811,"Göfis","V","PLZ-Adressierung","extern","Ja","Nein"]
[6812,"Meiningen","V","PLZ-Adressierung","extern","Ja","Nein"]
[6820,"Frastanz","V","PLZ-Adressierung","extern","Ja","Ja"]
[6822,"Satteins","V","PLZ-Adressierung","extern","Ja","Ja"]
[6824,"Schlins","V","PLZ-Adressierung","extern","Ja","Nein"]
[6830,"Rankweil","V","PLZ-Adressierung","extern","Ja","Ja"]
[6832,"Sulz-Röthis","V","PLZ-Adressierung","extern","Ja","Ja"]
[6833,"Klaus-Weiler","V","PLZ-Adressierung","extern","Ja","Ja"]
[6834,"Übersaxen","V","PLZ-Adressierung","extern","Ja","Nein"]
[6836,"Viktorsberg","V","PLZ-Adressierung","extern","Ja","Nein"]
[6840,"Götzis","V","PLZ-Adressierung","extern","Ja","Ja"]
[6841,"Mäder","V","PLZ-Adressierung","extern","Ja","Ja"]
[6842,"Koblach","V","PLZ-Adressierung","extern","Ja","Ja"]
[6844,"Altach","V","PLZ-Adressierung","extern","Ja","Ja"]
[6845,"Hohenems","V","PLZ-Adressierung","extern","Ja","Ja"]
[6850,"Dornbirn","V","PLZ-Adressierung","extern","Ja","Ja"]
[6851,"Dornbirn Postfach","V","PLZ-Postfach","extern","Nein","Ja"]
[6852,"Dornbirn-Oberdorf","V","PLZ-Postfach","extern","Nein","Ja"]
[6853,"Dornbirn-Hatlerdorf","V","PLZ-Postfach","extern","Nein","Ja"]
[6854,"Dornbirn-Messepark","V","PLZ-Postfach","extern","Nein","Ja"]
[6857,"Dornbirn-Haselstauden","V","PLZ-Postfach","extern","Nein","Ja"]
[6858,"Schwarzach","V","PLZ-Adressierung","extern","Ja","Ja"]
[6861,"Alberschwende","V","PLZ-Adressierung","extern","Ja","Ja"]
[6863,"Egg","V","PLZ-Adressierung","extern","Ja","Ja"]
[6866,"Andelsbuch","V","PLZ-Adressierung","extern","Ja","Nein"]
[6867,"Schwarzenberg","V","PLZ-Adressierung","extern","Ja","Nein"]
[6870,"Bezau","V","PLZ-Adressierung","extern","Ja","Ja"]
[6874,"Bizau","V","PLZ-Adressierung","extern","Ja","Nein"]
[6881,"Mellau","V","PLZ-Adressierung","extern","Ja","Ja"]
[6882,"Schnepfau","V","PLZ-Adressierung","extern","Ja","Nein"]
[6883,"Au","V","PLZ-Adressierung","extern","Ja","Ja"]
[6884,"Damüls","V","PLZ-Adressierung","extern","Ja","Nein"]
[6886,"Schoppernau","V","PLZ-Adressierung","extern","Ja","Nein"]
[6888,"Schröcken","V","PLZ-Adressierung","extern","Ja","Nein"]
[6890,"Lustenau","V","PLZ-Adressierung","extern","Ja","Ja"]
[6893,"Lustenau-Rheindorf","V","PLZ-Postfach","extern","Nein","Ja"]
[6900,"Bregenz","V","PLZ-Adressierung","extern","Ja","Ja"]
[6901,"Bregenz Postfach","V","PLZ-Postfach","extern","Nein","Ja"]
[6903,"Bregenz-Vorkloster","V","PLZ-Postfach","extern","Nein","Ja"]
[6904,"Bregenz-Schendlingen","V","PLZ-Postfach","extern","Nein","Ja"]
[6905,"Bregenz-Achsiedlung","V","PLZ-Postfach","extern","Nein","Ja"]
[6911,"Lochau","V","PLZ-Adressierung","extern","Ja","Ja"]
[6912,"Hörbranz","V","PLZ-Adressierung","extern","Ja","Ja"]
[6914,"Hohenweiler","V","PLZ-Adressierung","extern","Ja","Nein"]
[6921,"Kennelbach","V","PLZ-Adressierung","extern","Ja","Ja"]
[6922,"Wolfurt","V","PLZ-Adressierung","extern","Ja","Ja"]
[6923,"Lauterach","V","PLZ-Adressierung","extern","Ja","Ja"]
[6932,"Langen bei Bregenz","V","PLZ-Adressierung","extern","Ja","Ja"]
[6933,"Doren","V","PLZ-Adressierung","extern","Ja","Nein"]
[6934,"Sulzberg","V","PLZ-Adressierung","extern","Ja","Nein"]
[6941,"Langenegg","V","PLZ-Adressierung","extern","Ja","Nein"]
[6942,"Krumbach","V","PLZ-Adressierung","extern","Ja","Ja"]
[6943,"Riefensberg","V","PLZ-Adressierung","extern","Ja","Nein"]
[6951,"Lingenau","V","PLZ-Adressierung","extern","Ja","Nein"]
[6952,"Hittisau","V","PLZ-Adressierung","extern","Ja","Ja"]
[6960,"Wolfurt-Bahnhof","V","PLZ-Adressierung","extern","Ja","Ja"]
[6961,"Wolfurt-Bahnhof Postfach","V","PLZ-Postfach","extern","Nein","Ja"]
[6971,"Hard","V","PLZ-Adressierung","extern","Ja","Ja"]
[6972,"Fußach","V","PLZ-Adressierung","extern","Ja","Ja"]
[6973,"Höchst","V","PLZ-Adressierung","extern","Ja","Ja"]
[6974,"Gaißau","V","PLZ-Adressierung","extern","Ja","Ja"]
[6991,"Riezlern","V","PLZ-Adressierung","extern","Ja","Ja"]
[6992,"Hirschegg","V","PLZ-Adressierung","extern","Ja","Ja"]
[6993,"Mittelberg","V","PLZ-Adressierung","extern","Ja","Nein"]
[7000,"Eisenstadt","B","PLZ-Adressierung","extern","Ja","Ja"]
[7001,"Eisenstadt Postfach","B","PLZ-Postfach","extern","Nein","Ja"]
[7002,"Eisenstadt","B","PLZ-Postfach","extern","Nein","Ja"]
[7011,"Siegendorf","B","PLZ-Adressierung","extern","Ja","Nein"]
[7013,"Klingenbach","B","PLZ-Adressierung","extern","Ja","Ja"]
[7021,"Draßburg","B","PLZ-Adressierung","extern","Ja","Ja"]
[7022,"Schattendorf","B","PLZ-Adressierung","extern","Ja","Ja"]
[7023,"Zemendorf","B","PLZ-Adressierung","extern","Ja","Nein"]
[7024,"Hirm","B","PLZ-Adressierung","extern","Ja","Ja"]
[7031,"Krensdorf","B","PLZ-Adressierung","extern","Ja","Nein"]
[7032,"Sigleß","B","PLZ-Adressierung","extern","Ja","Nein"]
[7033,"Pöttsching","B","PLZ-Adressierung","extern","Ja","Ja"]
[7034,"Zillingtal","B","PLZ-Adressierung","extern","Ja","Nein"]
[7035,"Steinbrunn","B","PLZ-Adressierung","extern","Ja","Ja"]
[7041,"Wulkaprodersdorf","B","PLZ-Adressierung","extern","Ja","Ja"]
[7051,"Großhöflein","B","PLZ-Adressierung","extern","Ja","Nein"]
[7052,"Müllendorf","B","PLZ-Adressierung","extern","Ja","Nein"]
[7053,"Hornstein","B","PLZ-Adressierung","extern","Ja","Ja"]
[7061,"Trausdorf an der Wulka","B","PLZ-Adressierung","extern","Ja","Nein"]
[7062,"St. Margarethen im Burgenland","B","PLZ-Adressierung","extern","Ja","Ja"]
[7063,"Oggau","B","PLZ-Adressierung","extern","Ja","Ja"]
[7064,"Oslip","B","PLZ-Adressierung","extern","Ja","Nein"]
[7071,"Rust","B","PLZ-Adressierung","extern","Ja","Ja"]
[7072,"Mörbisch am See","B","PLZ-Adressierung","extern","Ja","Ja"]
[7073,"Rust, Burgenland","B","InteressentenPLZ","extern","Nein","Ja"]
[7081,"Schützen am Gebirge","B","PLZ-Adressierung","extern","Ja","Nein"]
[7082,"Donnerskirchen","B","PLZ-Adressierung","extern","Ja","Nein"]
[7083,"Purbach am Neusiedler See","B","PLZ-Adressierung","extern","Ja","Ja"]
[7091,"Breitenbrunn","B","PLZ-Adressierung","extern","Ja","Ja"]
[7092,"Winden am See","B","PLZ-Adressierung","extern","Ja","Nein"]
[7093,"Jois","B","PLZ-Adressierung","extern","Ja","Nein"]
[7100,"Neusiedl am See","B","PLZ-Adressierung","extern","Ja","Ja"]
[7111,"Parndorf","B","PLZ-Adressierung","extern","Ja","Ja"]
[7121,"Weiden am See","B","PLZ-Adressierung","extern","Ja","Nein"]
[7122,"Gols","B","PLZ-Adressierung","extern","Ja","Ja"]
[7123,"Mönchhof","B","PLZ-Adressierung","extern","Ja","Ja"]
[7131,"Halbturn","B","PLZ-Adressierung","extern","Ja","Ja"]
[7132,"Frauenkirchen","B","PLZ-Adressierung","extern","Ja","Ja"]
[7141,"Podersdorf am See","B","PLZ-Adressierung","extern","Ja","Ja"]
[7142,"Illmitz","B","PLZ-Adressierung","extern","Ja","Ja"]
[7143,"Apetlon","B","PLZ-Adressierung","extern","Ja","Nein"]
[7151,"Wallern im Burgenland","B","PLZ-Adressierung","extern","Ja","Ja"]
[7152,"Pamhagen","B","PLZ-Adressierung","extern","Ja","Ja"]
[7161,"St. Andrä am Zicksee","B","PLZ-Adressierung","extern","Ja","Nein"]
[7162,"Tadten","B","PLZ-Adressierung","extern","Ja","Nein"]
[7163,"Andau","B","PLZ-Adressierung","extern","Ja","Ja"]
[7201,"Neudörfl","B","PLZ-Adressierung","extern","Ja","Ja"]
[7202,"Bad Sauerbrunn","B","PLZ-Adressierung","extern","Ja","Ja"]
[7203,"Wiesen","B","PLZ-Adressierung","extern","Ja","Nein"]
[7210,"Mattersburg","B","PLZ-Adressierung","extern","Ja","Ja"]
[7212,"Forchtenstein","B","PLZ-Adressierung","extern","Ja","Nein"]
[7221,"Marz","B","PLZ-Adressierung","extern","Ja","Nein"]
[7222,"Rohrbach bei Mattersburg","B","PLZ-Adressierung","extern","Ja","Ja"]
[7223,"Sieggraben","B","PLZ-Adressierung","extern","Ja","Nein"]
[7301,"Deutschkreutz","B","PLZ-Adressierung","extern","Ja","Ja"]
[7302,"Nikitsch","B","PLZ-Adressierung","extern","Ja","Nein"]
[7304,"Großwarasdorf","B","PLZ-Adressierung","extern","Ja","Nein"]
[7311,"Neckenmarkt","B","PLZ-Adressierung","extern","Ja","Nein"]
[7312,"Horitschon","B","PLZ-Adressierung","extern","Ja","Ja"]
[7321,"Lackendorf","B","PLZ-Adressierung","extern","Ja","Ja"]
[7322,"Lackenbach","B","PLZ-Adressierung","extern","Ja","Nein"]
[7323,"Ritzing","B","PLZ-Adressierung","extern","Ja","Nein"]
[7331,"Weppersdorf","B","PLZ-Adressierung","extern","Ja","Ja"]
[7332,"Kobersdorf","B","PLZ-Adressierung","extern","Ja","Ja"]
[7341,"Markt St. Martin","B","PLZ-Adressierung","extern","Ja","Nein"]
[7342,"Kaisersdorf","B","PLZ-Adressierung","extern","Ja","Nein"]
[7343,"Neutal","B","PLZ-Adressierung","extern","Ja","Nein"]
[7344,"Stoob","B","PLZ-Adressierung","extern","Ja","Nein"]
[7350,"Oberpullendorf","B","PLZ-Adressierung","extern","Ja","Ja"]
[7361,"Lutzmannsburg","B","PLZ-Adressierung","extern","Ja","Nein"]
[7371,"Unterrabnitz","B","PLZ-Adressierung","extern","Ja","Ja"]
[7372,"Draßmarkt","B","PLZ-Adressierung","extern","Ja","Nein"]
[7400,"Oberwart","B","PLZ-Adressierung","extern","Ja","Ja"]
[7411,"Markt Allhau","B","PLZ-Adressierung","extern","Ja","Ja"]
[7412,"Wolfau","B","PLZ-Adressierung","extern","Ja","Nein"]
[7421,"Tauchen-Schaueregg","St","PLZ-Adressierung","extern","Ja","Nein"]
[7422,"Riedlingsdorf","B","PLZ-Adressierung","extern","Ja","Ja"]
[7423,"Pinkafeld","B","PLZ-Adressierung","extern","Ja","Ja"]
[7431,"Bad Tatzmannsdorf","B","PLZ-Adressierung","extern","Ja","Ja"]
[7432,"Oberschützen","B","PLZ-Adressierung","extern","Ja","Ja"]
[7433,"Mariasdorf","B","PLZ-Adressierung","extern","Ja","Nein"]
[7434,"Bernstein","B","PLZ-Adressierung","extern","Ja","Ja"]
[7435,"Unterkohlstätten","B","PLZ-Adressierung","extern","Ja","Nein"]
[7441,"Pilgersdorf","B","PLZ-Adressierung","extern","Ja","Nein"]
[7442,"Lockenhaus","B","PLZ-Adressierung","extern","Ja","Ja"]
[7443,"Rattersdorf-Liebing","B","PLZ-Adressierung","extern","Ja","Nein"]
[7444,"Mannersdorf an der Rabnitz","B","PLZ-Adressierung","extern","Ja","Nein"]
[7451,"Oberloisdorf","B","PLZ-Adressierung","extern","Ja","Nein"]
[7452,"Unterpullendorf","B","PLZ-Adressierung","extern","Ja","Nein"]
[7453,"Steinberg-Dörfl","B","PLZ-Adressierung","extern","Ja","Nein"]
[7461,"Stadtschlaining","B","PLZ-Adressierung","extern","Ja","Ja"]
[7463,"Weiden bei Rechnitz","B","PLZ-Adressierung","extern","Ja","Nein"]
[7464,"Markt Neuhodis","B","PLZ-Adressierung","extern","Ja","Nein"]
[7471,"Rechnitz","B","PLZ-Adressierung","extern","Ja","Ja"]
[7472,"Schachendorf","B","PLZ-Adressierung","extern","Ja","Nein"]
[7473,"Hannersdorf","B","PLZ-Adressierung","extern","Ja","Nein"]
[7474,"Deutsch Schützen","B","PLZ-Adressierung","extern","Ja","Nein"]
[7501,"Rotenturm an der Pinka","B","PLZ-Adressierung","extern","Ja","Ja"]
[7503,"Großpetersdorf","B","PLZ-Adressierung","extern","Ja","Ja"]
[7511,"Mischendorf","B","PLZ-Adressierung","extern","Ja","Nein"]
[7512,"Kohfidisch","B","PLZ-Adressierung","extern","Ja","Nein"]
[7521,"Eberau","B","PLZ-Adressierung","extern","Ja","Nein"]
[7522,"Strem","B","PLZ-Adressierung","extern","Ja","Nein"]
[7531,"Kemeten","B","PLZ-Adressierung","extern","Ja","Ja"]
[7532,"Litzelsdorf","B","PLZ-Adressierung","extern","Ja","Nein"]
[7533,"Ollersdorf im Burgenland","B","PLZ-Adressierung","extern","Ja","Nein"]
[7534,"Olbendorf","B","PLZ-Adressierung","extern","Ja","Nein"]
[7535,"St. Michael im Burgenland","B","PLZ-Adressierung","extern","Ja","Ja"]
[7540,"Güssing","B","PLZ-Adressierung","extern","Ja","Ja"]
[7542,"Gerersdorf bei Güssing","B","PLZ-Adressierung","extern","Ja","Nein"]
[7543,"Kukmirn","B","PLZ-Adressierung","extern","Ja","Nein"]
[7551,"Stegersbach","B","PLZ-Adressierung","extern","Ja","Ja"]
[7552,"Stinatz","B","PLZ-Adressierung","extern","Ja","Nein"]
[7561,"Heiligenkreuz im Lafnitztal","B","PLZ-Adressierung","extern","Ja","Ja"]
[7562,"Eltendorf","B","PLZ-Adressierung","extern","Ja","Nein"]
[7563,"Königsdorf","B","PLZ-Adressierung","extern","Ja","Nein"]
[7564,"Dobersdorf","B","PLZ-Adressierung","extern","Ja","Nein"]
[7571,"Rudersdorf","B","PLZ-Adressierung","extern","Ja","Ja"]
[7572,"Deutsch Kaltenbrunn","B","PLZ-Adressierung","extern","Ja","Nein"]
[8010,"Graz","St","PLZ-Adressierung","extern","Ja","Ja"]
[8011,"Graz Postfach","St","PLZ-Postfach","extern","Nein","Ja"]
[8013,"Graz","St","PLZ-Postfach","extern","Nein","Ja"]
[8015,"Graz","St","PLZ-Postfach","extern","Nein","Ja"]
[8016,"Graz","St","PLZ-Postfach","extern","Nein","Ja"]
[8017,"Graz","St","PLZ-Postfach","extern","Nein","Ja"]
[8018,"Graz","St","PLZ-Postfach","extern","Nein","Ja"]
[8019,"Graz","St","PLZ-Postfach","extern","Nein","Ja"]
[8020,"Graz","St","PLZ-Adressierung","extern","Ja","Ja"]
[8021,"Graz Postfach","St","PLZ-Postfach","extern","Nein","Ja"]
[8022,"Graz","St","PLZ-Postfach","extern","Nein","Ja"]
[8023,"Graz","St","PLZ-Postfach","extern","Nein","Ja"]
[8024,"Graz","St","PLZ-Postfach","extern","Nein","Ja"]
[8025,"Graz","St","PLZ-Postfach","extern","Nein","Ja"]
[8026,"Graz","St","PLZ-Postfach","extern","Nein","Ja"]
[8027,"Graz","St","PLZ-Postfach","extern","Nein","Ja"]
[8028,"Graz","St","PLZ-Postfach","extern","Nein","Ja"]
[8029,"Graz","St","PLZ-Postfach","extern","Nein","Ja"]
[8035,"Graz","St","PLZ-Postfach","extern","Nein","Ja"]
[8036,"Graz","St","PLZ-Adressierung","extern","Ja","Ja"]
[8041,"Graz-Liebenau","St","PLZ-Adressierung","extern","Ja","Ja"]
[8042,"Graz-St. Peter","St","PLZ-Adressierung","extern","Ja","Ja"]
[8043,"Graz-Kroisbach","St","PLZ-Adressierung","extern","Ja","Ja"]
[8044,"Graz-Mariatrost","St","PLZ-Adressierung","extern","Ja","Ja"]
[8045,"Graz-Andritz","St","PLZ-Adressierung","extern","Ja","Ja"]
[8046,"Graz-St. Veit","St","PLZ-Adressierung","extern","Ja","Nein"]
[8047,"Graz-Ragnitz","St","PLZ-Adressierung","extern","Ja","Ja"]
[8051,"Graz-Gösting","St","PLZ-Adressierung","extern","Ja","Ja"]
[8052,"Graz-Wetzelsdorf","St","PLZ-Adressierung","extern","Ja","Ja"]
[8053,"Graz-Neuhart","St","PLZ-Adressierung","extern","Ja","Ja"]
[8054,"Graz-Straßgang","St","PLZ-Adressierung","extern","Ja","Ja"]
[8055,"Graz-Puntigam","St","PLZ-Adressierung","extern","Ja","Ja"]
[8061,"St. Radegund bei Graz","St","PLZ-Adressierung","extern","Ja","Ja"]
[8062,"Kumberg","St","PLZ-Adressierung","extern","Ja","Ja"]
[8063,"Eggersdorf bei Graz","St","PLZ-Adressierung","extern","Ja","Ja"]
[8071,"Hausmannstätten","St","PLZ-Adressierung","extern","Ja","Ja"]
[8072,"Fernitz","St","PLZ-Adressierung","extern","Ja","Ja"]
[8073,"Feldkirchen bei Graz","St","PLZ-Adressierung","extern","Ja","Ja"]
[8074,"Raaba","St","PLZ-Adressierung","extern","Ja","Ja"]
[8075,"Hart bei Graz","St","PLZ-Adressierung","extern","Ja","Ja"]
[8081,"Heiligenkreuz am Waasen","St","PLZ-Adressierung","extern","Ja","Ja"]
[8082,"Kirchbach in Steiermark","St","PLZ-Adressierung","extern","Ja","Ja"]
[8083,"St. Stefan im Rosental","St","PLZ-Adressierung","extern","Ja","Ja"]
[8091,"Jagerberg","St","PLZ-Adressierung","extern","Ja","Nein"]
[8092,"Mettersdorf am Saßbach","St","PLZ-Adressierung","extern","Ja","Nein"]
[8093,"St. Peter am Ottersbach","St","PLZ-Adressierung","extern","Ja","Ja"]
[8101,"Gratkorn","St","PLZ-Adressierung","extern","Ja","Ja"]
[8102,"Semriach","St","PLZ-Adressierung","extern","Ja","Ja"]
[8103,"Rein","St","PLZ-Adressierung","extern","Ja","Nein"]
[8111,"Judendorf-Straßengel","St","PLZ-Adressierung","extern","Ja","Ja"]
[8112,"Gratwein","St","PLZ-Adressierung","extern","Ja","Ja"]
[8113,"St. Oswald bei Plankenwarth","St","PLZ-Adressierung","extern","Ja","Nein"]
[8114,"Stübing","St","PLZ-Adressierung","extern","Ja","Nein"]
[8120,"Peggau","St","PLZ-Adressierung","extern","Ja","Nein"]
[8121,"Deutschfeistritz","St","PLZ-Adressierung","extern","Ja","Ja"]
[8122,"Waldstein","St","PLZ-Adressierung","extern","Ja","Nein"]
[8124,"Übelbach","St","PLZ-Adressierung","extern","Ja","Ja"]
[8130,"Frohnleiten","St","PLZ-Adressierung","extern","Ja","Ja"]
[8131,"Mixnitz","St","PLZ-Adressierung","extern","Ja","Nein"]
[8132,"Pernegg an der Mur","St","PLZ-Adressierung","extern","Ja","Nein"]
[8141,"Unterpremstätten","St","PLZ-Adressierung","extern","Ja","Ja"]
[8142,"Wundschuh","St","PLZ-Adressierung","extern","Ja","Ja"]
[8143,"Dobl","St","PLZ-Adressierung","extern","Ja","Nein"]
[8144,"Tobelbad","St","PLZ-Adressierung","extern","Ja","Nein"]
[8151,"Hitzendorf","St","PLZ-Adressierung","extern","Ja","Ja"]
[8152,"Stallhofen","St","PLZ-Adressierung","extern","Ja","Ja"]
[8153,"Geistthal","St","PLZ-Adressierung","extern","Ja","Nein"]
[8160,"Weiz","St","PLZ-Adressierung","extern","Ja","Ja"]
[8162,"Passail","St","PLZ-Adressierung","extern","Ja","Ja"]
[8163,"Fladnitz an der Teichalm","St","PLZ-Adressierung","extern","Ja","Nein"]
[8171,"St. Kathrein am Offenegg","St","PLZ-Adressierung","extern","Ja","Nein"]
[8172,"Heilbrunn","St","PLZ-Adressierung","extern","Ja","Nein"]
[8181,"St. Ruprecht an der Raab","St","PLZ-Adressierung","extern","Ja","Ja"]
[8182,"Puch bei Weiz","St","PLZ-Adressierung","extern","Ja","Nein"]
[8183,"Floing","St","PLZ-Adressierung","extern","Ja","Nein"]
[8184,"Anger","St","PLZ-Adressierung","extern","Ja","Ja"]
[8190,"Birkfeld","St","PLZ-Adressierung","extern","Ja","Ja"]
[8191,"Koglhof","St","PLZ-Adressierung","extern","Ja","Nein"]
[8192,"Strallegg","St","PLZ-Adressierung","extern","Ja","Nein"]
[8200,"Gleisdorf","St","PLZ-Adressierung","extern","Ja","Ja"]
[8211,"Großpesendorf","St","PLZ-Adressierung","extern","Ja","Nein"]
[8212,"Pischelsdorf in der Steiermark","St","PLZ-Adressierung","extern","Ja","Ja"]
[8221,"Hirnsdorf","St","PLZ-Adressierung","extern","Ja","Nein"]
[8222,"St. Johann bei Herberstein","St","PLZ-Adressierung","extern","Ja","Nein"]
[8223,"Stubenberg am See","St","PLZ-Adressierung","extern","Ja","Ja"]
[8224,"Kaindorf bei Hartberg","St","PLZ-Adressierung","extern","Ja","Ja"]
[8225,"Pöllau bei Hartberg","St","PLZ-Adressierung","extern","Ja","Ja"]
[8230,"Hartberg","St","PLZ-Adressierung","extern","Ja","Ja"]
[8232,"Grafendorf bei Hartberg","St","PLZ-Adressierung","extern","Ja","Ja"]
[8233,"Lafnitz","St","PLZ-Adressierung","extern","Ja","Nein"]
[8234,"Rohrbach an der Lafnitz","St","PLZ-Adressierung","extern","Ja","Nein"]
[8240,"Friedberg","St","PLZ-Adressierung","extern","Ja","Ja"]
[8241,"Dechantskirchen","St","PLZ-Adressierung","extern","Ja","Ja"]
[8242,"St. Lorenzen am Wechsel","St","PLZ-Adressierung","extern","Ja","Nein"]
[8243,"Pinggau","St","PLZ-Adressierung","extern","Ja","Ja"]
[8244,"Schäffern","St","PLZ-Adressierung","extern","Ja","Nein"]
[8250,"Vorau","St","PLZ-Adressierung","extern","Ja","Ja"]
[8251,"Bruck an der Lafnitz","St","PLZ-Adressierung","extern","Ja","Nein"]
[8252,"Mönichwald","St","PLZ-Adressierung","extern","Ja","Nein"]
[8253,"Waldbach","St","PLZ-Adressierung","extern","Ja","Ja"]
[8254,"Wenigzell","St","PLZ-Adressierung","extern","Ja","Ja"]
[8255,"St. Jakob","St","PLZ-Adressierung","extern","Ja","Nein"]
[8261,"Sinabelkirchen","St","PLZ-Adressierung","extern","Ja","Ja"]
[8262,"Ilz","St","PLZ-Adressierung","extern","Ja","Ja"]
[8263,"Großwilfersdorf","St","PLZ-Adressierung","extern","Ja","Ja"]
[8264,"Hainersdorf","St","PLZ-Adressierung","extern","Ja","Nein"]
[8265,"Großsteinbach","St","PLZ-Adressierung","extern","Ja","Nein"]
[8271,"Bad Waltersdorf","St","PLZ-Adressierung","extern","Ja","Ja"]
[8272,"Sebersdorf","St","PLZ-Adressierung","extern","Ja","Nein"]
[8273,"Ebersdorf","St","PLZ-Adressierung","extern","Ja","Nein"]
[8274,"Buch","St","PLZ-Adressierung","extern","Ja","Nein"]
[8280,"Fürstenfeld","St","PLZ-Adressierung","extern","Ja","Ja"]
[8282,"Loipersdorf bei Fürstenfeld","St","PLZ-Adressierung","extern","Ja","Ja"]
[8283,"Bad Blumau","St","PLZ-Adressierung","extern","Ja","Ja"]
[8291,"Burgau","St","PLZ-Adressierung","extern","Ja","Nein"]
[8292,"Neudau","St","PLZ-Adressierung","extern","Ja","Ja"]
[8293,"Wörth an der Lafnitz","St","PLZ-Adressierung","extern","Ja","Nein"]
[8294,"Unterrohr","St","PLZ-Adressierung","extern","Ja","Nein"]
[8295,"St. Johann in der Haide","St","PLZ-Adressierung","extern","Ja","Ja"]
[8301,"Laßnitzhöhe","St","PLZ-Adressierung","extern","Ja","Ja"]
[8302,"Nestelbach bei Graz","St","PLZ-Adressierung","extern","Ja","Nein"]
[8311,"Markt Hartmannsdorf","St","PLZ-Adressierung","extern","Ja","Ja"]
[8312,"Ottendorf an der Rittschein","St","PLZ-Adressierung","extern","Ja","Nein"]
[8313,"Breitenfeld an der Rittschein","St","PLZ-Adressierung","extern","Ja","Ja"]
[8321,"St. Margarethen an der Raab","St","PLZ-Adressierung","extern","Ja","Ja"]
[8322,"Studenzen","St","PLZ-Adressierung","extern","Ja","Ja"]
[8323,"St. Marein bei Graz","St","PLZ-Adressierung","extern","Ja","Ja"]
[8324,"Kirchberg an der Raab","St","PLZ-Adressierung","extern","Ja","Nein"]
[8330,"Feldbach","St","PLZ-Adressierung","extern","Ja","Ja"]
[8332,"Edelsbach bei Feldbach","St","PLZ-Adressierung","extern","Ja","Nein"]
[8333,"Riegersburg","St","PLZ-Adressierung","extern","Ja","Nein"]
[8334,"Lödersdorf","St","PLZ-Adressierung","extern","Ja","Nein"]
[8341,"Paldau","St","PLZ-Adressierung","extern","Ja","Ja"]
[8342,"Gnas","St","PLZ-Adressierung","extern","Ja","Ja"]
[8343,"Trautmannsdorf in Oststeiermark","St","PLZ-Adressierung","extern","Ja","Nein"]
[8344,"Bad Gleichenberg","St","PLZ-Adressierung","extern","Ja","Ja"]
[8345,"Straden","St","PLZ-Adressierung","extern","Ja","Ja"]
[8350,"Fehring","St","PLZ-Adressierung","extern","Ja","Ja"]
[8352,"Unterlamm","St","PLZ-Adressierung","extern","Ja","Nein"]
[8353,"Kapfenstein","St","PLZ-Adressierung","extern","Ja","Nein"]
[8354,"St. Anna am Aigen","St","PLZ-Adressierung","extern","Ja","Ja"]
[8355,"Tieschen","St","PLZ-Adressierung","extern","Ja","Nein"]
[8361,"Hatzendorf","St","PLZ-Adressierung","extern","Ja","Nein"]
[8362,"Söchau","St","PLZ-Adressierung","extern","Ja","Nein"]
[8380,"Jennersdorf","B","PLZ-Adressierung","extern","Ja","Ja"]
[8382,"Mogersdorf","B","PLZ-Adressierung","extern","Ja","Nein"]
[8383,"St. Martin an der Raab","B","PLZ-Adressierung","extern","Ja","Nein"]
[8384,"Minihof-Liebau","B","PLZ-Adressierung","extern","Ja","Ja"]
[8385,"Neuhaus am Klausenbach","B","PLZ-Adressierung","extern","Ja","Nein"]
[8401,"Kalsdorf bei Graz","St","PLZ-Adressierung","extern","Ja","Ja"]
[8402,"Werndorf","St","PLZ-Adressierung","extern","Ja","Nein"]
[8403,"Lebring","St","PLZ-Adressierung","extern","Ja","Ja"]
[8410,"Wildon","St","PLZ-Adressierung","extern","Ja","Ja"]
[8411,"Hengsberg","St","PLZ-Adressierung","extern","Ja","Nein"]
[8412,"Allerheiligen bei Wildon","St","PLZ-Adressierung","extern","Ja","Nein"]
[8413,"St. Georgen an der Stiefing","St","PLZ-Adressierung","extern","Ja","Nein"]
[8421,"Wolfsberg im Schwarzautal","St","PLZ-Adressierung","extern","Ja","Ja"]
[8422,"St. Nikolai ob Draßling","St","PLZ-Adressierung","extern","Ja","Nein"]
[8423,"St. Veit am Vogau","St","PLZ-Adressierung","extern","Ja","Nein"]
[8424,"Gabersdorf","St","PLZ-Adressierung","extern","Ja","Nein"]
[8430,"Leibnitz","St","PLZ-Adressierung","extern","Ja","Ja"]
[8435,"Wagna","St","PLZ-Adressierung","extern","Ja","Ja"]
[8441,"Fresing","St","PLZ-Adressierung","extern","Ja","Ja"]
[8442,"Kitzeck im Sausal","St","PLZ-Adressierung","extern","Ja","Nein"]
[8443,"Gleinstätten","St","PLZ-Adressierung","extern","Ja","Ja"]
[8444,"St. Andrä im Sausal","St","PLZ-Adressierung","extern","Ja","Nein"]
[8451,"Heimschuh","St","PLZ-Adressierung","extern","Ja","Nein"]
[8452,"Großklein","St","PLZ-Adressierung","extern","Ja","Ja"]
[8453,"St. Johann im Saggautal","St","PLZ-Adressierung","extern","Ja","Nein"]
[8454,"Arnfels","St","PLZ-Adressierung","extern","Ja","Ja"]
[8455,"Oberhaag","St","PLZ-Adressierung","extern","Ja","Nein"]
[8461,"Ehrenhausen","St","PLZ-Adressierung","extern","Ja","Ja"]
[8462,"Gamlitz","St","PLZ-Adressierung","extern","Ja","Ja"]
[8463,"Leutschach","St","PLZ-Adressierung","extern","Ja","Ja"]
[8471,"Spielfeld","St","PLZ-Adressierung","extern","Ja","Ja"]
[8472,"Straß in Steiermark","St","PLZ-Adressierung","extern","Ja","Ja"]
[8473,"Weitersfeld an der Mur","St","PLZ-Adressierung","extern","Ja","Nein"]
[8480,"Mureck","St","PLZ-Adressierung","extern","Ja","Ja"]
[8481,"Weinburg am Saßbach","St","PLZ-Adressierung","extern","Ja","Nein"]
[8482,"Gosdorf","St","PLZ-Adressierung","extern","Ja","Nein"]
[8483,"Deutsch Goritz","St","PLZ-Adressierung","extern","Ja","Nein"]
[8484,"Unterpurkla","St","PLZ-Adressierung","extern","Ja","Nein"]
[8490,"Bad Radkersburg","St","PLZ-Adressierung","extern","Ja","Ja"]
[8492,"Halbenrain","St","PLZ-Adressierung","extern","Ja","Nein"]
[8493,"Klöch","St","PLZ-Adressierung","extern","Ja","Nein"]
[8501,"Lieboch","St","PLZ-Adressierung","extern","Ja","Ja"]
[8502,"Lannach","St","PLZ-Adressierung","extern","Ja","Ja"]
[8503,"St. Josef Weststeiermark","St","PLZ-Adressierung","extern","Ja","Nein"]
[8504,"Preding","St","PLZ-Adressierung","extern","Ja","Ja"]
[8505,"St. Nikolai im Sausal","St","PLZ-Adressierung","extern","Ja","Ja"]
[8510,"Stainz","St","PLZ-Adressierung","extern","Ja","Ja"]
[8511,"St. Stefan ob Stainz","St","PLZ-Adressierung","extern","Ja","Ja"]
[8521,"Wettmannstätten","St","PLZ-Adressierung","extern","Ja","Nein"]
[8522,"Groß St. Florian","St","PLZ-Adressierung","extern","Ja","Ja"]
[8523,"Frauental an der Laßnitz","St","PLZ-Adressierung","extern","Ja","Ja"]
[8524,"Bad Gams","St","PLZ-Adressierung","extern","Ja","Nein"]
[8530,"Deutschlandsberg","St","PLZ-Adressierung","extern","Ja","Ja"]
[8541,"Schwanberg","St","PLZ-Adressierung","extern","Ja","Ja"]
[8542,"St. Peter im Sulmtal","St","PLZ-Adressierung","extern","Ja","Ja"]
[8543,"St. Martin im Sulmtal","St","PLZ-Adressierung","extern","Ja","Nein"]
[8544,"Pölfing-Brunn","St","PLZ-Adressierung","extern","Ja","Nein"]
[8551,"Wies","St","PLZ-Adressierung","extern","Ja","Ja"]
[8552,"Eibiswald","St","PLZ-Adressierung","extern","Ja","Ja"]
[8553,"St. Oswald ob Eibiswald","St","PLZ-Adressierung","extern","Ja","Nein"]
[8554,"Soboth","St","PLZ-Adressierung","extern","Ja","Nein"]
[8561,"Söding","St","PLZ-Adressierung","extern","Ja","Nein"]
[8562,"Mooskirchen","St","PLZ-Adressierung","extern","Ja","Nein"]
[8563,"Ligist","St","PLZ-Adressierung","extern","Ja","Ja"]
[8564,"Krottendorf-Gaisfeld","St","PLZ-Adressierung","extern","Ja","Ja"]
[8565,"St. Johann ob Hohenburg","St","PLZ-Adressierung","extern","Ja","Nein"]
[8570,"Voitsberg","St","PLZ-Adressierung","extern","Ja","Ja"]
[8572,"Bärnbach","St","PLZ-Adressierung","extern","Ja","Ja"]
[8573,"Kainach bei Voitsberg","St","PLZ-Adressierung","extern","Ja","Nein"]
[8580,"Köflach","St","PLZ-Adressierung","extern","Ja","Ja"]
[8582,"Rosental an der Kainach","St","PLZ-Adressierung","extern","Ja","Nein"]
[8583,"Edelschrott","St","PLZ-Adressierung","extern","Ja","Ja"]
[8584,"Hirschegg","St","PLZ-Adressierung","extern","Ja","Nein"]
[8591,"Maria Lankowitz","St","PLZ-Adressierung","extern","Ja","Nein"]
[8592,"Salla","St","PLZ-Adressierung","extern","Ja","Nein"]
[8593,"Graden","St","PLZ-Adressierung","extern","Ja","Nein"]
[8600,"Bruck an der Mur","St","PLZ-Adressierung","extern","Ja","Ja"]
[8601,"Bruck an der Mur","St","PLZ-Postfach","extern","Nein","Ja"]
[8605,"Kapfenberg","St","PLZ-Adressierung","extern","Ja","Ja"]
[8607,"Kapfenberg","St","PLZ-Postfach","extern","Nein","Ja"]
[8611,"St. Katharein an der Laming","St","PLZ-Adressierung","extern","Ja","Ja"]
[8612,"Tragöß-Oberort","St","PLZ-Adressierung","extern","Ja","Nein"]
[8614,"Breitenau","St","PLZ-Adressierung","extern","Ja","Ja"]
[8616,"Gasen","St","PLZ-Adressierung","extern","Ja","Nein"]
[8621,"Thörl","St","PLZ-Adressierung","extern","Ja","Ja"]
[8622,"Etmißl","St","PLZ-Adressierung","extern","Ja","Nein"]
[8623,"Aflenz Kurort","St","PLZ-Adressierung","extern","Ja","Ja"]
[8624,"Au","St","PLZ-Adressierung","extern","Ja","Nein"]
[8625,"Turnau","St","PLZ-Adressierung","extern","Ja","Nein"]
[8630,"Mariazell","St","PLZ-Adressierung","extern","Ja","Ja"]
[8632,"Gußwerk","St","PLZ-Adressierung","extern","Ja","Nein"]
[8634,"Wegscheid","St","PLZ-Adressierung","extern","Ja","Nein"]
[8635,"Gollrad","St","PLZ-Adressierung","extern","Ja","Nein"]
[8636,"Seewiesen","St","PLZ-Adressierung","extern","Ja","Nein"]
[8641,"St. Marein im Mürztal","St","PLZ-Adressierung","extern","Ja","Ja"]
[8642,"St. Lorenzen im Mürztal","St","PLZ-Adressierung","extern","Ja","Nein"]
[8643,"Allerheiligen im Mürztal","St","PLZ-Adressierung","extern","Ja","Ja"]
[8644,"Mürzhofen","St","PLZ-Adressierung","extern","Ja","Nein"]
[8650,"Kindberg","St","PLZ-Adressierung","extern","Ja","Ja"]
[8652,"Kindberg-Aumühl","St","PLZ-Adressierung","extern","Ja","Nein"]
[8653,"Stanz im Mürztal","St","PLZ-Adressierung","extern","Ja","Nein"]
[8654,"Fischbach","St","PLZ-Adressierung","extern","Ja","Nein"]
[8661,"Wartberg im Mürztal","St","PLZ-Adressierung","extern","Ja","Ja"]
[8662,"Mitterdorf im Mürztal","St","PLZ-Adressierung","extern","Ja","Nein"]
[8663,"Dorf Veitsch","St","PLZ-Adressierung","extern","Ja","Ja"]
[8664,"Großveitsch","St","PLZ-Adressierung","extern","Ja","Nein"]
[8665,"Langenwang","St","PLZ-Adressierung","extern","Ja","Ja"]
[8670,"Krieglach","St","PLZ-Adressierung","extern","Ja","Ja"]
[8671,"Alpl","St","PLZ-Adressierung","extern","Ja","Nein"]
[8672,"St. Kathrein am Hauenstein","St","PLZ-Adressierung","extern","Ja","Nein"]
[8673,"Ratten","St","PLZ-Adressierung","extern","Ja","Ja"]
[8674,"Rettenegg","St","PLZ-Adressierung","extern","Ja","Ja"]
[8680,"Mürzzuschlag","St","PLZ-Adressierung","extern","Ja","Ja"]
[8682,"Mürzzuschlag-Hönigsberg","St","PLZ-Adressierung","extern","Ja","Nein"]
[8684,"Spital am Semmering","St","PLZ-Adressierung","extern","Ja","Nein"]
[8685,"Steinhaus am Semmering","St","PLZ-Adressierung","extern","Ja","Nein"]
[8691,"Kapellen","St","PLZ-Adressierung","extern","Ja","Nein"]
[8692,"Neuberg an der Mürz","St","PLZ-Adressierung","extern","Ja","Ja"]
[8693,"Mürzsteg","St","PLZ-Adressierung","extern","Ja","Nein"]
[8694,"Frein an der Mürz","St","PLZ-Adressierung","extern","Ja","Nein"]
[8700,"Leoben","St","PLZ-Adressierung","extern","Ja","Ja"]
[8701,"Leoben","St","PLZ-Postfach","extern","Nein","Ja"]
[8704,"Leoben","St","PLZ-Postfach","extern","Nein","Ja"]
[8707,"Leoben","St","PLZ-Postfach","extern","Nein","Ja"]
[8712,"Niklasdorf","St","PLZ-Adressierung","extern","Ja","Ja"]
[8713,"St. Stefan ob Leoben","St","PLZ-Adressierung","extern","Ja","Ja"]
[8714,"Kraubath an der Mur","St","PLZ-Adressierung","extern","Ja","Ja"]
[8715,"St. Lorenzen bei Knittelfeld","St","PLZ-Adressierung","extern","Ja","Nein"]
[8720,"Knittelfeld","St","PLZ-Adressierung","extern","Ja","Ja"]
[8724,"Spielberg","St","PLZ-Adressierung","extern","Ja","Ja"]
[8731,"Bischoffeld","St","PLZ-Adressierung","extern","Ja","Nein"]
[8732,"Seckau","St","PLZ-Adressierung","extern","Ja","Nein"]
[8733,"St. Marein bei Knittelfeld","St","PLZ-Adressierung","extern","Ja","Nein"]
[8734,"Großlobming","St","PLZ-Adressierung","extern","Ja","Nein"]
[8740,"Zeltweg","St","PLZ-Adressierung","extern","Ja","Ja"]
[8741,"Weißkirchen in Steiermark","St","PLZ-Adressierung","extern","Ja","Ja"]
[8742,"Obdach","St","PLZ-Adressierung","extern","Ja","Ja"]
[8750,"Judenburg","St","PLZ-Adressierung","extern","Ja","Ja"]
[8752,"Fohnsdorf-Arena","St","PLZ-Postfach","extern","Nein","Ja"]
[8753,"Fohnsdorf","St","PLZ-Adressierung","extern","Ja","Ja"]
[8754,"Thalheim","St","PLZ-Adressierung","extern","Ja","Nein"]
[8755,"St. Peter ob Judenburg","St","PLZ-Adressierung","extern","Ja","Nein"]
[8756,"St. Georgen ob Judenburg","St","PLZ-Adressierung","extern","Ja","Nein"]
[8761,"Pöls","St","PLZ-Adressierung","extern","Ja","Ja"]
[8762,"Oberzeiring","St","PLZ-Adressierung","extern","Ja","Ja"]
[8763,"Möderbrugg","St","PLZ-Adressierung","extern","Ja","Ja"]
[8764,"Pusterwald","St","PLZ-Adressierung","extern","Ja","Nein"]
[8765,"St. Johann am Tauern","St","PLZ-Adressierung","extern","Ja","Nein"]
[8770,"St. Michael in Obersteiermark","St","PLZ-Adressierung","extern","Ja","Ja"]
[8772,"Timmersdorf","St","PLZ-Adressierung","extern","Ja","Nein"]
[8773,"Kammern im Liesingtal","St","PLZ-Adressierung","extern","Ja","Ja"]
[8774,"Mautern in Steiermark","St","PLZ-Adressierung","extern","Ja","Nein"]
[8775,"Kalwang","St","PLZ-Adressierung","extern","Ja","Ja"]
[8781,"Wald am Schoberpaß","St","PLZ-Adressierung","extern","Ja","Nein"]
[8782,"Treglwang","St","PLZ-Adressierung","extern","Ja","Nein"]
[8783,"Gaishorn am See","St","PLZ-Adressierung","extern","Ja","Nein"]
[8784,"Trieben","St","PLZ-Adressierung","extern","Ja","Ja"]
[8785,"Hohentauern","St","PLZ-Adressierung","extern","Ja","Nein"]
[8786,"Rottenmann","St","PLZ-Adressierung","extern","Ja","Ja"]
[8790,"Eisenerz","St","PLZ-Adressierung","extern","Ja","Ja"]
[8792,"St. Peter-Freienstein","St","PLZ-Adressierung","extern","Ja","Nein"]
[8793,"Trofaiach","St","PLZ-Adressierung","extern","Ja","Ja"]
[8794,"Vordernberg","St","PLZ-Adressierung","extern","Ja","Nein"]
[8795,"Radmer","St","PLZ-Adressierung","extern","Ja","Nein"]
[8800,"Unzmarkt","St","PLZ-Adressierung","extern","Ja","Ja"]
[8811,"Scheifling","St","PLZ-Adressierung","extern","Ja","Ja"]
[8812,"Mariahof","St","PLZ-Adressierung","extern","Ja","Nein"]
[8813,"St. Lambrecht","St","PLZ-Adressierung","extern","Ja","Nein"]
[8820,"Neumarkt in Steiermark","St","PLZ-Adressierung","extern","Ja","Ja"]
[8822,"Mühlen","St","PLZ-Adressierung","extern","Ja","Nein"]
[8831,"Niederwölz","St","PLZ-Adressierung","extern","Ja","Nein"]
[8832,"Oberwölz","St","PLZ-Adressierung","extern","Ja","Ja"]
[8833,"Teufenbach","St","PLZ-Adressierung","extern","Ja","Nein"]
[8841,"Frojach","St","PLZ-Adressierung","extern","Ja","Nein"]
[8842,"Katsch an der Mur","St","PLZ-Adressierung","extern","Ja","Ja"]
[8843,"St. Peter am Kammersberg","St","PLZ-Adressierung","extern","Ja","Nein"]
[8844,"Schöder","St","PLZ-Adressierung","extern","Ja","Nein"]
[8850,"Murau","St","PLZ-Adressierung","extern","Ja","Ja"]
[8852,"Stolzalpe","St","PLZ-Adressierung","extern","Ja","Nein"]
[8853,"Ranten","St","PLZ-Adressierung","extern","Ja","Nein"]
[8854,"Krakaudorf","St","PLZ-Adressierung","extern","Ja","Nein"]
[8861,"St. Georgen ob Murau","St","PLZ-Adressierung","extern","Ja","Nein"]
[8862,"Stadl an der Mur","St","PLZ-Adressierung","extern","Ja","Ja"]
[8863,"Predlitz","St","PLZ-Adressierung","extern","Ja","Nein"]
[8864,"Turrach","St","PLZ-Adressierung","extern","Ja","Nein"]
[8900,"Selzthal","St","PLZ-Adressierung","extern","Ja","Nein"]
[8903,"Lassing","St","PLZ-Adressierung","extern","Ja","Nein"]
[8904,"Ardning","St","PLZ-Adressierung","extern","Ja","Nein"]
[8911,"Admont","St","PLZ-Adressierung","extern","Ja","Ja"]
[8912,"Johnsbach","St","PLZ-Adressierung","extern","Ja","Nein"]
[8913,"Weng","St","PLZ-Adressierung","extern","Ja","Nein"]
[8920,"Hieflau","St","PLZ-Adressierung","extern","Ja","Ja"]
[8921,"Lainbach","St","PLZ-Adressierung","extern","Ja","Nein"]
[8922,"Gams bei Hieflau","St","PLZ-Adressierung","extern","Ja","Nein"]
[8923,"Palfau","St","PLZ-Adressierung","extern","Ja","Nein"]
[8924,"Wildalpen","St","PLZ-Adressierung","extern","Ja","Nein"]
[8931,"Landl","St","PLZ-Adressierung","extern","Ja","Ja"]
[8932,"Weißenbach an der Enns","St","PLZ-Adressierung","extern","Ja","Nein"]
[8933,"St. Gallen","St","PLZ-Adressierung","extern","Ja","Ja"]
[8934,"Altenmarkt bei St. Gallen","St","PLZ-Adressierung","extern","Ja","Nein"]
[8940,"Liezen","St","PLZ-Adressierung","extern","Ja","Ja"]
[8942,"Wörschach","St","PLZ-Adressierung","extern","Ja","Nein"]
[8943,"Aigen im Ennstal","St","PLZ-Adressierung","extern","Ja","Ja"]
[8950,"Stainach","St","PLZ-Adressierung","extern","Ja","Ja"]
[8951,"Trautenfels","St","PLZ-Adressierung","extern","Ja","Nein"]
[8952,"Irdning","St","PLZ-Adressierung","extern","Ja","Ja"]
[8953,"Donnersbach","St","PLZ-Adressierung","extern","Ja","Nein"]
[8954,"St. Martin am Grimming","St","PLZ-Adressierung","extern","Ja","Nein"]
[8960,"Öblarn","St","PLZ-Adressierung","extern","Ja","Ja"]
[8961,"Stein an der Enns","St","PLZ-Adressierung","extern","Ja","Nein"]
[8962,"Gröbming","St","PLZ-Adressierung","extern","Ja","Ja"]
[8965,"Pruggern","St","PLZ-Adressierung","extern","Ja","Nein"]
[8966,"Aich-Assach","St","PLZ-Adressierung","extern","Ja","Nein"]
[8967,"Haus","St","PLZ-Adressierung","extern","Ja","Ja"]
[8970,"Schladming","St","PLZ-Adressierung","extern","Ja","Ja"]
[8971,"Rohrmoos-Untertal","St","PLZ-Adressierung","extern","Ja","Nein"]
[8972,"Ramsau","St","PLZ-Adressierung","extern","Ja","Ja"]
[8973,"Pichl","St","PLZ-Adressierung","extern","Ja","Nein"]
[8974,"Mandling","St","PLZ-Adressierung","extern","Ja","Nein"]
[8982,"Tauplitz","St","PLZ-Adressierung","extern","Ja","Nein"]
[8983,"Bad Mitterndorf","St","PLZ-Adressierung","extern","Ja","Ja"]
[8984,"Kainisch","St","PLZ-Adressierung","extern","Ja","Nein"]
[8990,"Bad Aussee","St","PLZ-Adressierung","extern","Ja","Ja"]
[8992,"Altaussee","St","PLZ-Adressierung","extern","Ja","Ja"]
[8993,"Grundlsee","St","PLZ-Adressierung","extern","Ja","Nein"]
[9010,"Klagenfurt am Wörthersee","K","PLZ-Postfach","extern","Nein","Ja"]
[9013,"Klagenfurt am Wörthersee","K","PLZ-Postfach","extern","Nein","Ja"]
[9020,"Klagenfurt am Wörthersee","K","PLZ-Adressierung","extern","Ja","Ja"]
[9021,"Klagenfurt am Wörthersee Postfach","K","PLZ-Postfach","extern","Nein","Ja"]
[9022,"Klagenfurt am Wörthersee","K","PLZ-Postfach","extern","Nein","Ja"]
[9023,"Klagenfurt am Wörthersee","K","PLZ-Postfach","extern","Nein","Ja"]
[9024,"Klagenfurt am Wörthersee","K","PLZ-Postfach","extern","Nein","Ja"]
[9025,"Klagenfurt am Wörthersee","K","PLZ-Postfach","extern","Nein","Ja"]
[9026,"Klagenfurt am Wörthersee","K","PLZ-Postfach","extern","Nein","Ja"]
[9027,"Klagenfurt am Wörthersee","K","PLZ-Postfach","extern","Nein","Ja"]
[9028,"Klagenfurt am Wörthersee","K","PLZ-Postfach","extern","Nein","Ja"]
[9029,"Klagenfurt am Wörthersee","K","PLZ-Postfach","extern","Nein","Ja"]
[9061,"Klagenfurt-Wölfnitz","K","PLZ-Adressierung","extern","Ja","Ja"]
[9062,"Moosburg","K","PLZ-Adressierung","extern","Ja","Ja"]
[9063,"Maria Saal","K","PLZ-Adressierung","extern","Ja","Ja"]
[9064,"Pischeldorf","K","PLZ-Adressierung","extern","Ja","Ja"]
[9065,"Ebenthal","K","PLZ-Adressierung","extern","Ja","Ja"]
[9071,"Köttmannsdorf","K","PLZ-Adressierung","extern","Ja","Ja"]
[9072,"Ludmannsdorf","K","PLZ-Adressierung","extern","Ja","Nein"]
[9073,"Klagenfurt-Viktring","K","PLZ-Adressierung","extern","Ja","Ja"]
[9074,"Keutschach","K","PLZ-Adressierung","extern","Ja","Ja"]
[9081,"Reifnitz","K","PLZ-Adressierung","extern","Ja","Ja"]
[9082,"Maria Wörth","K","PLZ-Adressierung","extern","Ja","Nein"]
[9100,"Völkermarkt","K","PLZ-Adressierung","extern","Ja","Ja"]
[9102,"Mittertrixen","K","PLZ-Adressierung","extern","Ja","Nein"]
[9103,"Diex","K","PLZ-Adressierung","extern","Ja","Ja"]
[9104,"Pustritz","K","PLZ-Adressierung","extern","Ja","Nein"]
[9111,"Haimburg","K","PLZ-Adressierung","extern","Ja","Nein"]
[9112,"Griffen","K","PLZ-Adressierung","extern","Ja","Ja"]
[9113,"Ruden","K","PLZ-Adressierung","extern","Ja","Ja"]
[9121,"Tainach","K","PLZ-Adressierung","extern","Ja","Ja"]
[9122,"St. Kanzian am Klopeiner See","K","PLZ-Adressierung","extern","Ja","Ja"]
[9123,"St. Primus","K","PLZ-Adressierung","extern","Ja","Nein"]
[9125,"Kühnsdorf","K","PLZ-Adressierung","extern","Ja","Ja"]
[9130,"Poggersdorf","K","PLZ-Adressierung","extern","Ja","Nein"]
[9131,"Grafenstein","K","PLZ-Adressierung","extern","Ja","Ja"]
[9132,"Gallizien","K","PLZ-Adressierung","extern","Ja","Nein"]
[9133,"Miklauzhof","K","PLZ-Adressierung","extern","Ja","Nein"]
[9135,"Bad Eisenkappel","K","PLZ-Adressierung","extern","Ja","Ja"]
[9141,"Eberndorf","K","PLZ-Adressierung","extern","Ja","Ja"]
[9142,"Globasnitz","K","PLZ-Adressierung","extern","Ja","Ja"]
[9143,"St. Michael ob Bleiburg","K","PLZ-Adressierung","extern","Ja","Nein"]
[9150,"Bleiburg","K","PLZ-Adressierung","extern","Ja","Ja"]
[9155,"Neuhaus","K","PLZ-Adressierung","extern","Ja","Nein"]
[9161,"Maria Rain","K","PLZ-Adressierung","extern","Ja","Ja"]
[9162,"Strau","K","PLZ-Adressierung","extern","Ja","Ja"]
[9163,"Unterbergen","K","PLZ-Adressierung","extern","Ja","Nein"]
[9170,"Ferlach","K","PLZ-Adressierung","extern","Ja","Ja"]
[9173,"St. Margareten im Rosental","K","PLZ-Adressierung","extern","Ja","Nein"]
[9181,"Feistritz im Rosental","K","PLZ-Adressierung","extern","Ja","Ja"]
[9182,"Maria Elend","K","PLZ-Adressierung","extern","Ja","Nein"]
[9183,"Rosenbach","K","PLZ-Adressierung","extern","Ja","Nein"]
[9184,"St. Jakob im Rosental","K","PLZ-Adressierung","extern","Ja","Ja"]
[9201,"Krumpendorf","K","PLZ-Adressierung","extern","Ja","Ja"]
[9210,"Pörtschach am Wörther See","K","PLZ-Adressierung","extern","Ja","Ja"]
[9212,"Techelsberg am Wörther See","K","PLZ-Adressierung","extern","Ja","Nein"]
[9220,"Velden am Wörther See","K","PLZ-Adressierung","extern","Ja","Ja"]
[9231,"Köstenberg","K","PLZ-Adressierung","extern","Ja","Nein"]
[9232,"Rosegg","K","PLZ-Adressierung","extern","Ja","Ja"]
[9241,"Wernberg","K","PLZ-Adressierung","extern","Ja","Ja"]
[9300,"St. Veit an der Glan","K","PLZ-Adressierung","extern","Ja","Ja"]
[9302,"St. Veit an der Glan","K","PLZ-Postfach","extern","Nein","Ja"]
[9311,"Kraig","K","PLZ-Adressierung","extern","Ja","Nein"]
[9312,"Meiselding","K","PLZ-Adressierung","extern","Ja","Nein"]
[9313,"St. Georgen am Längsee","K","PLZ-Adressierung","extern","Ja","Nein"]
[9314,"Launsdorf","K","PLZ-Adressierung","extern","Ja","Ja"]
[9321,"Kappel am Krappfeld","K","PLZ-Adressierung","extern","Ja","Nein"]
[9322,"Micheldorf","K","PLZ-Adressierung","extern","Ja","Nein"]
[9323,"Wildbad Einöd","St","PLZ-Adressierung","extern","Ja","Nein"]
[9330,"Treibach-Althofen","K","PLZ-Adressierung","extern","Ja","Ja"]
[9334,"Guttaring","K","PLZ-Adressierung","extern","Ja","Nein"]
[9335,"Lölling","K","PLZ-Adressierung","extern","Ja","Nein"]
[9341,"Straßburg","K","PLZ-Adressierung","extern","Ja","Ja"]
[9342,"Gurk","K","PLZ-Adressierung","extern","Ja","Nein"]
[9343,"Zweinitz","K","PLZ-Adressierung","extern","Ja","Nein"]
[9344,"Weitensfeld","K","PLZ-Adressierung","extern","Ja","Ja"]
[9345,"Kleinglödnitz","K","PLZ-Adressierung","extern","Ja","Nein"]
[9346,"Glödnitz","K","PLZ-Adressierung","extern","Ja","Nein"]
[9360,"Friesach","K","PLZ-Adressierung","extern","Ja","Ja"]
[9361,"St. Salvator","K","PLZ-Adressierung","extern","Ja","Nein"]
[9362,"Grades","K","PLZ-Adressierung","extern","Ja","Nein"]
[9363,"Metnitz","K","PLZ-Adressierung","extern","Ja","Ja"]
[9371,"Brückl","K","PLZ-Adressierung","extern","Ja","Ja"]
[9372,"Eberstein","K","PLZ-Adressierung","extern","Ja","Nein"]
[9373,"Klein St. Paul","K","PLZ-Adressierung","extern","Ja","Ja"]
[9374,"Wieting","K","PLZ-Adressierung","extern","Ja","Nein"]
[9375,"Hüttenberg","K","PLZ-Adressierung","extern","Ja","Ja"]
[9376,"Knappenberg","K","PLZ-Adressierung","extern","Ja","Nein"]
[9400,"Wolfsberg","K","PLZ-Adressierung","extern","Ja","Ja"]
[9402,"Wolfsberg, Kärnten","K","PLZ-Postfach","extern","Nein","Ja"]
[9411,"St. Michael","K","PLZ-Adressierung","extern","Ja","Nein"]
[9412,"St. Margarethen im Lavanttal","K","PLZ-Adressierung","extern","Ja","Nein"]
[9413,"St. Gertraud","K","PLZ-Adressierung","extern","Ja","Nein"]
[9421,"Eitweg","K","PLZ-Adressierung","extern","Ja","Ja"]
[9422,"Maria Rojach","K","PLZ-Adressierung","extern","Ja","Nein"]
[9423,"St. Georgen","K","PLZ-Adressierung","extern","Ja","Nein"]
[9431,"St. Stefan","K","PLZ-Adressierung","extern","Ja","Ja"]
[9433,"St. Andrä","K","PLZ-Adressierung","extern","Ja","Ja"]
[9441,"Twimberg","K","PLZ-Adressierung","extern","Ja","Nein"]
[9451,"Preitenegg","K","PLZ-Adressierung","extern","Ja","Nein"]
[9461,"Prebl","K","PLZ-Adressierung","extern","Ja","Nein"]
[9462,"Bad St. Leonhard im Lavanttal","K","PLZ-Adressierung","extern","Ja","Ja"]
[9463,"Reichenfels","K","PLZ-Adressierung","extern","Ja","Nein"]
[9470,"St. Paul im Lavanttal","K","PLZ-Adressierung","extern","Ja","Ja"]
[9472,"Ettendorf","K","PLZ-Adressierung","extern","Ja","Nein"]
[9473,"Lavamünd","K","PLZ-Adressierung","extern","Ja","Ja"]
[9500,"Villach","K","PLZ-Adressierung","extern","Ja","Ja"]
[9501,"Villach","K","PLZ-Postfach","extern","Nein","Ja"]
[9503,"Villach","K","PLZ-Postfach","extern","Nein","Ja"]
[9504,"Villach-Warmbad Villach","K","PLZ-Adressierung","extern","Ja","Nein"]
[9505,"Villach","K","PLZ-Postfach","extern","Nein","Ja"]
[9506,"Villach","K","PLZ-Postfach","extern","Nein","Ja"]
[9507,"Villach","K","PLZ-Postfach","extern","Nein","Ja"]
[9508,"Villach","K","PLZ-Postfach","extern","Nein","Ja"]
[9520,"Sattendorf","K","PLZ-Adressierung","extern","Ja","Nein"]
[9521,"Treffen","K","PLZ-Adressierung","extern","Ja","Ja"]
[9523,"Villach-Landskron","K","PLZ-Adressierung","extern","Ja","Ja"]
[9524,"Villach-St. Magdalen","K","PLZ-Adressierung","extern","Ja","Ja"]
[9530,"Bad Bleiberg","K","PLZ-Adressierung","extern","Ja","Ja"]
[9531,"Kreuth","K","PLZ-Adressierung","extern","Ja","Nein"]
[9535,"Schiefling","K","PLZ-Adressierung","extern","Ja","Ja"]
[9536,"St. Egyden","K","PLZ-Adressierung","extern","Ja","Nein"]
[9541,"Einöde","K","PLZ-Adressierung","extern","Ja","Nein"]
[9542,"Afritz","K","PLZ-Adressierung","extern","Ja","Ja"]
[9543,"Arriach","K","PLZ-Adressierung","extern","Ja","Nein"]
[9544,"Feld am See","K","PLZ-Adressierung","extern","Ja","Nein"]
[9545,"Radenthein","K","PLZ-Adressierung","extern","Ja","Ja"]
[9546,"Bad Kleinkirchheim","K","PLZ-Adressierung","extern","Ja","Ja"]
[9551,"Bodensdorf","K","PLZ-Adressierung","extern","Ja","Ja"]
[9552,"Steindorf am Ossiacher See","K","PLZ-Adressierung","extern","Ja","Nein"]
[9554,"St. Urban","K","PLZ-Adressierung","extern","Ja","Nein"]
[9555,"Glanegg","K","PLZ-Adressierung","extern","Ja","Ja"]
[9556,"Liebenfels","K","PLZ-Adressierung","extern","Ja","Ja"]
[9560,"Feldkirchen in Kärnten","K","PLZ-Adressierung","extern","Ja","Ja"]
[9562,"Himmelberg","K","PLZ-Adressierung","extern","Ja","Nein"]
[9563,"Gnesau","K","PLZ-Adressierung","extern","Ja","Nein"]
[9564,"Patergassen","K","PLZ-Adressierung","extern","Ja","Ja"]
[9565,"Ebene Reichenau","K","PLZ-Adressierung","extern","Ja","Nein"]
[9570,"Ossiach","K","PLZ-Adressierung","extern","Ja","Nein"]
[9571,"Sirnitz","K","PLZ-Adressierung","extern","Ja","Ja"]
[9572,"Deutsch Griffen","K","PLZ-Adressierung","extern","Ja","Nein"]
[9580,"Villach-Drobollach am Faaker See","K","PLZ-Adressierung","extern","Ja","Ja"]
[9581,"Ledenitzen","K","PLZ-Adressierung","extern","Ja","Ja"]
[9582,"Latschach","K","PLZ-Adressierung","extern","Ja","Nein"]
[9583,"Faak am See","K","PLZ-Adressierung","extern","Ja","Nein"]
[9584,"Finkenstein","K","PLZ-Adressierung","extern","Ja","Nein"]
[9585,"Gödersdorf","K","PLZ-Adressierung","extern","Ja","Nein"]
[9586,"Fürnitz","K","PLZ-Adressierung","extern","Ja","Ja"]
[9587,"Riegersdorf","K","PLZ-Adressierung","extern","Ja","Ja"]
[9601,"Arnoldstein","K","PLZ-Adressierung","extern","Ja","Ja"]
[9602,"Thörl-Maglern","K","PLZ-Adressierung","extern","Ja","Ja"]
[9611,"Nötsch","K","PLZ-Adressierung","extern","Ja","Ja"]
[9612,"St. Georgen im Gailtal","K","PLZ-Adressierung","extern","Ja","Nein"]
[9613,"Feistritz an der Gail","K","PLZ-Adressierung","extern","Ja","Nein"]
[9614,"Vorderberg","K","PLZ-Adressierung","extern","Ja","Nein"]
[9615,"Görtschach","K","PLZ-Adressierung","extern","Ja","Nein"]
[9620,"Hermagor","K","PLZ-Adressierung","extern","Ja","Ja"]
[9622,"Weißbriach","K","PLZ-Adressierung","extern","Ja","Nein"]
[9623,"St. Stefan an der Gail","K","PLZ-Adressierung","extern","Ja","Ja"]
[9624,"Egg","K","PLZ-Adressierung","extern","Ja","Nein"]
[9631,"Jenig","K","PLZ-Adressierung","extern","Ja","Nein"]
[9632,"Kirchbach","K","PLZ-Adressierung","extern","Ja","Ja"]
[9633,"Reisach","K","PLZ-Adressierung","extern","Ja","Nein"]
[9634,"Gundersheim","K","PLZ-Adressierung","extern","Ja","Nein"]
[9635,"Dellach","K","PLZ-Adressierung","extern","Ja","Nein"]
[9640,"Kötschach-Mauthen","K","PLZ-Adressierung","extern","Ja","Ja"]
[9651,"St. Jakob im Lesachtal","K","PLZ-Adressierung","extern","Ja","Nein"]
[9652,"Birnbaum","K","PLZ-Adressierung","extern","Ja","Nein"]
[9653,"Liesing","K","PLZ-Adressierung","extern","Ja","Nein"]
[9654,"St. Lorenzen im Lesachtal","K","PLZ-Adressierung","extern","Ja","Ja"]
[9655,"Maria Luggau","K","PLZ-Adressierung","extern","Ja","Nein"]
[9701,"Rothenthurn","K","PLZ-Adressierung","extern","Ja","Nein"]
[9702,"Ferndorf","K","PLZ-Adressierung","extern","Ja","Ja"]
[9710,"Feistritz an der Drau","K","PLZ-Adressierung","extern","Ja","Ja"]
[9711,"Paternion","K","PLZ-Adressierung","extern","Ja","Nein"]
[9712,"Fresach","K","PLZ-Adressierung","extern","Ja","Nein"]
[9713,"Zlan","K","PLZ-Adressierung","extern","Ja","Ja"]
[9714,"Stockenboi","K","PLZ-Adressierung","extern","Ja","Nein"]
[9721,"Weißenstein","K","PLZ-Adressierung","extern","Ja","Ja"]
[9722,"Gummern","K","PLZ-Adressierung","extern","Ja","Nein"]
[9751,"Sachsenburg","K","PLZ-Adressierung","extern","Ja","Nein"]
[9753,"Lind im Drautal","K","PLZ-Adressierung","extern","Ja","Nein"]
[9754,"Steinfeld","K","PLZ-Adressierung","extern","Ja","Ja"]
[9761,"Greifenburg","K","PLZ-Adressierung","extern","Ja","Ja"]
[9762,"Weißensee","K","PLZ-Adressierung","extern","Ja","Ja"]
[9771,"Berg im Drautal","K","PLZ-Adressierung","extern","Ja","Nein"]
[9772,"Dellach","K","PLZ-Adressierung","extern","Ja","Ja"]
[9773,"Irschen","K","PLZ-Adressierung","extern","Ja","Nein"]
[9781,"Oberdrauburg","K","PLZ-Adressierung","extern","Ja","Ja"]
[9782,"Nikolsdorf","T","PLZ-Adressierung","extern","Ja","Nein"]
[9800,"Spittal an der Drau","K","PLZ-Adressierung","extern","Ja","Ja"]
[9802,"Spittal an der Drau","K","PLZ-Postfach","extern","Nein","Ja"]
[9803,"Spittal an der Drau","K","PLZ-Postfach","extern","Nein","Ja"]
[9805,"Baldramsdorf","K","PLZ-Adressierung","extern","Ja","Nein"]
[9811,"Lendorf","K","PLZ-Adressierung","extern","Ja","Nein"]
[9812,"Pusarnitz","K","PLZ-Adressierung","extern","Ja","Nein"]
[9813,"Möllbrücke","K","PLZ-Adressierung","extern","Ja","Ja"]
[9814,"Mühldorf","K","PLZ-Adressierung","extern","Ja","Nein"]
[9815,"Kolbnitz","K","PLZ-Adressierung","extern","Ja","Ja"]
[9816,"Penk","K","PLZ-Adressierung","extern","Ja","Nein"]
[9821,"Obervellach","K","PLZ-Adressierung","extern","Ja","Ja"]
[9822,"Mallnitz","K","PLZ-Adressierung","extern","Ja","Nein"]
[9831,"Flattach","K","PLZ-Adressierung","extern","Ja","Nein"]
[9832,"Stall","K","PLZ-Adressierung","extern","Ja","Ja"]
[9833,"Rangersdorf","K","PLZ-Adressierung","extern","Ja","Nein"]
[9841,"Winklern","K","PLZ-Adressierung","extern","Ja","Ja"]
[9842,"Mörtschach","K","PLZ-Adressierung","extern","Ja","Nein"]
[9843,"Großkirchheim","K","PLZ-Adressierung","extern","Ja","Ja"]
[9844,"Heiligenblut","K","PLZ-Adressierung","extern","Ja","Nein"]
[9851,"Lieserbrücke","K","PLZ-Adressierung","extern","Ja","Nein"]
[9852,"Trebesing","K","PLZ-Adressierung","extern","Ja","Nein"]
[9853,"Gmünd","K","PLZ-Adressierung","extern","Ja","Ja"]
[9854,"Malta","K","PLZ-Adressierung","extern","Ja","Nein"]
[9861,"Eisentratten","K","PLZ-Adressierung","extern","Ja","Nein"]
[9862,"Kremsbrücke","K","PLZ-Adressierung","extern","Ja","Nein"]
[9863,"Rennweg","K","PLZ-Adressierung","extern","Ja","Ja"]
[9871,"Seeboden","K","PLZ-Adressierung","extern","Ja","Ja"]
[9872,"Millstatt","K","PLZ-Adressierung","extern","Ja","Ja"]
[9873,"Döbriach","K","PLZ-Adressierung","extern","Ja","Nein"]
[9900,"Lienz","T","PLZ-Adressierung","extern","Ja","Ja"]
[9904,"Thurn","T","PLZ-Adressierung","extern","Ja","Nein"]
[9911,"Assling","T","PLZ-Adressierung","extern","Ja","Ja"]
[9912,"Anras","T","PLZ-Adressierung","extern","Ja","Nein"]
[9913,"Abfaltersbach","T","PLZ-Adressierung","extern","Ja","Ja"]
[9920,"Sillian","T","PLZ-Adressierung","extern","Ja","Ja"]
[9931,"Außervillgraten","T","PLZ-Adressierung","extern","Ja","Nein"]
[9932,"Innervillgraten","T","PLZ-Adressierung","extern","Ja","Ja"]
[9941,"Kartitsch","T","PLZ-Adressierung","extern","Ja","Ja"]
[9942,"Obertilliach","T","PLZ-Adressierung","extern","Ja","Nein"]
[9943,"Untertilliach","T","PLZ-Adressierung","extern","Ja","Nein"]
[9951,"Ainet","T","PLZ-Adressierung","extern","Ja","Ja"]
[9953,"Huben","T","PLZ-Historisch","intern","Nein","Nein"]
[9954,"Schlaiten","T","PLZ-Adressierung","extern","Ja","Nein"]
[9961,"Hopfgarten in Defereggen","T","PLZ-Adressierung","extern","Ja","Nein"]
[9962,"St. Veit in Defereggen","T","PLZ-Adressierung","extern","Ja","Nein"]
[9963,"St. Jakob in Defereggen","T","PLZ-Adressierung","extern","Ja","Ja"]
[9971,"Matrei in Osttirol","T","PLZ-Adressierung","extern","Ja","Ja"]
[9972,"Virgen","T","PLZ-Adressierung","extern","Ja","Nein"]
[9974,"Prägraten","T","PLZ-Adressierung","extern","Ja","Nein"]
[9981,"Kals","T","PLZ-Adressierung","extern","Ja","Ja"]
[9990,"Nußdorf-Debant","T","PLZ-Adressierung","extern","Ja","Ja"]
[9991,"Dölsach","T","PLZ-Adressierung","extern","Ja","Nein"]